Workbook

Sheet Contratos_2020
A2: ANEXO CONTRACTUAL DE LA VIGENCIA 2020
A6: TIPO DE PROCESO | B6: MODALIDAD DE SELECCIÓN | C6: ESTADO | D6: N° PROCESO | E6: N° De Contrato | F6: % De tiempo del contrato transcurrido | G6: CONTRATISTA | H6: IDENTIFICACIÓN | I6: REPRESENTANTE LEGAL | J6: CEDULA REPRESENTANTE | K6: CONFORMACION CONSORCIO | L6: LINK DE SECOP | M6: OBJETO DEL CONTRATO | N6: TIPO DE RECURSO / GASTO | O6: N° CDP | P6: VALOR CDP | Q6: NUMERO PROYECTO | R6: NOMBRE PROYECTO / RECURSOS | S6: FECHA DE SUSCRIPCION | T6: FECHA INICIO ACTA | U6: FECHA TERMINACION CONTRATO INCLUYENDO PRORROGAS Y ADICIONES | V6: VALOR TOTAL CONTRATO | W6: TIEMPO DEL CONTRATO MESES | X6: HONORARIOS MENSUAULES | Y6: N° RP | Z6: VALOR RP | AA6: SUPERVISOR | AB6: APOYO A LA SUPERVISIÓN | AC6: DEPENDENCIA | AD6: NUMERO DE PÓLIZA | AE6: VIGENCIA DESDE POLIZA | AF6: VIGENCIA HASTA POLIZA | AG6: FECHA SUSPENSIÓN INICIAL | AH6: FECHA SUSPENSIÓN FINAL | AI6: PLAZO SUSPENSIÓN | AJ6: UNIDAD PLAZO | AK6: CEDENTE | AL6: CESIONARIO | AM6: FECHA CESIÓN | AN6: FECHA ADICIÓN | AO6: TIEMPO DE LA ADICION | AP6: UNIDAD PLAZO | AQ6: VALOR ADICIÓN | AR6: FECHA PRÓRROGA | AS6: PLAZO PRÓRROGA | AT6: UNIDAD PLAZO | AU6: FECHA ADICIÓN | AV6: TIEMPO DE LA ADICION | AW6: UNIDAD PLAZO | AX6: VALOR ADICIÓN
A7: CONTRATACION DIRECTA | B7: Contratos de prestación de servicios | C7: EN EJECUCION | D7: FDLK-CD-1-2020 | E7: CPS-001-2020 | F7: =VLOOKUP(E7,[1]Hoja1!D$3:E$393,2,0) -> 0.7793522267 | G7: DIANA CAROLINA CAMACHO ESCOBAR | H7: 1030594415 | I7: DIANA CAROLINA CAMACHO ESCOBAR | J7: 1030594415 | L7: https://community.secop.gov.co/Public/Tendering/OpportunityDetail/Index?noticeUID=CO1.NTC.1084923&isFromPublicArea=True&isModal=False | M7: PRESTAR LOS SERVICIOS PROFESIONALES PARA LA OPERACIÓN, SEGUIMIENTO Y CUMPLIMIENTO DE LOS PROCESOS Y PROCEDIMIENTOS DEL SERVICIO APOYO ECONÓMICO TIPO C, REQUERIDOS PARA EL OPORTUNO Y ADECUADO REGISTRO, CRUCE Y REPORTE DE LOS DATOS EN EL SISTEMA MISIONAL – SIRBE, QUE CONTRIBUYAN A LA GARANTÍA DE LOS DERECHOS DE LA POBLACIÓN MAYOR EN EL MARCO DE LA POLÍTICA PÚBLICA SOCIAL PARA EL ENVEJECIMIENTO Y LA VEJEZ EN EL DISTRITO CAPITAL A CARGO DE LA ALCALDÍA LOCAL DE KENNEDY | N7: INVERSIÓN | O7: 522 | P7: 60264533 | Q7: 1378 | R7: Igualdad y autonomía para una Kennedy incluyente | S7: 2020-02-04 | T7: 2020-02-06 | U7: 2021-06-14 | V7: 60264533 | W7: 10.93333333 | X7: 5511999.97 | Y7: 522 | Z7: 60264533 | AA7: LEONARDO ALEXANDER RODRíCUEZ LÓPÉZ | AB7: RICARDO RODRIGUEZ GARCIA | AC7: PLANEACION | AD7: 380-47-994000103089 | AE7: 2020-02-04 | AF7: 2021-07-07 | AG7: 2020-02-12 | AH7: 2020-03-31 | AI7: 48 | AJ7: DIAS | AK7: NA | AL7: NA | AM7: NA | AN7: 2021-01-01 | AO7: 5 | AP7: MESES | AQ7: 30132267 | AR7: 2021-01-01 | AS7: 5 | AT7: MESES | AU7: NA | AV7: NA | AW7: NA | AX7: NA
A8: CONTRATACION DIRECTA | B8: Contratos de prestación de servicios | C8: EN EJECUCION | D8: FDLK-CD-2-2020 | E8: CPS-002-2020 | F8: =VLOOKUP(E8,[1]Hoja1!D$3:E$393,2,0) -> 0.9921259843 | G8: DELIA ISABEL LIZARAZO BALLESTEROS | H8: 1012340392 | I8: DELIA ISABEL LIZARAZO BALLESTEROS | J8: 1012340392 | L8: https://community.secop.gov.co/Public/Tendering/OpportunityDetail/Index?noticeUID=CO1.NTC.1092494&isFromPublicArea=True&isModal=False | M8: PRESTAR LOS SERVICIOS DE APOYO ADMINISTRATIVO Y ASISTENCIAL EN ASUNTOS RELACIONADOS CON MEDIO AMBIENTE EN EL ÁREA DE GESTIÓN POLICIVA JURÍDICA DE LA ALCALDÍA LOCAL DE KENNEDY | N8: INVERSIÓN | O8: 507 | P8: 27467000 | Q8: 1363 | R8: Fortalecimiento de la gestión local y de las acciones de vigilancia y control | S8: 2020-02-06 | T8: 2020-02-13 | U8: 2021-02-28 | V8: 27467000 | W8: 11 | X8: 2497000 | Y8: 507 | Z8: 27467000 | AA8: LEONARDO ALEXANDER RODRíCUEZ LÓPÉZ | AB8: NORMA LETICIA GUZMAN RIMOLLI | AC8: GESTION POLICIVA Y JURIDICA | AD8: 380-47-994000103225 | AE8: 2020-02-07 | AF8: 2021-07-10 | AG8: 2020-02-24 | AH8: 2020-07-09 | AI8: 136 | AJ8: DIAS | AK8: NA | AL8: NA | AM8: NA | AN8: 2021-01-01 | AO8: 2 | AP8: MESES | AQ8: 4994000 | AR8: 2021-01-01 | AS8: 2 | AT8: MESES | AU8: NA | AV8: NA | AW8: NA | AX8: NA
A9: CONTRATACION DIRECTA | B9: Contratos de prestación de servicios | C9: TERMINADO | D9: FDLK-CD-3-2020 | E9: CPS-003-2020 | F9: =VLOOKUP(E9,[1]Hoja1!D$3:E$393,2,0) -> 1 | G9: DEYSI YADIRA CASALLAS GOMEZ | H9: 53101194 | I9: DEYSI YADIRA CASALLAS GOMEZ | J9: 53101194 | L9: https://community.secop.gov.co/Public/Tendering/OpportunityDetail/Index?noticeUID=CO1.NTC.1092453&isFromPublicArea=True&isModal=False | M9: PRESTAR SUS SERVICIOS DE APOYO AL ÁREA DE GESTIÓN DE DESARROLLO LOCAL EN LA IMPLEMENTACIÓN, MANEJO, VALIDACIÓN Y ACTUALIZACIÓN DE LA INFORMACIÓN EN LOS APLICATIVOS INSTITUCIONALES. | N9: INVERSIÓN | O9: 600 | P9: 14.840.000 | Q9: 1363 | R9: Fortalecimiento de la gestión local y de las acciones de vigilancia y control | S9: 2020-02-06 | T9: 2020-02-13 | U9: 2020-08-12 | V9: 14840000 | W9: 4 | X9: 3710000 | Y9: 626 | Z9: 14840000 | AA9: LEONARDO ALEXANDER RODRíCUEZ LÓPÉZ | AB9: YULLIET PATRICIA LLERENA AVENDAÑO | AC9: ADMINISTRATIVO Y FINANCIERO | AD9: 380- 47- 994000103436 | AE9: 2020-06-02 | AF9: 2020-11-02 | AG9: NA | AH9: 0 | AI9: NA | AJ9: NA | AK9: NA | AL9: NA | AM9: NA | AN9: 2020-06-12 | AO9: 60 | AP9: DIAS | AQ9: 7420000 | AR9: 2020-06-12 | AS9: 60 | AT9: DIAS | AU9: NA | AV9: NA | AW9: NA | AX9: NA
A10: CONTRATACION DIRECTA | B10: Contratos de prestación de servicios | C10: TERMINADO | D10: FDLK-CD-4-2020 | E10: CPS-004-2020 | F10: =VLOOKUP(E10,[1]Hoja1!D$3:E$393,2,0) -> 1 | G10: DERLY KATHERINE SANCHEZ | H10: 52847676 | I10: DERLY KATHERINE SANCHEZ | J10: 52847676 | L10: https://community.secop.gov.co/Public/Tendering/OpportunityDetail/Index?noticeUID=CO1.NTC.1093265&isFromPublicArea=True&isModal=False | M10: PRESTACIÓN DE SERVICIOS PROFESIONALES PARA APOYAR AL ALCALDE(SA) LOCAL EN LA PROMOCIÓN, ACOMPAÑAMIENTO, COORDINACIÓN Y ATENCIÓN DE LAS INSTANCIAS DE COORDINACIÓN INTERINSTITUCIONALES Y LAS INSTANCIAS DE PARTICIPACIÓN LOCALES, ASÍ COMO LOS PROCESOS COMUNITARIOS EN LA LOCALIDAD. | N10: INVERSIÓN | O10: 601 | P10: 22048000 | Q10: 1371 | R10: Fortalecimiento de la participación | S10: 2020-02-06 | T10: 2020-02-10 | U10: 2020-06-09 | V10: 22048000 | W10: 4 | X10: 5512000 | Y10: 624 | Z10: 22048000 | AA10: LEONARDO ALEXANDER RODRíCUEZ LÓPÉZ | AB10: AMANDA MILENA GONZALEZ | AC10: PLANEACION | AD10: 380-47-994000103223 | AE10: 2020-07-02 | AF10: 2020-12-10 | AG10: NA | AH10: 0 | AI10: NA | AJ10: NA | AK10: NA | AL10: NA | AM10: NA | AN10: NA | AO10: NA | AP10: NA | AQ10: NA | AR10: NA | AS10: NA | AT10: NA | AU10: NA | AV10: NA | AW10: NA | AX10: NA
A11: CONTRATACION DIRECTA | B11: Contratos de prestación de servicios | C11: TERMINADO | D11: FDLK-CD-5-2020 | E11: CPS-005-2020 | F11: =VLOOKUP(E11,[1]Hoja1!D$3:E$393,2,0) -> 1 | G11: MONICA VIVIANA PORRAS BEDOYA | H11: 52396873 | I11: MONICA VIVIANA PORRAS BEDOYA | J11: 52396873 | L11: https://community.secop.gov.co/Public/Tendering/OpportunityDetail/Index?noticeUID=CO1.NTC.1095554&isFromPublicArea=True&isModal=False | M11: PRESTAR SUS SERVICIOS PROFESIONALES A LA ALCALDÍA LOCAL DE KENNEDY APOYANDO LOS PROCESOS, PROYECTOS Y PROGRAMAS DE PARTICIPACIÓN LOCAL | N11: INVERSIÓN | O11: 602 | P11: 22048000 | Q11: 1371 | R11: Fortalecimiento de la participación | S11: 2020-02-07 | T11: 2020-02-12 | U11: 2020-08-11 | V11: 22048000 | W11: 4 | X11: 5512000 | Y11: 630 | Z11: 22048000 | AA11: LEONARDO ALEXANDER RODRíCUEZ LÓPÉZ | AB11: DERLY KATHERINE SANCHEZ | AC11: PARTICIPACION | AD11: 310 47 994000004461 | AE11: 2020-02-07 | AF11: 15/12/2020 | AG11: NA | AH11: 0 | AI11: NA | AJ11: NA | AK11: NA | AL11: NA | AM11: NA | AN11: 2020-06-11 | AO11: 60 | AP11: DIAS | AQ11: 11024000 | AR11: 2020-06-11 | AS11: 60 | AT11: DIAS | AU11: NA | AV11: NA | AW11: NA | AX11: NA
A12: CONTRATACION DIRECTA | B12: Contratos de prestación de servicios | C12: TERMINADO | D12: FDLK-CD-6-2020 | E12: CPS-006-2020 | F12: =VLOOKUP(E12,[1]Hoja1!D$3:E$393,2,0) -> 1 | G12: EDILBERTO RODRIGUEZ GARZON | H12: 79325319 | I12: EDILBERTO RODRIGUEZ GARZON | J12: 79325319 | L12: https://community.secop.gov.co/Public/Tendering/OpportunityDetail/Index?noticeUID=CO1.NTC.1095796&isFromPublicArea=True&isModal=False | M12: PRESTAR SUS SERVICIOS PROFESIONALES A LA ALCALDÍA LOCAL DE KENNEDY APOYANDO LOS PROCESOS, PROYECTOS Y PROGRAMAS DE PARTICIPACIÓN LOCAL | N12: INVERSIÓN | O12: 604 | P12: 22048000 | Q12: 1371 | R12: Fortalecimiento de la participación | S12: 2020-02-07 | T12: 2020-06-17 | U12: 2020-08-16 | V12: 22048000 | W12: 4 | X12: 5512000 | Y12: 638 | Z12: 22048000 | AA12: LEONARDO ALEXANDER RODRíCUEZ LÓPÉZ | AB12: DERLY KATHERINE SANCHEZ | AC12: PARTICIPACION | AD12: 310 47 994000103375 | AE12: 2020-02-07 | AF12: 15/12/2020 | AG12: NA | AH12: 0 | AI12: NA | AJ12: NA | AK12: NA | AL12: NA | AM12: NA | AN12: 2020-06-16 | AO12: 60 | AP12: DIAS | AQ12: 11024000 | AR12: 2020-06-16 | AS12: 60 | AT12: DIAS | AU12: NA | AV12: NA | AW12: NA | AX12: NA
A13: CONTRATACION DIRECTA | B13: Contratos de prestación de servicios | C13: TERMINADO | D13: FDLK-CD-7-2020 | E13: CPS-007-2020 | F13: =VLOOKUP(E13,[1]Hoja1!D$3:E$393,2,0) -> 1 | G13: MARIA BERNARDA GÓMEZ JIMENEZ | H13: 52379149 | I13: MARIA BERNARDA GÓMEZ JIMENEZ | J13: 52379149 | L13: https://community.secop.gov.co/Public/Tendering/OpportunityDetail/Index?noticeUID=CO1.NTC.1104424&isFromPublicArea=True&isModal=False | M13: APOYAR LA GESTIÓN DOCUMENTAL DE LA ALCALDÍA LOCAL, ACOMPAÑANDO AL EQUIPO JURÍDICO DE DEPURACIÓN EN LAS LABORES OPERATIVAS QUE GENERA EL PROCESO DE IMPULSO DE LAS ACTUACIONES ADMINISTRATIVAS EXISTENTES EN LAS DIFERENTES ALCALDÍAS LOCALES | N13: INVERSIÓN | O13: 612 | P13: 9988000 | Q13: 1363 | R13: Fortalecimiento de la gestión local y de las acciones de vigilancia y control | S13: 2020-02-12 | T13: 2020-06-17 | U13: 2020-08-16 | V13: 9988000 | W13: 4 | X13: 2497000 | Y13: 644 | Z13: 9988000 | AA13: LEONARDO ALEXANDER RODRíCUEZ LÓPÉZ | AB13: NORMA LETICIA GUZMAN RIMOLLI | AC13: GESTION POLICIVA Y JURIDICA | AD13: 310 47 994000103604 | AE13: 2020-12-02 | AF13: 15/12/2020 | AG13: NA | AH13: 0 | AI13: NA | AJ13: NA | AK13: NA | AL13: NA | AM13: NA | AN13: 2020-06-16 | AO13: 60 | AP13: DIAS | AQ13: 4994000 | AR13: 2020-06-16 | AS13: 60 | AT13: DIAS | AU13: NA | AV13: NA | AW13: NA | AX13: NA
A14: CONTRATACION DIRECTA | B14: Contratos de prestación de servicios | C14: TERMINADO | D14: FDLK-CD-8-2020 | E14: CPS-008-2020 | F14: =VLOOKUP(E14,[1]Hoja1!D$3:E$393,2,0) -> 1 | G14: MIRIAN YANIVE SUAREZ SANTOS | H14: 52473538 | I14: MIRIAN YANIVE SUAREZ SANTOS | J14: 52473538 | L14: https://community.secop.gov.co/Public/Tendering/OpportunityDetail/Index?noticeUID=CO1.NTC.1110867&isFromPublicArea=True&isModal=False | M14: APOYAR JURÍDICAMENTE LA EJECUCIÓN DE LAS ACCIONES REQUERIDAS PARA LA DEPURACIÓN DE LAS ACTUACIONES ADMINISTRATIVAS QUE CURSAN EN LA ALCALDÍA LOCAL | N14: INVERSIÓN | O14: 611 | P14: 22048000 | Q14: 1363 | R14: Fortalecimiento de la gestión local y de las acciones de vigilancia y control | S14: 2020-02-14 | T14: 2020-02-18 | U14: 2020-06-17 | V14: 22048000 | W14: 4 | X14: 5512000 | Y14: 649 | Z14: 22048000 | AA14: LEONARDO ALEXANDER RODRíCUEZ LÓPÉZ | AB14: NORMA LETICIA GUZMAN RIMOLLI | AC14: Seguridad | AD14: 37-44-101033897 | AE14: 2020-02-17 | AF14: 16/12/2020 | AG14: NA | AH14: 0 | AI14: NA | AJ14: NA | AK14: NA | AL14: NA | AM14: NA | AN14: NA | AO14: NA | AP14: NA | AQ14: NA | AR14: NA | AS14: NA | AT14: NA | AU14: NA | AV14: NA | AW14: NA | AX14: NA
A15: CONTRATACION DIRECTA | B15: Contratos de prestación de servicios | C15: EN EJECUCION | D15: FDLK-CD-9-2020 | E15: CPS-009-2020 | F15: =VLOOKUP(E15,[1]Hoja1!D$3:E$393,2,0) -> 0.992 | G15: NOLBA RUBIELA CASTRO CRUZ | H15: 1018410635 | I15: NOLBA RUBIELA CASTRO CRUZ | J15: 1018410635 | L15: https://community.secop.gov.co/Public/Tendering/OpportunityDetail/Index?noticeUID=CO1.NTC.1111272&isFromPublicArea=True&isModal=False | M15: PRESTAR LOS SERVICIOS DE APOYO EN LAS ACCIONES ENCAMINADAS AL RESTABLECIMIENTO DE LA ARMONÍA, PAZ, SEGURIDAD Y CONVIVENCIA CIUDADANA, EN LA LOCALIDAD DE KENNEDY | N15: INVERSIÓN | O15: 613 | P15: 25819500 | Q15: 1376 | R15: Fortalecimiento de seguridad e iniciativa de convivencia en la localidad de Kennedy | S15: 2020-02-14 | T15: 2020-02-19 | U15: 2021-02-28 | V15: 25819500 | W15: 10.5 | X15: 2459000 | Y15: 650 | Z15: 25819500 | AA15: LEONARDO ALEXANDER RODRíCUEZ LÓPÉZ | AB15: NORMA LETICIA GUZMAN RIMOLLI | AC15: GESTION POLICIVA Y JURIDICA | AD15: 21-46-10104077 | AE15: 2020-02-17 | AF15: 2021-10-07 | AG15: 2020-07-03 | AH15: 2020-10-23 | AI15: 112 | AJ15: DIAS | AK15: NA | AL15: NA | AM15: NA | AN15: 2021-01-01 | AO15: 2 | AP15: MESES | AQ15: 4918000 | AR15: 2021-01-01 | AS15: 2 | AT15: MESES | AU15: NA | AV15: NA | AW15: NA | AX15: NA
A16: CONTRATACION DIRECTA | B16: Contratos de prestación de servicios | C16: TERMINADO | D16: FDLK-CD-10-2020 | E16: CPS-010-2020 | F16: =VLOOKUP(E16,[1]Hoja1!D$3:E$393,2,0) -> 1 | G16: SANDRA PATRICIA RINCON GOMEZ | H16: 52021745 | I16: SANDRA PATRICIA RINCON GOMEZ | J16: 52021745 | L16: https://community.secop.gov.co/Public/Tendering/OpportunityDetail/Index?noticeUID=CO1.NTC.1118581&isFromPublicArea=True&isModal=False | M16: PRESNTACION DE SERVICIOS PROFESIONALES A LA ALCALDIA LOCAL DE KENNEDY APOYANDO AL DESPACHO DEL ALCALDE LOCAL EN LO RELACIONADO CON LOS PROCESOS, PROYECTOS O PROGRAMAS O PLANES Y ACCIONES DE PARTICIPACION LOCAL | N16: INVERSIÓN | O16: 614 | P16: 22048000 | Q16: 1371 | R16: Fortalecimiento de la participación | S16: 2020-02-19 | T16: 2020-02-21 | U16: 2020-08-20 | V16: 22048000 | W16: 4 | X16: 5512000 | Y16: 664 | Z16: 22048000 | AA16: LEONARDO ALEXANDER RODRíCUEZ LÓPÉZ | AB16: ANIBAL FERNANDO OSPINA | AC16: PARTICIPACION | AD16: 15-44-101224455 | AE16: 18/02/2020 | AF16: 19/12/2020 | AG16: NA | AH16: 0 | AI16: NA | AJ16: NA | AK16: NA | AL16: NA | AM16: NA | AN16: 2020-06-18 | AO16: 60 | AP16: DIAS | AQ16: 11024000 | AR16: 2020-06-18 | AS16: 60 | AT16: DIAS | AU16: NA | AV16: NA | AW16: NA | AX16: NA
A17: CONTRATACION DIRECTA | B17: Contratos de prestación de servicios | C17: EN EJECUCION | D17: FDLK-CD-11-2020 | E17: CPS-011-2020 | F17: =VLOOKUP(E17,[1]Hoja1!D$3:E$393,2,0) -> 0.9920212766 | G17: KAROLAY SANCHEZ RAMOS | H17: 1007561466 | I17: KAROLAY SANCHEZ RAMOS | J17: 1007561466 | L17: https://community.secop.gov.co/Public/Tendering/OpportunityDetail/Index?noticeUID=CO1.NTC.1112272&isFromPublicArea=True&isModal=False | M17: PRESTAR LOS SERVICIOS DE APOYO AL FONDO DE DESARROLLO LOCAL DE KENNEDY EN LAS ACTIVIDADES DE RADICACION Y CORRESPONDENCIA | N17: INVERSIÓN | O17: 539 | P17: 22053267 | Q17: 1363 | R17: Fortalecimiento de la gestión local y de las acciones de vigilancia y control | S17: 2020-02-14 | T17: 2020-02-18 | U17: 2021-02-28 | V17: 22053267 | W17: 10.46666667 | X17: 2107000.032 | Y17: 651 | Z17: 22053267 | AA17: LEONARDO ALEXANDER RODRíCUEZ LÓPÉZ | AB17: MARIA DEL PILAR MUÑOZ TORRES | AC17: ADMINISTRATIVO Y FINANCIERO | AD17: 310 47 994000103683 | AE17: 18/02/2020 | AF17: 2021-03-07 | AG17: 2020-04-01 | AH17: 2020-06-01 | AI17: 61 | AJ17: DIAS | AK17: NA | AL17: NA | AM17: NA | AN17: 2021-01-01 | AO17: 2 | AP17: MESES | AQ17: 4214000 | AR17: 2021-01-01 | AS17: 2 | AT17: MESES | AU17: NA | AV17: NA | AW17: NA | AX17: NA
A18: CONTRATACION DIRECTA | B18: Contratos de prestación de servicios | C18: EN EJECUCION | D18: FDLK-CD-12-2020 | E18: CPS-012-2020 | F18: =VLOOKUP(E18,[1]Hoja1!D$3:E$393,2,0) -> 0.9920212766 | G18: SANDRA ESPERANZA CLAVIJO RAMOS | H18: 1030551811 | I18: SANDRA ESPERANZA CLAVIJO RAMOS | J18: 1030551811 | L18: https://community.secop.gov.co/Public/Tendering/OpportunityDetail/Index?noticeUID=CO1.NTC.1115273&isFromPublicArea=True&isModal=False | M18: APOYAR JURÍDICAMENTE LA EJECUCIÓN DE LAS ACCIONES REQUERIDAS PARA LA DEPURACIÓN DE LAS ACTUACIONES ADMINISTRATIVAS QUE CURSAN EN LA ALCALDÍA LOCAL | N18: INVERSIÓN | O18: 608 | P18: 57876000 | Q18: 1363 | R18: Fortalecimiento de la gestión local y de las acciones de vigilancia y control | S18: 2020-02-17 | T18: 2020-02-18 | U18: 2021-02-28 | V18: 57876000 | W18: 10.5 | X18: 5512000 | Y18: 653 | Z18: 57876000 | AA18: LEONARDO ALEXANDER RODRíCUEZ LÓPÉZ | AB18: NORMA LETICIA GUZMAN RIMOLLI | AC18: GESTION POLICIVA Y JURIDICA | AD18: 310 47 994000103733 | AE18: 17/02/2020 | AF18: 2021-06-07 | AG18: 2020-09-01 | AH18: 2020-09-30 | AI18: 29 | AJ18: DIAS | AK18: NA | AL18: NA | AM18: NA | AN18: 2021-01-01 | AO18: 2 | AP18: MESES | AQ18: 11024000 | AR18: 2021-01-01 | AS18: 2 | AT18: MESES | AU18: NA | AV18: NA | AW18: NA | AX18: NA
A19: CONTRATACION DIRECTA | B19: Contratos de prestación de servicios | C19: EN EJECUCION | D19: FDLK-CD-13-2020 | E19: CPS-013-2020 | F19: =VLOOKUP(E19,[1]Hoja1!D$3:E$393,2,0) -> 0.9919571046 | G19: MARTHA CECILIA OSPINA TRIANA | H19: 39654684 | I19: MARTHA CECILIA OSPINA TRIANA | J19: 39654684 | L19: https://community.secop.gov.co/Public/Tendering/OpportunityDetail/Index?noticeUID=CO1.NTC.1118094&isFromPublicArea=True&isModal=False | M19: PRESTAR SERVICIO DE APOYO A LA GESTION A TRAVES DE LA ATENCION AL PUBLICO DESDE LA RECEPCION DE LAS INSPECCIONES DE POLICIA DE LA ALCALDIA LOCAL DE KENNEDY | N19: INVERSIÓN | O19: 624 | P19: 27467000 | Q19: 1363 | R19: Fortalecimiento de la gestión local y de las acciones de vigilancia y control | S19: 2020-02-18 | T19: 2020-02-21 | U19: 2021-02-28 | V19: 27467000 | W19: 11 | X19: 2497000 | Y19: 655 | Z19: 27467000 | AA19: LEONARDO ALEXANDER RODRíCUEZ LÓPÉZ | AB19: GUSTAVO VANEGAS RUIZ | AC19: Inspecciones | AD19: 310 47 994000103780 | AE19: 2020-02-18 | AF19: 2021-03-07 | AG19: NA | AH19: 0 | AI19: NA | AJ19: NA | AK19: NA | AL19: NA | AM19: NA | AN19: 2021-01-01 | AO19: 2 | AP19: MESES | AQ19: 4994000 | AR19: 2021-01-01 | AS19: 2 | AT19: MESES | AU19: NA | AV19: NA | AW19: NA | AX19: NA
A20: CONTRATACION DIRECTA | B20: Contratos de prestación de servicios | C20: EN EJECUCION | D20: FDLK-CD-14-2020 | E20: CPS-014-2020 | F20: =VLOOKUP(E20,[1]Hoja1!D$3:E$393,2,0) -> 0.9919571046 | G20: XIMENA ANDREA APONTE RINCON | H20: 1069741350 | I20: XIMENA ANDREA APONTE RINCON | J20: 1069741350 | L20: https://community.secop.gov.co/Public/Tendering/OpportunityDetail/Index?noticeUID=CO1.NTC.1122682&isFromPublicArea=True&isModal=False | M20: PRESTAR SUS SERVICIOS PROFESIONALES PARA EL APOYO DE LA ETAPA DE COBRO PERSUASIVO DE LOS PROCESOS SANCIONATORIOS A CARGO DEL GRUPO DEL ÁREA DE GESTIÓN POLICIVA JURIDICA DE LA ALCALDÍA LOCAL DE KENNEDY | N20: INVERSIÓN | O20: 609 | P20: 57876000 | Q20: 1363 | R20: Fortalecimiento de la gestión local y de las acciones de vigilancia y control | S20: 2020-02-20 | T20: 2020-02-21 | U20: 2021-02-28 | V20: 57876000 | W20: 10.5 | X20: 5512000 | Y20: 663 | Z20: 57876000 | AA20: LEONARDO ALEXANDER RODRíCUEZ LÓPÉZ | AB20: NORMA LETICIA GUZMAN RIMOLLI | AC20: GESTION POLICIVA Y JURIDICA | AD20: 310 47 994000103865 | AE20: 20/02/2020 | AF20: 06707/2021 | AG20: NA | AH20: 0 | AI20: NA | AJ20: NA | AK20: NA | AL20: NA | AM20: NA | AN20: 2021-01-01 | AO20: 2 | AP20: MESES | AQ20: 11024000 | AR20: 2021-01-01 | AS20: 2 | AT20: MESES | AU20: NA | AV20: NA | AW20: NA | AX20: NA
A21: CONTRATACION DIRECTA | B21: Contratos de prestación de servicios | C21: TERMINADO | D21: FDLK-CD-15-2020 | E21: CPS-015-2020 | F21: =VLOOKUP(E21,[1]Hoja1!D$3:E$393,2,0) -> 1 | G21: CATALINA ESPERANZA CORTES GONZALEZ | H21: 1012327086 | I21: CATALINA ESPERANZA CORTES GONZALEZ | J21: 1012327086 | L21: https://community.secop.gov.co/Public/Tendering/OpportunityDetail/Index?noticeUID=CO1.NTC.1125662&isFromPublicArea=True&isModal=False | M21: PRESTACIÓN DE SERVICIOS PROFESIONALES PARA PARA LA OPERACIÓN, PRESTACIÓN SEGUIMIENTO Y CUMPLIMIENTO DE LOS PROCEDIMIENTOS ADMINISTRATIVOS, OPERATIVOS Y PROGRAMÁTICOS DEL SERVICIO APOYO ECONÓMICO TIPO C, QUE CONTRIBUYAN A LA GARANTÍA DE LOS DERECHOS DE LA POBLACIÓN MAYOR EN EL MARCO DE LA POLÍTICA PÚBLICA SOCIAL PARA EL ENVEJECIMIENTO Y LA VEJEZ EN EL DISTRITO CAPITAL A CARGO DE LA ALCALDÍA LOCAL DE KENNEDY | N21: INVERSIÓN | O21: 627 | P21: 22.048.000 | Q21: 1378 | R21: Igualdad y autonomía para una Kennedy incluyente | S21: 2020-02-21 | T21: 2020-02-28 | U21: 2020-08-27 | V21: 20684000 | W21: 4 | X21: 5171000 | Y21: 689 | Z21: 20684000 | AA21: LEONARDO ALEXANDER RODRíCUEZ LÓPÉZ | AB21: GIUSSEPE SALVATORE SCOPPETTA TORRES | AC21: PLANEACION | AD21: 310 47 994000104070 | AE21: 21/02/2020 | AF21: 27/12/2020 | AG21: NA | AH21: 0 | AI21: NA | AJ21: NA | AK21: NA | AL21: NA | AM21: NA | AN21: 2020-06-26 | AO21: 60 | AP21: DIAS | AQ21: 10342000 | AR21: 2020-06-26 | AS21: 60 | AT21: DIAS | AU21: NA | AV21: NA | AW21: NA | AX21: NA
A22: CONTRATACION DIRECTA | B22: Contratos de prestación de servicios | C22: TERMINADO | D22: FDLK-CD-16-2020 | E22: CPS-016-2020 | F22: =VLOOKUP(E22,[1]Hoja1!D$3:E$393,2,0) -> 1 | G22: GIUSEPPE SALVATORE SCOPPETTA TORRES | H22: 79791538 | I22: GIUSEPPE SALVATORE SCOPPETTA TORRES | J22: 79791538 | L22: https://community.secop.gov.co/Public/Tendering/OpportunityDetail/Index?noticeUID=CO1.NTC.1126096&isFromPublicArea=True&isModal=False | M22: PRESTACIÓN DE SERVICIOS PROFESIONALES PARA LIDERAR Y GARANTIZAR LA IMPLEMENTACIÓN Y SEGUIMIENTO DE LOS PROCESOS Y PROCEDIMIENTOS DEL SERVICIO SOCIAL. | N22: INVERSIÓN | O22: 626 | P22: 22.824.000 | Q22: 1378 | R22: Igualdad y autonomía para una Kennedy incluyente | S22: 2020-02-21 | T22: 2020-02-25 | U22: 2020-08-23 | V22: 22824000 | W22: 4 | X22: 5706000 | Y22: 690 | Z22: 22824000 | AA22: LEONARDO ALEXANDER RODRíCUEZ LÓPÉZ | AB22: MARIA DEL PILAR MUJICA SANDOVAL | AC22: PLANEACION | AD22: 310 47 994000103913 | AE22: 24/272020 | AF22: 27/12/2020 | AG22: NA | AH22: 0 | AI22: NA | AJ22: NA | AK22: NA | AL22: NA | AM22: NA | AN22: 2020-06-23 | AO22: 60 | AP22: DIAS | AQ22: 11412000 | AR22: 2020-06-23 | AS22: 60 | AT22: DIAS | AU22: NA | AV22: NA | AW22: NA | AX22: NA
A23: CONTRATACION DIRECTA | B23: Contratos de prestación de servicios | C23: TERMINADO | D23: FDLK-CD-17-2020 | E23: CPS-017-2020 | F23: =VLOOKUP(E23,[1]Hoja1!D$3:E$393,2,0) -> 1 | G23: SONIA ELIZABETH ALVAREZ HIGUERA | H23: 52409752 | I23: SONIA ELIZABETH ALVAREZ HIGUERA | J23: 52409752 | L23: https://community.secop.gov.co/Public/Tendering/OpportunityDetail/Index?noticeUID=CO1.NTC.1131430&isFromPublicArea=True&isModal=False | M23: PRESTACIÓN DE SERVICIOS PROFESIONALES PARA PARA LA OPERACIÓN, PRESTACIÓN SEGUIMIENTO Y CUMPLIMIENTO DE LOS PROCEDIMIENTOS ADMINISTRATIVOS, OPERATIVOS Y PROGRAMÁTICOS DEL SERVICIO APOYO ECONÓMICO TIPO C, QUE CONTRIBUYAN A LA GARANTÍA DE LOS DERECHOS DE LA POBLACIÓN MAYOR EN EL MARCO DE LA POLÍTICA PÚBLICA SOCIAL PARA EL ENVEJECIMIENTO Y LA VEJEZ EN EL DISTRITO CAPITAL A CARGO DE LA ALCALDÍA LOCAL DE KENNEDY | N23: INVERSIÓN | O23: 628 | P23: 22048000 | Q23: 1378 | R23: Igualdad y autonomía para una Kennedy incluyente | S23: 2020-02-25 | T23: 2020-02-28 | U23: 2020-06-27 | V23: 20684000 | W23: 4 | X23: 5171000 | Y23: 720 | Z23: 20684000 | AA23: LEONARDO ALEXANDER RODRíCUEZ LÓPÉZ | AB23: GIUSSEPE SALVATORE SCOPPETTA TORRES | AC23: PLANEACION | AD23: 310 47 994000103968 | AE23: 25/02/2020 | AF23: 29/12/2020 | AG23: NA | AH23: 0 | AI23: NA | AJ23: NA | AK23: NA | AL23: NA | AM23: NA | AN23: NA | AO23: NA | AP23: NA | AQ23: NA | AR23: NA | AS23: NA | AT23: NA | AU23: NA | AV23: NA | AW23: NA | AX23: NA
A24: CONTRATACION DIRECTA | B24: Contratos de prestación de servicios | C24: TERMINADO | D24: FDLK-CD-18-2020 | E24: CPS-018-2020 | F24: =VLOOKUP(E24,[1]Hoja1!D$3:E$393,2,0) -> 1 | G24: JUDITH JACKELIN RAMOS ANGULO | H24: 1089512891 | I24: JUDITH JACKELIN RAMOS ANGULO | J24: 1089512891 | L24: https://community.secop.gov.co/Public/Tendering/OpportunityDetail/Index?noticeUID=CO1.NTC.1135035&isFromPublicArea=True&isModal=False | M24: PRESTACIÓN DE SERVICIOS PROFESIONALES APOYANDO AL(A) ALCALDE(SA) LOCAL EN EL FORTALECIMIENTO E INCLUSIÓN DE LAS COMUNIDADES NEGRAS, AFROCOLOMBIANAS Y PALENQUERAS EN EL MARCO DE LA POLÍTICA PÚBLICA DISTRITAL AFRODESCENDIENTES Y LOS ESPACIOS DE PARTICIPACIÓN | N24: INVERSIÓN | O24: 603 | P24: 22048000 | Q24: 1371 | R24: Fortalecimiento de la participación | S24: 2020-02-27 | T24: 2020-03-04 | U24: 2020-09-02 | V24: 22048000 | W24: 4 | X24: 5512000 | Y24: 718 | Z24: 22048000 | AA24: LEONARDO ALEXANDER RODRíCUEZ LÓPÉZ | AB24: DERLY KATHERINE SANCHEZ | AC24: PARTICIPACION | AD24: 33-46-101022291 | AE24: 27/2/2020 | AF24: 2021-05-01 | AG24: NA | AH24: 0 | AI24: NA | AJ24: NA | AK24: NA | AL24: NA | AM24: NA | AN24: 2020-07-03 | AO24: 60 | AP24: DIAS | AQ24: 11024000 | AR24: 2020-07-03 | AS24: 60 | AT24: DIAS | AU24: NA | AV24: NA | AW24: NA | AX24: NA
A25: CONTRATACION DIRECTA | B25: Contratos de prestación de servicios | C25: TERMINADO | D25: FDLK-CD-19-2020 | E25: CPS-019-2020 | F25: =VLOOKUP(E25,[1]Hoja1!D$3:E$393,2,0) -> 1 | G25: RAQUEL ANDREA DEVIA HERNANDEZ | H25: 53.076.898 | I25: RAQUEL ANDREA DEVIA HERNANDEZ | J25: 53.076.898 | L25: https://community.secop.gov.co/Public/Tendering/OpportunityDetail/Index?noticeUID=CO1.NTC.1135116&isFromPublicArea=True&isModal=False | M25: PRESTACIÓN DE SERVICIOS PROFESIONALES PARA LA OPERACIÓN, PRESTACIÓN SEGUIMIENTO Y CUMPLIMIENTO DE LOS PROCEDIMIENTOS ADMINISTRATIVOS, OPERATIVOS Y PROGRAMÁTICOS DEL SERVICIO APOYO ECONÓMICO TIPO C, QUE CONTRIBUYAN A LA GARANTÍA DE LOS DERECHOS DE LA POBLACIÓN MAYOR EN EL MARCO DE LA POLÍTICA PÚBLICA SOCIAL PARA EL ENVEJECIMIENTO Y LA VEJEZ EN EL DISTRITO CAPITAL A CARGO DE LA ALCALDÍA LOCAL DE KENNEDY | N25: INVERSIÓN | O25: 629 | P25: 22048000 | Q25: 1378 | R25: Igualdad y autonomía para una Kennedy incluyente | S25: 2020-02-27 | T25: 2020-02-28 | U25: 2020-06-27 | V25: 20684000 | W25: 4 | X25: 5171000 | Y25: 721 | Z25: 20684000 | AA25: LEONARDO ALEXANDER RODRíCUEZ LÓPÉZ | AB25: GIUSSEPE SALVATORE SCOPPETTA TORRES | AC25: PLANEACION | AD25: 1146101012838 | AE25: 27/2/2020 | AF25: 30/12/2020 | AG25: NA | AH25: 0 | AI25: NA | AJ25: NA | AK25: NA | AL25: NA | AM25: NA | AN25: NA | AO25: NA | AP25: NA | AQ25: NA | AR25: NA | AS25: NA | AT25: NA | AU25: NA | AV25: NA | AW25: NA | AX25: NA
A26: CONTRATACION DIRECTA | B26: Contratos de prestación de servicios | C26: TERMINADO | D26: FDLK-CD-20-2020 | E26: CPS-020-2020 | F26: =VLOOKUP(E26,[1]Hoja1!D$3:E$393,2,0) -> 1 | G26: HECTOR DUARTE MENDEZ | H26: 1030523881 | I26: HECTOR DUARTE MENDEZ | J26: 1030523881 | L26: https://community.secop.gov.co/Public/Tendering/OpportunityDetail/Index?noticeUID=CO1.NTC.1135915&isFromPublicArea=True&isModal=False | M26: APOYAR JURÍDICAMENTE LA EJECUCIÓN DE LAS ACCIONES REQUERIDAS PARA LA DEPURACIÓN DE LAS ACTUACIONES ADMINISTRATIVAS QUE CURSAN EN LA ALCALDÍA LOCAL. | N26: INVERSIÓN | O26: 665 | P26: 22048000 | Q26: 1363 | R26: Fortalecimiento de la gestión local y de las acciones de vigilancia y control | S26: 2020-02-27 | T26: 2020-03-02 | U26: 2020-09-01 | V26: 22048000 | W26: 4 | X26: 5512000 | Y26: 727 | Z26: 22048000 | AA26: LEONARDO ALEXANDER RODRíCUEZ LÓPÉZ | AB26: NORMA LETICIA GUZMAN RIMOLLI | AC26: GESTION POLICIVA Y JURIDICA | AD26: 21-44-101318698 | AE26: 2020-07-02 | AF26: 2021-07-01 | AG26: NA | AH26: 0 | AI26: NA | AJ26: NA | AK26: NA | AL26: NA | AM26: NA | AN26: 2020-07-01 | AO26: 60 | AP26: DIAS | AQ26: 11024000 | AR26: 2020-07-01 | AS26: 60 | AT26: DIAS | AU26: NA | AV26: NA | AW26: NA | AX26: NA
A27: CONTRATACION DIRECTA | B27: Contratos de prestación de servicios | C27: TERMINADO | D27: FDLK-CD-21-2020 | E27: CPS-021-2020 | F27: =VLOOKUP(E27,[1]Hoja1!D$3:E$393,2,0) -> 1 | G27: MALEIDY ALEXANDRA MARTÍNEZ CHAVES | H27: 52235022 | I27: MALEIDY ALEXANDRA MARTÍNEZ CHAVES | J27: 52235022 | L27: https://community.secop.gov.co/Public/Tendering/OpportunityDetail/Index?noticeUID=CO1.NTC.1135490&isFromPublicArea=True&isModal=False | M27: PRESTACIÓN DE SERVICIOS PROFESIONALES PARA PARA LA OPERACIÓN, PRESTACIÓN SEGUIMIENTO Y CUMPLIMIENTO DE LOS PROCEDIMIENTOS ADMINISTRATIVOS, OPERATIVOS Y PROGRAMÁTICOS DEL SERVICIO APOYO ECONÓMICO TIPO C, QUE CONTRIBUYAN A LA GARANTÍA DE LOS DERECHOS DE LA POBLACIÓN MAYOR EN EL MARCO DE LA POLÍTICA PÚBLICA SOCIAL PARA EL ENVEJECIMIENTO Y LA VEJEZ EN EL DISTRITO CAPITAL A CARGO DE LA ALCALDÍA LOCAL DE KENNEDY. | N27: INVERSIÓN | O27: 630 | P27: 22048000 | Q27: 1378 | R27: Igualdad y autonomía para una Kennedy incluyente | S27: 2020-02-27 | T27: 2020-03-06 | U27: 2020-07-05 | V27: 20684000 | W27: 4 | X27: 5171000 | Y27: 726 | Z27: 20684000 | AA27: LEONARDO ALEXANDER RODRíCUEZ LÓPÉZ | AB27: GIUSSEPE SALVATORE SCOPPETTA TORRES | AC27: PLANEACION | AD27: 15-44-101224949 | AE27: 27/2/2020 | AF27: 2021-05-01 | AG27: NA | AH27: 0 | AI27: NA | AJ27: NA | AK27: NA | AL27: NA | AM27: NA | AN27: NA | AO27: NA | AP27: NA | AQ27: NA | AR27: NA | AS27: NA | AT27: NA | AU27: NA | AV27: NA | AW27: NA | AX27: NA
A28: CONTRATACION DIRECTA | B28: Contratos de prestación de servicios | C28: TERMINADO | D28: FDLK-CD-22-2020 | E28: CPS-022-2020 | F28: =VLOOKUP(E28,[1]Hoja1!D$3:E$393,2,0) -> 1 | G28: JOHN WILLIAM RUIZ VARGAS | H28: 80228752 | I28: JOHN WILLIAM RUIZ VARGAS | J28: 80228752 | L28: https://community.secop.gov.co/Public/Tendering/OpportunityDetail/Index?noticeUID=CO1.NTC.1136783&isFromPublicArea=True&isModal=False | M28: PRESTAR LOS SERVICIOS DE APOYO EN EL MANTENIMIENTO DE LOS INMUEBLES EN LOS CUALES SE DESARROLLE LA MISIONALIDAD DE LA ALCALDÍA LOCAL DE KENNEDY Y LA JUNTA ADMINISTRADORA LOCAL DE KENNEDY. | N28: INVERSIÓN | O28: 693 | P28: 9988000 | Q28: 1363 | R28: Fortalecimiento de la gestión local y de las acciones de vigilancia y control | S28: 2020-02-27 | T28: 2020-03-02 | U28: 2020-08-31 | V28: 9988000 | W28: 4 | X28: 2497000 | Y28: 734 | Z28: 9988000 | AA28: LEONARDO ALEXANDER RODRíCUEZ LÓPÉZ | AB28: MARIA DEL PILAR MUÑOZ TORRES | AC28: ADMINISTRATIVO Y FINANCIERO | AD28: 390 47 994000104084 | AE28: 28/02/2020 | AF28: 2021-03-01 | AG28: NA | AH28: 0 | AI28: NA | AJ28: NA | AK28: NA | AL28: NA | AM28: NA | AN28: 2020-07-01 | AO28: 60 | AP28: DIAS | AQ28: 4994000 | AR28: 2020-07-01 | AS28: 60 | AT28: DIAS | AU28: NA | AV28: NA | AW28: NA | AX28: NA
A29: CONTRATACION DIRECTA | B29: Contratos de prestación de servicios | C29: TERMINADO | D29: FDLK-CD-23-2020 | E29: CPS-023-2020 | F29: =VLOOKUP(E29,[1]Hoja1!D$3:E$393,2,0) -> 1 | G29: MONICA PATRICIA GUARNIZO DIAZ | H29: 1024460834 | I29: MONICA PATRICIA GUARNIZO DIAZ | J29: 1024460834 | L29: https://community.secop.gov.co/Public/Tendering/OpportunityDetail/Index?noticeUID=CO1.NTC.1136450&isFromPublicArea=True&isModal=False | M29: APOYAR LA GESTIÓN DOCUMENTAL DE LA ALCALDÍA LOCAL, ACOMPAÑANDO AL EQUIPO JURÍDICO DE DEPURACIÓN EN LAS LABORES OPERATIVAS QUE GENERA EL PROCESO DE IMPULSO DE LAS ACTUACIONES ADMINISTRATIVAS EXISTENTES EN LAS DIFERENTES ALCALDÍAS LOCALES | N29: INVERSIÓN | O29: 893 | P29: 9988000 | Q29: 1363 | R29: Fortalecimiento de la gestión local y de las acciones de vigilancia y control | S29: 2020-02-27 | T29: 2020-03-06 | U29: 2020-09-05 | V29: 9988000 | W29: 4 | X29: 2497000 | Y29: 728 | Z29: 9988000 | AA29: LEONARDO ALEXANDER RODRíCUEZ LÓPÉZ | AB29: NORMA LETICIA GUZMAN RIMOLLI | AC29: GESTION POLICIVA Y JURIDICA | AD29: 390 47 99400005214 | AE29: 27/02/2020 | AF29: 2021-10-01 | AG29: NA | AH29: 0 | AI29: NA | AJ29: NA | AK29: NA | AL29: NA | AM29: NA | AN29: 2020-06-26 | AO29: 60 | AP29: DIAS | AQ29: 4994000 | AR29: 2020-06-26 | AS29: 60 | AT29: DIAS | AU29: NA | AV29: NA | AW29: NA | AX29: NA
A30: CONTRATACION DIRECTA | B30: Contratos de prestación de servicios | C30: TERMINADO | D30: FDLK-CD-24-2020 | E30: CPS-024-2020 | F30: =VLOOKUP(E30,[1]Hoja1!D$3:E$393,2,0) -> 1 | G30: GISELLE ANDREA SAENZ GAITAN | H30: 1030625199 | I30: GISELLE ANDREA SAENZ GAITAN | J30: 1030625199 | L30: https://community.secop.gov.co/Public/Tendering/OpportunityDetail/Index?noticeUID=CO1.NTC.1136698&isFromPublicArea=True&isModal=False | M30: APOYAR LA GESTIÓN DOCUMENTAL DE LA ALCALDÍA LOCAL, ACOMPAÑANDO AL EQUIPO JURÍDICO DE DEPURACIÓN EN LAS LABORES OPERATIVAS QUE GENERA EL PROCESO DE IMPULSO DE LAS ACTUACIONES ADMINISTRATIVAS EXISTENTES EN LAS DIFERENTES ALCALDÍAS LOCALES. | N30: INVERSIÓN | O30: 668 | P30: 9988000 | Q30: 1363 | R30: Fortalecimiento de la gestión local y de las acciones de vigilancia y control | S30: 2020-02-28 | T30: 2020-03-03 | U30: 2020-09-02 | V30: 9988000 | W30: 4 | X30: 2497000 | Y30: 755 | Z30: 9988000 | AA30: LEONARDO ALEXANDER RODRíCUEZ LÓPÉZ | AB30: NORMA LETICIA GUZMAN RIMOLLI | AC30: GESTION POLICIVA Y JURIDICA | AD30: 380-47-994000104145 | AE30: 28/02/202 | AF30: 2020-05-01 | AG30: NA | AH30: 0 | AI30: NA | AJ30: NA | AK30: NA | AL30: NA | AM30: NA | AN30: 2020-07-04 | AO30: 60 | AP30: DIAS | AQ30: 4994000 | AR30: 2020-07-04 | AS30: 60 | AT30: DIAS | AU30: NA | AV30: NA | AW30: NA | AX30: NA
A31: CONTRATACION DIRECTA | B31: Contratos de prestación de servicios | C31: TERMINADO | D31: FDLK-CD-25-2020 | E31: CPS-025-2020 | F31: =VLOOKUP(E31,[1]Hoja1!D$3:E$393,2,0) -> 1 | G31: LUZBY DAHIANNA ROMERO MANCERA | H31: 53155411 | I31: LUZBY DAHIANNA ROMERO MANCERA | J31: 53155411 | L31: https://community.secop.gov.co/Public/Tendering/OpportunityDetail/Index?noticeUID=CO1.NTC.1138484&isFromPublicArea=True&isModal=False | M31: APOYAR JURÍDICAMENTE LA EJECUCIÓN DE LAS ACCIONES REQUERIDAS PARA LA DEPURACIÓN DE LAS ACTUACIONES ADMINISTRATIVAS QUE CURSAN EN LA ALCALDÍA LOCAL | N31: INVERSIÓN | O31: 610 | P31: 22048000 | Q31: 1363 | R31: Fortalecimiento de la gestión local y de las acciones de vigilancia y control | S31: 2020-02-28 | T31: 2020-03-03 | U31: 2020-03-03 | V31: 22048000 | W31: 4 | X31: 5512000 | Y31: 737 | Z31: 22048000 | AA31: LEONARDO ALEXANDER RODRíCUEZ LÓPÉZ | AB31: NORMA LETICIA GUZMAN RIMOLLI | AC31: GESTION POLICIVA Y JURIDICA | AD31: 380-47-994000104111 | AE31: 28/02/202 | AF31: 2021-09-01 | AG31: NA | AH31: 0 | AI31: NA | AJ31: NA | AK31: NA | AL31: NA | AM31: NA | AN31: NA | AO31: NA | AP31: NA | AQ31: NA | AR31: NA | AS31: NA | AT31: NA | AU31: NA | AV31: NA | AW31: NA | AX31: NA
A32: CONTRATACION DIRECTA | B32: Contratos de prestación de servicios | C32: TERMINADO | D32: FDLK-CD-26-2020 | E32: CPS-026-2020 | F32: =VLOOKUP(E32,[1]Hoja1!D$3:E$393,2,0) -> 1 | G32: JUAN ANTONIO DELGADILLO COBOS | H32: 16668954 | I32: JUAN ANTONIO DELGADILLO COBOS | J32: 16668954 | L32: https://community.secop.gov.co/Public/Tendering/OpportunityDetail/Index?noticeUID=CO1.NTC.1138886&isFromPublicArea=True&isModal=False | M32: APOYAR LA GESTIÓN DOCUMENTAL DE LA ALCALDÍA LOCAL, ACOMPAÑANDO AL EQUIPO JURÍDICO DE DEPURACIÓN EN LAS LABORES OPERATIVAS QUE GENERA EL PROCESO DE IMPULSO DE LAS ACTUACIONES ADMINISTRATIVAS EXISTENTES EN LAS DIFERENTES ALCALDÍAS LOCALES | N32: INVERSIÓN | O32: 667 | P32: 9988000 | Q32: 1363 | R32: Fortalecimiento de la gestión local y de las acciones de vigilancia y control | S32: 2020-02-28 | T32: 2020-03-04 | U32: 2020-07-04 | V32: 9988000 | W32: 4 | X32: 2497000 | Y32: 740 | Z32: 9988000 | AA32: LEONARDO ALEXANDER RODRíCUEZ LÓPÉZ | AD32: 380-47-994000104167 | AE32: 28/02/202 | AF32: 2021-08-01 | AG32: NA | AH32: 0 | AI32: NA | AJ32: NA | AK32: NA | AL32: NA | AM32: NA | AN32: NA | AO32: NA | AP32: NA | AQ32: NA | AR32: NA | AS32: NA | AT32: NA | AU32: NA | AV32: NA | AW32: NA | AX32: NA
A33: CONTRATACION DIRECTA | B33: Contratos de prestación de servicios | C33: TERMINADO | D33: FDLK-CD-27-2020 | E33: CPS-027-2020 | F33: =VLOOKUP(E33,[1]Hoja1!D$3:E$393,2,0) -> 1 | G33: WILSON STEVEN LADINO CRIOLLO | H33: 1030586777 | I33: WILSON STEVEN LADINO CRIOLLO | J33: 1030586777 | L33: https://community.secop.gov.co/Public/Tendering/OpportunityDetail/Index?noticeUID=CO1.NTC.1139024&isFromPublicArea=True&isModal=False | M33: APOYAR LA GESTIÓN DOCUMENTAL DE LA ALCALDÍA LOCAL, ACOMPAÑANDO AL EQUIPO JURÍDICO DE DEPURACIÓN EN LAS LABORES OPERATIVAS QUE GENERA EL PROCESO DE IMPULSO DE LAS ACTUACIONES ADMINISTRATIVAS EXISTENTES EN LAS DIFERENTES ALCALDÍAS LOCALES | N33: INVERSIÓN | O33: 705 | P33: 9988000 | Q33: 1363 | R33: Fortalecimiento de la gestión local y de las acciones de vigilancia y control | S33: 2020-02-28 | T33: 2020-03-03 | U33: 2020-09-02 | V33: 9988000 | W33: 4 | X33: 2497000 | Y33: 753 | Z33: 9988000 | AA33: LEONARDO ALEXANDER RODRíCUEZ LÓPÉZ | AB33: NORMA LETICIA GUZMAN RIMOLLI | AC33: GESTION POLICIVA Y JURIDICA | AD33: 380-47-994000104128 | AE33: 28/02/2020 | AF33: 2021-03-01 | AG33: NA | AH33: 0 | AI33: NA | AJ33: NA | AK33: NA | AL33: NA | AM33: NA | AN33: 2020-07-01 | AO33: 60 | AP33: DIAS | AQ33: 4994000 | AR33: 2020-07-01 | AS33: 60 | AT33: DIAS | AU33: NA | AV33: NA | AW33: NA | AX33: NA
A34: CONTRATACION DIRECTA | B34: Contratos de prestación de servicios | C34: TERMINADO | D34: FDLK-CD-28-2020 | E34: CPS-028-2020 | F34: =VLOOKUP(E34,[1]Hoja1!D$3:E$393,2,0) -> 1 | G34: LILLY LORENA BARBOSA GUANA | H34: 53074455 | I34: LILLY LORENA BARBOSA GUANA | J34: 53074455 | L34: https://community.secop.gov.co/Public/Tendering/OpportunityDetail/Index?noticeUID=CO1.NTC.1138884&isFromPublicArea=True&isModal=False | M34: PRESTAR LOS SERVICIOS PROFESIONALES ESPECIALIZADOS COMO ABOGADO SUSTANCIADOR, PARA APOYAR EL TRÁMITE DE LOS ASUNTOS DEL ÁREA DE GESTIÓN POLICIVA JURÍDICA | N34: INVERSIÓN | O34: 666 | P34: 31308000 | Q34: 1363 | R34: Fortalecimiento de la gestión local y de las acciones de vigilancia y control | S34: 2020-02-28 | T34: 2020-03-03 | U34: 2020-09-02 | V34: 31308000 | W34: 4 | X34: 7827000 | Y34: 735 | Z34: 31308000 | AA34: LEONARDO ALEXANDER RODRíCUEZ LÓPÉZ | AB34: NORMA LETICIA GUZMAN RIMOLLI | AC34: GESTION POLICIVA Y JURIDICA | AD34: 17-46-101014107 | AE34: 28/02/2020 | AF34: 2021-05-01 | AG34: NA | AH34: 0 | AI34: NA | AJ34: NA | AK34: NA | AL34: NA | AM34: NA | AN34: 2020-07-01 | AO34: 60 | AP34: DIAS | AQ34: 15654000 | AR34: 2020-07-01 | AS34: 60 | AT34: DIAS | AU34: NA | AV34: NA | AW34: NA | AX34: NA
A35: CONTRATACION DIRECTA | B35: Contratos de prestación de servicios | C35: TERMINADO | D35: FDLK-CD-29-2020 | E35: CPS-029-2020 | F35: =VLOOKUP(E35,[1]Hoja1!D$3:E$393,2,0) -> 1 | G35: ANDRES JOSE FUENTES | H35: 1102836251 | I35: ANDRES JOSE FUENTES | J35: 1102836251 | L35: https://community.secop.gov.co/Public/Tendering/OpportunityDetail/Index?noticeUID=CO1.NTC.1138963&isFromPublicArea=True&isModal=False | M35: APOYAR JURÍDICAMENTE LA EJECUCIÓN DE LAS ACCIONES REQUERIDAS PARA LA DEPURACIÓN DE LAS ACTUACIONES ADMINISTRATIVAS QUE CURSAN EN LA ALCALDÍA LOCAL | N35: INVERSIÓN | O35: 707 | P35: 22048000 | Q35: 1363 | R35: Fortalecimiento de la gestión local y de las acciones de vigilancia y control | S35: 2020-02-28 | T35: 2020-03-04 | U35: 2020-07-03 | V35: 22048000 | W35: 4 | X35: 5512000 | Y35: 754 | Z35: 22048000 | AA35: LEONARDO ALEXANDER RODRíCUEZ LÓPÉZ | AC35: GESTION POLICIVA Y JURIDICA | AD35: 380-47-994000104134 | AE35: 28/02/2020 | AF35: 2021-05-01 | AG35: NA | AH35: 0 | AI35: NA | AJ35: NA | AK35: NA | AL35: NA | AM35: NA | AN35: NA | AO35: NA | AP35: NA | AQ35: NA | AR35: NA | AS35: NA | AT35: NA | AU35: NA | AV35: NA | AW35: NA | AX35: NA
A36: CONTRATACION DIRECTA | B36: Contratos de prestación de servicios | C36: TERMINADO | D36: FDLK-CD-30-2020 | E36: CPS-030-2020 | F36: =VLOOKUP(E36,[1]Hoja1!D$3:E$393,2,0) -> 1 | G36: HILDA ALEXANDRA MORENO MURCIA | H36: 1033759343 | I36: HILDA ALEXANDRA MORENO MURCIA | J36: 1033759343 | L36: https://community.secop.gov.co/Public/Tendering/OpportunityDetail/Index?noticeUID=CO1.NTC.1138899&isFromPublicArea=True&isModal=False | M36: APOYAR LA GESTIÓN DOCUMENTAL DE LA ALCALDÍA LOCAL, ACOMPAÑANDO AL EQUIPO JURÍDICO DE DEPURACIÓN EN LAS LABORES OPERATIVAS QUE GENERA EL PROCESO DE IMPULSO DE LAS ACTUACIONES ADMINISTRATIVAS EXISTENTES EN LAS DIFERENTES ALCALDÍAS LOCALES. | N36: INVERSIÓN | O36: 692 | P36: 9988000 | Q36: 1363 | R36: Fortalecimiento de la gestión local y de las acciones de vigilancia y control | S36: 2020-02-28 | T36: 2020-03-06 | U36: 2020-09-05 | V36: 9988000 | W36: 4 | X36: 2497000 | Y36: 756 | Z36: 9988000 | AA36: LEONARDO ALEXANDER RODRíCUEZ LÓPÉZ | AB36: NORMA LETICIA GUZMAN RIMOLLI | AC36: GESTION POLICIVA Y JURIDICA | AD36: 21-46-101014581 | AE36: 28/02/2020 | AF36: 2021-03-01 | AG36: NA | AH36: 0 | AI36: NA | AJ36: NA | AK36: NA | AL36: NA | AM36: NA | AN36: 2020-07-03 | AO36: 60 | AP36: DIAS | AQ36: 4994000 | AR36: 2020-07-03 | AS36: 60 | AT36: DIAS | AU36: NA | AV36: NA | AW36: NA | AX36: NA
A37: CONTRATACION DIRECTA | B37: Contratos de prestación de servicios | C37: TERMINADO | D37: FDLK-CD-31-2020 | E37: CPS-031-2020 | F37: =VLOOKUP(E37,[1]Hoja1!D$3:E$393,2,0) -> 1 | G37: MARIANA OBANDO JIMENEZ | H37: 52191279 | I37: MARIANA OBANDO JIMENEZ | J37: 52191279 | L37: https://community.secop.gov.co/Public/Tendering/OpportunityDetail/Index?noticeUID=CO1.NTC.1139349&isFromPublicArea=True&isModal=False | M37: APOYAR JURÍDICAMENTE LA EJECUCIÓN DE LAS ACCIONES REQUERIDAS PARA LA DEPURACIÓN DE LAS ACTUACIONES ADMINISTRATIVAS QUE CURSAN EN LA ALCALDÍA LOCAL | N37: INVERSIÓN | O37: 664 | P37: 22048000 | Q37: 1363 | R37: Fortalecimiento de la gestión local y de las acciones de vigilancia y control | S37: 2020-02-28 | T37: 2020-03-04 | U37: 2020-07-03 | V37: 22048000 | W37: 4 | X37: 5512000 | Y37: 749 | Z37: 22048000 | AA37: LEONARDO ALEXANDER RODRíCUEZ LÓPÉZ | AB37: NORMA LETICIA GUZMAN RIMOLLI | AC37: GESTION POLICIVA Y JURIDICA | AD37: 380-47-994000104113 | AE37: 28/02/2020 | AF37: 2021-04-01 | AG37: NA | AH37: 0 | AI37: NA | AJ37: NA | AK37: NA | AL37: NA | AM37: NA | AN37: NA | AO37: NA | AP37: NA | AQ37: NA | AR37: NA | AS37: NA | AT37: NA | AU37: NA | AV37: NA | AW37: NA | AX37: NA
A38: CONTRATACION DIRECTA | B38: Contratos de prestación de servicios | C38: TERMINADO | D38: FDLK-CD-32-2020 | E38: CPS-032-2020 | F38: =VLOOKUP(E38,[1]Hoja1!D$3:E$393,2,0) -> 1 | G38: YEISSON YAZATH BARAJAS GONZALEZ | H38: 7121658 | I38: YEISSON YAZATH BARAJAS GONZALEZ | J38: 7121658 | L38: https://community.secop.gov.co/Public/Tendering/OpportunityDetail/Index?noticeUID=CO1.NTC.1139664&isFromPublicArea=True&isModal=False | M38: APOYAR TÉCNICAMENTE LAS DISTINTAS ETAPAS DE LOS PROCESOS DE COMPETENCIA DE LA ALCALDÍA LOCAL PARA LA DEPURACIÓN DE ACTUACIONES ADMINISTRATIVAS | N38: INVERSIÓN | O38: 663 | P38: 26280000 | Q38: 1363 | R38: Fortalecimiento de la gestión local y de las acciones de vigilancia y control | S38: 2020-02-28 | T38: 2020-03-03 | U38: 2020-09-02 | V38: 26280000 | W38: 4 | X38: 6570000 | Y38: 750 | Z38: 26280000 | AA38: LEONARDO ALEXANDER RODRíCUEZ LÓPÉZ | AB38: GUSTAVO VANEGAS RUIZ | AC38: Inspecciones | AD38: 17-46-101014115 | AE38: 2021-02-03 | AF38: 2021-04-01 | AG38: NA | AH38: 0 | AI38: NA | AJ38: NA | AK38: NA | AL38: NA | AM38: NA | AN38: 2020-07-02 | AO38: 60 | AP38: DIAS | AQ38: 13140000 | AR38: 2020-07-02 | AS38: 60 | AT38: DIAS | AU38: NA | AV38: NA | AW38: NA | AX38: NA
A39: CONTRATACION DIRECTA | B39: Contratos de prestación de servicios | C39: TERMINADO | D39: FDLK-CD-33-2020 | E39: CPS-033-2020 | F39: =VLOOKUP(E39,[1]Hoja1!D$3:E$393,2,0) -> 1 | G39: ANA MILENA VELASCO VALENCIA | H39: 1113520580 | I39: ANA MILENA VELASCO VALENCIA | J39: 1113520580 | L39: https://community.secop.gov.co/Public/Tendering/OpportunityDetail/Index?noticeUID=CO1.NTC.1139667&isFromPublicArea=True&isModal=False | M39: PRESTAR LOS SERVICIOS DE APOYO A LA JUNTA ADMINISTRADORA LOCAL DE KENNEDY DE CONFORMIDAD CON EL TRÁMITE DE LOS ASUNTOS DE SU COMPETENCIA | N39: INVERSIÓN | O39: 706 | P39: 9988000 | Q39: 1363 | R39: Fortalecimiento de la gestión local y de las acciones de vigilancia y control | S39: 2020-02-28 | T39: 2020-03-04 | U39: 2020-07-03 | V39: 9988000 | W39: 4 | X39: 2497000 | Y39: 751 | Z39: 9988000 | AA39: LEONARDO ALEXANDER RODRíCUEZ LÓPÉZ | AB39: SANDRA LILIANA CORREDOR BUITRAGO | AC39: JAL | AD39: 380-47-994000104148 | AE39: 28/02/2020 | AF39: 2021-03-01 | AG39: NA | AH39: 0 | AI39: NA | AJ39: NA | AK39: NA | AL39: NA | AM39: NA | AN39: NA | AO39: NA | AP39: NA | AQ39: NA | AR39: NA | AS39: NA | AT39: NA | AU39: NA | AV39: NA | AW39: NA | AX39: NA
A40: CONTRATACION DIRECTA | B40: Contratos de prestación de servicios | C40: TERMINADO | D40: FDLK-CD-34-2020 | E40: CPS-034-2020 | F40: =VLOOKUP(E40,[1]Hoja1!D$3:E$393,2,0) -> 1 | G40: ELIZABETH SANCHEZ CASTILLO | H40: 52774413 | I40: ELIZABETH SANCHEZ CASTILLO | J40: 52774413 | L40: https://community.secop.gov.co/Public/Tendering/OpportunityDetail/Index?noticeUID=CO1.NTC.1146867&isFromPublicArea=True&isModal=False | M40: PRESTAR LOS SERVICIOS TÉCNICOS PARA LA OPERACIÓN, SEGUIMIENTO Y CUMPLIMIENTO DE LOS PROCESOS Y PROCEDIMIENTOS DEL SERVICIO APOYOS PARA LA SEGURIDAD ECONÓMICA TIPO C, REQUERIDOS PARA EL OPORTUNO Y ADECUADO REGISTRO, CRUCE Y REPORTE DE LOS DATOS EN EL SISTEMA MISIONAL SIRBE, QUE CONTRIBUYAN A LA GARANTÍA DE LOS DERECHOS DE LA POBLACIÓN MAYOR EN EL MARCO DE LA POLÍTICA PÚBLICA SOCIAL PARA EL ENVEJECIMIENTO Y LA VEJEZ EN EL DISTRITO CAPITAL A CARGO DE LA ALCALDÍA LOCAL DE KENNEDY | N40: INVERSIÓN | O40: 710 | P40: 13432000 | Q40: 1378 | R40: Igualdad y autonomía para una Kennedy incluyente | S40: 2020-03-04 | T40: 2020-03-12 | U40: 2020-09-11 | V40: 13432000 | W40: 4 | X40: 3358000 | Y40: 768 | Z40: 13432000 | AA40: LEONARDO ALEXANDER RODRíCUEZ LÓPÉZ | AB40: GIUSSEPE SALVATORE SCOPPETTA TORRES | AC40: PLANEACION | AD40: 64-44-101017768 | AE40: 2020-04-03 | AF40: 15/1/2021 | AG40: NA | AH40: 0 | AI40: NA | AJ40: NA | AK40: NA | AL40: NA | AM40: NA | AN40: 2020-07-10 | AO40: 60 | AP40: DIAS | AQ40: 6716000 | AR40: 2020-07-10 | AS40: 60 | AT40: DIAS | AU40: NA | AV40: NA | AW40: NA | AX40: NA
A41: CONTRATACION DIRECTA | B41: Contratos de prestación de servicios | C41: TERMINADO | D41: FDLK-CD-35-2020 | E41: CPS-035-2020 | F41: =VLOOKUP(E41,[1]Hoja1!D$3:E$393,2,0) -> 1 | G41: YURI ANDREA BRAHAM MORENO | H41: 53.015.125 | I41: YURI ANDREA BRAHAM MORENO | J41: 53.015.125 | L41: https://community.secop.gov.co/Public/Tendering/OpportunityDetail/Index?noticeUID=CO1.NTC.1157752&isFromPublicArea=True&isModal=False | M41: APOYAR JURÍDICAMENTE LA EJECUCIÓN DE LAS ACCIONES REQUERIDAS PARA EL TRÁMITE E IMPULSO PROCESAL DE LAS ACTUACIONES CONTRAVENCIONALES Y/O QUERELLAS QUE CURSEN EN LAS INSPECCIONES DE POLICÍA DE LA LOCALIDAD. | N41: INVERSIÓN | O41: 715 | P41: 16800000 | Q41: 1363 | R41: Fortalecimiento de la gestión local y de las acciones de vigilancia y control | S41: 2020-03-11 | T41: 2020-03-13 | U41: 2020-09-12 | V41: 16800000 | W41: 4 | X41: 4200000 | Y41: 781 | Z41: 16800000 | AA41: LEONARDO ALEXANDER RODRíCUEZ LÓPÉZ | AB41: GUSTAVO VANEGAS RUIZ | AC41: Inspecciones | AD41: 380-47-994000104-392 | AE41: 2020-12-03 | AF41: 21/01/2021 | AG41: NA | AH41: 0 | AI41: NA | AJ41: NA | AK41: NA | AL41: NA | AM41: NA | AN41: 2020-07-10 | AO41: 60 | AP41: DIAS | AQ41: 8400000 | AR41: 2020-07-10 | AS41: 60 | AT41: DIAS | AU41: NA | AV41: NA | AW41: NA | AX41: NA
A42: CONTRATACION DIRECTA | B42: Contratos de prestación de servicios | C42: TERMINADO | D42: FDLK-CD-36-2020 | E42: CPS-036-2020 | F42: =VLOOKUP(E42,[1]Hoja1!D$3:E$393,2,0) -> 1 | G42: ELICED FERNANDA AFANADOR MONTAÑEZ | H42: 1.090.381.635 | I42: ELICED FERNANDA AFANADOR MONTAÑEZ | J42: 1.090.381.635 | L42: https://community.secop.gov.co/Public/Tendering/OpportunityDetail/Index?noticeUID=CO1.NTC.1157683&isFromPublicArea=True&isModal=False | M42: APOYAR ADMINISTRATIVA Y ASISTENCIALMENTE A LAS INSPECCIONES DE POLICÍA DE LA LOCALIDAD DE KENNEDY | N42: INVERSIÓN | O42: 713 | P42: 9988000 | Q42: 1363 | R42: Fortalecimiento de la gestión local y de las acciones de vigilancia y control | S42: 2020-03-11 | T42: 2020-03-13 | U42: 2020-09-15 | V42: 9988000 | W42: 4 | X42: 2497000 | Y42: 788 | Z42: 9988000 | AA42: LEONARDO ALEXANDER RODRíCUEZ LÓPÉZ | AB42: GUSTAVO VANEGAS RUIZ | AC42: Inspecciones | AD42: 380-47-994000104407 | AE42: 2020-12-03 | AF42: 15/01/2021 | AG42: NA | AH42: 0 | AI42: NA | AJ42: NA | AK42: NA | AL42: NA | AM42: NA | AN42: 2020-07-15 | AO42: 60 | AP42: DIAS | AQ42: 4994000 | AR42: 2020-07-15 | AS42: 60 | AT42: DIAS | AU42: NA | AV42: NA | AW42: NA | AX42: NA
A43: CONTRATACION DIRECTA | B43: Contratos de prestación de servicios | C43: TERMINADO | D43: FDLK-CD-37-2020 | E43: CPS-037-2020 | F43: =VLOOKUP(E43,[1]Hoja1!D$3:E$393,2,0) -> 1 | G43: ANDREA MILENA ZABALA CARO | H43: 1.136.883.308 | I43: ANDREA MILENA ZABALA CARO | J43: 1.136.883.308 | L43: https://community.secop.gov.co/Public/Tendering/OpportunityDetail/Index?noticeUID=CO1.NTC.1157862&isFromPublicArea=True&isModal=False | M43: APOYAR JURÍDICAMENTE LA EJECUCIÓN DE LAS ACCIONES REQUERIDAS PARA EL TRÁMITE E IMPULSO PROCESAL DE LAS ACTUACIONES CONTRAVENCIONALES Y/O QUERELLAS QUE CURSEN EN LAS INSPECCIONES DE POLICÍA DE LA LOCALIDAD | N43: INVERSIÓN | O43: 722 | P43: 16800000 | Q43: 1363 | R43: Fortalecimiento de la gestión local y de las acciones de vigilancia y control | S43: 2020-03-11 | T43: 2020-03-16 | U43: 2020-09-15 | V43: 16800000 | W43: 4 | X43: 4200000 | Y43: 782 | Z43: 16800000 | AA43: LEONARDO ALEXANDER RODRíCUEZ LÓPÉZ | AB43: GUSTAVO VANEGAS RUIZ | AC43: Inspecciones | AD43: 380-47-994000104379 | AE43: 2020-11-03 | AF43: 15/01/2021 | AG43: NA | AH43: 0 | AI43: NA | AJ43: NA | AK43: NA | AL43: NA | AM43: NA | AN43: 2020-07-10 | AO43: 60 | AP43: DIAS | AQ43: 8400000 | AR43: 2020-07-10 | AS43: 60 | AT43: DIAS | AU43: NA | AV43: NA | AW43: NA | AX43: NA
A44: CONTRATACION DIRECTA | B44: Contratos de prestación de servicios | C44: TERMINADO | D44: FDLK-CD-38-2020 | E44: CPS-038-2020 | F44: =VLOOKUP(E44,[1]Hoja1!D$3:E$393,2,0) -> 1 | G44: JORGE ANDRÉS MONCALEANO FLORIANO | H44: 79748235 | I44: JORGE ANDRÉS MONCALEANO FLORIANO | J44: 79748235 | L44: https://community.secop.gov.co/Public/Tendering/OpportunityDetail/Index?noticeUID=CO1.NTC.1159066&isFromPublicArea=True&isModal=False | M44: APOYAR TÉCNICAMENTE LAS DISTINTAS ETAPAS DE LOS PROCESOS DE COMPETENCIA DE LAS INSPECCIONES DE POLICÍA DE LA LOCALIDAD, SEGÚN REPARTO. | N44: INVERSIÓN | O44: 727 | P44: 26280000 | Q44: 1363 | R44: Fortalecimiento de la gestión local y de las acciones de vigilancia y control | S44: 2020-03-12 | T44: 2020-03-17 | U44: 2020-09-15 | V44: 26280000 | W44: 4 | X44: 6570000 | Y44: 785 | Z44: 26280000 | AA44: LEONARDO ALEXANDER RODRíCUEZ LÓPÉZ | AB44: GUSTAVO VANEGAS RUIZ | AC44: Inspecciones | AD44: 380-47-994000104418 | AE44: 2020-12-03 | AF44: 28/01/2021 | AG44: NA | AH44: 0 | AI44: NA | AJ44: NA | AK44: NA | AL44: NA | AM44: NA | AN44: 2020-07-15 | AO44: 60 | AP44: DIAS | AQ44: 13140000 | AR44: 2020-07-15 | AS44: 60 | AT44: DIAS | AU44: NA | AV44: NA | AW44: NA | AX44: NA
A45: CONTRATACION DIRECTA | B45: Contratos de prestación de servicios | C45: TERMINADO | D45: FDLK-CD-39-2020 | E45: CPS-039-2020 | F45: =VLOOKUP(E45,[1]Hoja1!D$3:E$393,2,0) -> 1 | G45: JULIO CESAR VALENCIA RODRÍGUEZ | H45: 79151959 | I45: JULIO CESAR VALENCIA RODRÍGUEZ | J45: 79151959 | L45: https://community.secop.gov.co/Public/Tendering/OpportunityDetail/Index?noticeUID=CO1.NTC.1159186&isFromPublicArea=True&isModal=False | M45: APOYAR TÉCNICAMENTE LAS DISTINTAS ETAPAS DE LOS PROCESOS DE COMPETENCIA DE LAS INSPECCIONES DE POLICÍA DE LA LOCALIDAD, SEGÚN REPARTO. | N45: INVERSIÓN | O45: 714 | P45: 26280000 | Q45: 1363 | R45: Fortalecimiento de la gestión local y de las acciones de vigilancia y control | S45: 2020-03-12 | T45: 2020-03-16 | U45: 2020-09-16 | V45: 26280000 | W45: 4 | X45: 6570000 | Y45: 786 | Z45: 26280000 | AA45: LEONARDO ALEXANDER RODRíCUEZ LÓPÉZ | AB45: GUSTAVO VANEGAS RUIZ | AC45: Inspecciones | AD45: 380 47 994000104419 | AE45: 2020-11-03 | AF45: 15/01/2021 | AG45: NA | AH45: 0 | AI45: NA | AJ45: NA | AK45: NA | AL45: NA | AM45: NA | AN45: 2020-07-16 | AO45: 60 | AP45: DIAS | AQ45: 13140000 | AR45: 2020-07-16 | AS45: 60 | AT45: DIAS | AU45: NA | AV45: NA | AW45: NA | AX45: NA
A46: CONTRATACION DIRECTA | B46: Contratos de prestación de servicios | C46: TERMINADO | D46: FDLK-CD-40-2020 | E46: CPS-040-2020 | F46: =VLOOKUP(E46,[1]Hoja1!D$3:E$393,2,0) -> 1 | G46: GUILLERMO ALBERTO RAMIREZ DUQUE | H46: 79.627.358 | I46: GUILLERMO ALBERTO RAMIREZ DUQUE | J46: 79.627.358 | L46: https://community.secop.gov.co/Public/Tendering/OpportunityDetail/Index?noticeUID=CO1.NTC.1159579&isFromPublicArea=True&isModal=False | M46: APOYAR TÉCNICAMENTE LAS DISTINTAS ETAPAS DE LOS PROCESOS DE COMPETENCIA DE LAS INSPECCIONES DE POLICÍA DE LA LOCALIDAD, SEGÚN REPARTO | N46: INVERSIÓN | O46: 730 | P46: 26280000 | Q46: 1363 | R46: Fortalecimiento de la gestión local y de las acciones de vigilancia y control | S46: 2020-03-12 | T46: 2020-03-16 | U46: 2020-09-25 | V46: 26280000 | W46: 4 | X46: 6570000 | Y46: 787 | Z46: 26280000 | AA46: LEONARDO ALEXANDER RODRíCUEZ LÓPÉZ | AB46: GUSTAVO VANEGAS RUIZ | AC46: Inspecciones | AD46: 380 47 994000104413 | AE46: 2020-12-03 | AF46: 25/1/2021 | AG46: NA | AH46: 0 | AI46: NA | AJ46: NA | AK46: NA | AL46: NA | AM46: NA | AN46: 2020-07-26 | AO46: 60 | AP46: DIAS | AQ46: 13140000 | AR46: 2020-07-26 | AS46: 60 | AT46: DIAS | AU46: NA | AV46: NA | AW46: NA | AX46: NA
A47: CONTRATACION DIRECTA | B47: Contratos de prestación de servicios | C47: TERMINADO | D47: FDLK-CD-41-2020 | E47: CPS-041-2020 | F47: =VLOOKUP(E47,[1]Hoja1!D$3:E$393,2,0) -> 1 | G47: MANUEL ALEJANDRO BAEZ QUIROGA | H47: 1016020116 | I47: MANUEL ALEJANDRO BAEZ QUIROGA | J47: 1016020116 | L47: https://community.secop.gov.co/Public/Tendering/OpportunityDetail/Index?noticeUID=CO1.NTC.1159185&isFromPublicArea=True&isModal=False | M47: APOYAR TÉCNICAMENTE LAS DISTINTAS ETAPAS DE LOS PROCESOS DE COMPETENCIA DE LAS INSPECCIONES DE POLICÍA DE LA LOCALIDAD, SEGÚN REPARTO | N47: INVERSIÓN | O47: 729 | P47: 26280000 | Q47: 1363 | R47: Fortalecimiento de la gestión local y de las acciones de vigilancia y control | S47: 2020-03-12 | T47: 2020-03-16 | U47: 2020-09-15 | V47: 26280000 | W47: 4 | X47: 6570000 | Y47: 789 | Z47: 26280000 | AA47: LEONARDO ALEXANDER RODRíCUEZ LÓPÉZ | AB47: GUSTAVO VANEGAS RUIZ | AC47: Inspecciones | AD47: 380 47 994000104413 | AE47: 13/3/2020 | AF47: 23/01/2021 | AG47: NA | AH47: 0 | AI47: NA | AJ47: NA | AK47: NA | AL47: NA | AM47: NA | AN47: 2020-07-15 | AO47: 60 | AP47: DIAS | AQ47: 13140000 | AR47: 2020-07-15 | AS47: 60 | AT47: DIAS | AU47: NA | AV47: NA | AW47: NA | AX47: NA
A48: CONTRATACION DIRECTA | B48: Contratos de prestación de servicios | C48: TERMINADO | D48: FDLK-CD-42-2020 | E48: CPS-042-2020 | F48: =VLOOKUP(E48,[1]Hoja1!D$3:E$393,2,0) -> 1 | G48: LUZ ALEJANDRA ORTIZ URREA | H48: 1122130762 | I48: LUZ ALEJANDRA ORTIZ URREA | J48: 1122130762 | L48: https://community.secop.gov.co/Public/Tendering/OpportunityDetail/Index?noticeUID=CO1.NTC.1159633&isFromPublicArea=True&isModal=False | M48: APOYAR ADMINISTRATIVA Y ASISTENCIALMENTE A LAS INSPECCIONES DE POLICÍA DE LA LOCALIDAD DE KENNEDY | N48: INVERSIÓN | O48: 726 | P48: 9988000 | Q48: 1363 | R48: Fortalecimiento de la gestión local y de las acciones de vigilancia y control | S48: 2020-03-12 | T48: 2020-03-17 | U48: 2020-09-16 | V48: 9988000 | W48: 4 | X48: 2497000 | Y48: 790 | Z48: 9988000 | AA48: LEONARDO ALEXANDER RODRíCUEZ LÓPÉZ | AB48: GUSTAVO VANEGAS RUIZ | AC48: Inspecciones | AD48: 380-47-994000104446 | AE48: 21/3/2020 | AF48: 18/01/2021 | AG48: NA | AH48: 0 | AI48: NA | AJ48: NA | AK48: NA | AL48: NA | AM48: NA | AN48: 2020-07-15 | AO48: 60 | AP48: DIAS | AQ48: 4994000 | AR48: 2020-07-15 | AS48: 60 | AT48: DIAS | AU48: NA | AV48: NA | AW48: NA | AX48: NA
A49: MINIMA CUANTIA | B49: Compra y venta de suministros | C49: TERMINADO | D49: FDLK-MC-1-2020 | E49: CCV-43-2020 | F49: =VLOOKUP(E49,[1]Hoja1!D$3:E$393,2,0) -> 1 | G49: INGENIERIA ELECTRONICA Y SISTEMAS | H49: 800.005.014-8 | I49: LUIS ALBERTO AGUDELO ROA | J49: 19213764 | L49: https://community.secop.gov.co/Public/Tendering/OpportunityDetail/Index?noticeUID=CO1.NTC.1155795&isFromPublicArea=True&isModal=False | M49: ADQUISICIÓN DE ACCESORIOS E INSUMOS PARA LA CARNETIZACIÓN DE LOS SERVIDORES DEL FONDO DE DESARROLLO LOCAL DE KENNEDY | N49: FUNCIONAMIENTO | O49: 607 | P49: 6265979 | Q49: 3 | R49: Servicios ded publicidad y el suministro o tiempo publicitario | S49: 2020-03-20 | T49: 2020-05-26 | U49: 2020-06-25 | V49: 6265979 | W49: 1 | X49: 6265979 | Y49: 836 | Z49: 6265979 | AA49: LEONARDO ALEXANDER RODRíCUEZ LÓPÉZ | AB49: JANNETH ROZO MONTILLA | AC49: NA | AD49: 21-44-101320278 | AE49: 2020-03-20 | AF49: 2020-10-16 | AG49: NA | AH49: 0 | AI49: NA | AJ49: NA | AK49: NA | AL49: NA | AM49: NA | AN49: NA | AO49: NA | AP49: NA | AQ49: NA | AR49: NA | AS49: NA | AT49: NA | AU49: NA | AV49: NA | AW49: NA | AX49: NA
A50: CONTRATACION DIRECTA | B50: Contratos de prestación de servicios | C50: TERMINADO | D50: FDLK-CD-44-2020 | E50: CPS-044-2020 | F50: =VLOOKUP(E50,[1]Hoja1!D$3:E$393,2,0) -> 1 | G50: MARTHA CECILIA ARRIOLA BECERRA | H50: 1018424460 | I50: MARTHA CECILIA ARRIOLA BECERRA | J50: 1018424460 | L50: https://community.secop.gov.co/Public/Tendering/OpportunityDetail/Index?noticeUID=CO1.NTC.1187304&isFromPublicArea=True&isModal=False | M50: PRESTAR SUS SERVICIOS PROFESIONALES APOYANDO A LA ALCALDÍA LOCAL DE KENNEDY LLEVANDO A CABO LAS ACCIONES PERTINENTES PARA APOYAR LA ATENCIÓN A LA POBLACIÓN VÍCTIMA DEL CONFLICTO ARMADO BAJO CRITERIOS DE ENFOQUE DIFERENCIAL, DESDE LOS CENTROS LOCALES DE ATENCIÓN A VÍCTIMAS CLAV EXISTENTES EN LA LOCALIDAD, CON EL FIN DE FORTALECER EL COMPONENTE DE ASISTENCIA Y ATENCIÓN DEL PLAN LOCAL DE DESARROLLO 2017-2020 | N50: INVERSIÓN | O50: 755 | P50: 49608000 | Q50: 1381 | R50: Kennedy mejor para las víctimas, la paz y la reconciliación | S50: 2020-04-01 | T50: 2020-04-06 | U50: 2020-12-31 | V50: 49608000 | W50: 9 | X50: 5512000 | Y50: 837 | Z50: 49608000 | AA50: LEONARDO ALEXANDER RODRíCUEZ LÓPÉZ | AB50: SINDY JHOANA TORRES ALVAREZ | AC50: PLANEACION | AD50: 1246101036475 | AE50: 2020-01-04 | AF50: 2021-10-07 | AG50: 2020-08-01 | AH50: 2020-10-01 | AI50: 61 | AJ50: DIAS | AK50: NA | AL50: NA | AM50: NA | AN50: NA | AO50: NA | AP50: NA | AQ50: NA | AR50: NA | AS50: NA | AT50: NA | AU50: NA | AV50: NA | AW50: NA | AX50: NA
A51: CONTRATACION DIRECTA | B51: Contratos de prestación de servicios | C51: TERMINADO | D51: FDLK-CD-45-2020 | E51: CPS-045-2020 | F51: =VLOOKUP(E51,[1]Hoja1!D$3:E$393,2,0) -> 1 | G51: SANDRA PATRICIA PINILLA DIAZ | H51: 52634654 | I51: SANDRA PATRICIA PINILLA DIAZ | J51: 52634654 | L51: https://community.secop.gov.co/Public/Tendering/OpportunityDetail/Index?noticeUID=CO1.NTC.1189941&isFromPublicArea=True&isModal=False | M51: PRESTAR APOYO EN LOS PROCESOS ADMINISTRATIVOS DEL ALMACÉN DEL FONDO DE DESARROLLO LOCAL DE KENNEDY | N51: INVERSIÓN | O51: 753 | P51: 9988000 | Q51: 1363 | R51: Fortalecimiento de la gestión local y de las acciones de vigilancia y control | S51: 2020-04-03 | T51: 2020-04-07 | U51: 2020-08-05 | V51: 9988000 | W51: 4 | X51: 2497000 | Y51: 838 | Z51: 9988000 | AA51: LEONARDO ALEXANDER RODRíCUEZ LÓPÉZ | AB51: WILSON JAVIER ACERO DIAZ | AC51: ALMACEN | AD51: 380 - 47 - 994000104809 | AE51: 2020-03-04 | AF51: 15/02/2021 | AG51: NA | AH51: 0 | AI51: NA | AJ51: NA | AK51: NA | AL51: NA | AM51: NA | AN51: NA | AO51: NA | AP51: NA | AQ51: NA | AR51: NA | AS51: NA | AT51: NA | AU51: NA | AV51: NA | AW51: NA | AX51: NA
A52: CONTRATACION DIRECTA | B52: Contratos de prestación de servicios | C52: TERMINADO | D52: FDLK-CD-46-2020 | E52: CPS-046-2020 | F52: =VLOOKUP(E52,[1]Hoja1!D$3:E$393,2,0) -> 1 | G52: JORGE EDUARDO ARROYO MARLES | H52: 79276308 | I52: JORGE EDUARDO ARROYO MARLES | J52: 79276308 | L52: https://community.secop.gov.co/Public/Tendering/OpportunityDetail/Index?noticeUID=CO1.NTC.1189944&isFromPublicArea=True&isModal=False | M52: PRESTAR APOYO EN LOS PROCESOS ADMINISTRATIVOS DEL ALMACÉN DEL FONDO DE DESARROLLO LOCAL DE KENNEDY | N52: INVERSIÓN | O52: 754 | P52: 9988000 | Q52: 1363 | R52: Fortalecimiento de la gestión local y de las acciones de vigilancia y control | S52: 2020-04-03 | T52: 2020-04-07 | U52: 2020-08-05 | V52: 9988000 | W52: 4 | X52: 2497000 | Y52: 839 | Z52: 9988000 | AA52: LEONARDO ALEXANDER RODRíCUEZ LÓPÉZ | AB52: WILSON JAVIER ACERO DIAZ | AC52: ALMACEN | AD52: 380 - 47 - 994000104810 | AE52: 2020-03-04 | AF52: 15/02/2021 | AG52: NA | AH52: 0 | AI52: NA | AJ52: NA | AK52: NA | AL52: NA | AM52: NA | AN52: NA | AO52: NA | AP52: NA | AQ52: NA | AR52: NA | AS52: NA | AT52: NA | AU52: NA | AV52: NA | AW52: NA | AX52: NA
A53: CONTRATACION DIRECTA | B53: Contratos de prestación de servicios | C53: TERMINADO | D53: FDLK-CD-47-2020 | E53: CPS-047-2020 | F53: =VLOOKUP(E53,[1]Hoja1!D$3:E$393,2,0) -> 1 | G53: JEISON ENRIQUE MORA VARGAS | H53: 79610780 | I53: JEISON ENRIQUE MORA VARGAS | J53: 79610780 | L53: https://community.secop.gov.co/Public/Tendering/OpportunityDetail/Index?noticeUID=CO1.NTC.1203334&isFromPublicArea=True&isModal=False | M53: PRESTAR LOS SERVICIOS DE APOYO EN LA CONDUCCIÓN DE LOS VEHÍCULOS LIVIANOS DEL PARQUE AUTOMOTOR DE PROPIEDAD DEL FONDO DE DESARROLLO LOCAL DE KENNEDY | N53: INVERSIÓN | O53: 775 | P53: 49940000 | Q53: 1363 | R53: Fortalecimiento de la gestión local y de las acciones de vigilancia y control | S53: 2020-04-14 | T53: 2020-04-16 | U53: 2020-08-15 | V53: 9988000 | W53: 4 | X53: 2497000 | Y53: 854 | Z53: 9988000 | AA53: LEONARDO ALEXANDER RODRíCUEZ LÓPÉZ | AB53: NILBA ALIET AREVALO CASTELLANOS | AC53: ALMACEN | AD53: 380-47-994000104894 | AE53: 14/4/2020 | AF53: 22/04/2011 | AG53: NA | AH53: 0 | AI53: NA | AJ53: NA | AK53: NA | AL53: NA | AM53: NA | AN53: NA | AO53: NA | AP53: NA | AQ53: NA | AR53: NA | AS53: NA | AT53: NA | AU53: NA | AV53: NA | AW53: NA | AX53: NA
A54: CONTRATACION DIRECTA | B54: Contratos de prestación de servicios | C54: TERMINADO | D54: FDLK-CD-48-2020 | E54: CPS-048-2020 | F54: =VLOOKUP(E54,[1]Hoja1!D$3:E$393,2,0) -> 0.02723906911 | G54: EMETERIO BETANCOUR FUENTES | H54: 19076520 | I54: EMETERIO BETANCOUR FUENTES | J54: 19076520 | L54: https://community.secop.gov.co/Public/Tendering/OpportunityDetail/Index?noticeUID=CO1.NTC.1204586&isFromPublicArea=True&isModal=False | M54: PRESTAR LOS SERVICIOS TÉCNICO Y ADMINISTRATIVO EN LOS ASUNTOS RELACIONADOS CON MEDIO AMBIENTE EN EL ÁREA DE GESTIÓN POLICIVA JURÍDICA DE LA ALCALDÍA LOCAL DE KENNEDY | N54: INVERSIÓN | O54: 770 | P54: 11920000 | Q54: 1363 | R54: Fortalecimiento de la gestión local y de las acciones de vigilancia y control | S54: 2020-04-15 | T54: 2020-04-22 | U54: 2020-10-21 | V54: 11920000 | W54: 4 | X54: 2980000 | Y54: 858 | Z54: 11920000 | AA54: LEONARDO ALEXANDER RODRíCUEZ LÓPÉZ | AB54: NORMA LETICIA GUZMAN RIMOLLI | AC54: GESTION POLICIVA Y JURIDICA | AD54: 380-47-994000104900 | AE54: 15/04/2020 | AF54: 24/02/2021 | AG54: NA | AH54: 0 | AI54: NA | AJ54: NA | AK54: NA | AL54: NA | AM54: NA | AN54: 2020-08-22 | AO54: 60 | AP54: DIAS | AQ54: 5960000 | AR54: 2020-08-22 | AS54: 60 | AT54: DIAS | AU54: NA | AV54: NA | AW54: NA | AX54: NA
A55: CONTRATACION DIRECTA | B55: Contratos de prestación de servicios | C55: TERMINADO | D55: FDLK-CD-49-2020 | E55: CPS-049-2020 | F55: =VLOOKUP(E55,[1]Hoja1!D$3:E$393,2,0) -> 1 | G55: JOHN JAIRO RODRIGUEZ SANTIAGO | H55: 79743171 | I55: JOHN JAIRO RODRIGUEZ SANTIAGO | J55: 79743171 | L55: https://community.secop.gov.co/Public/Tendering/OpportunityDetail/Index?noticeUID=CO1.NTC.1203678&isFromPublicArea=True&isModal=False | M55: PRESTAR LOS SERVICIOS DE APOYO EN LA CONDUCCIÓN DE LOS VEHÍCULOS LIVIANOS DEL PARQUE AUTOMOTOR DE PROPIEDAD DEL FONDO DE DESARROLLO LOCAL DE KENNEDY | N55: INVERSIÓN | O55: 775 | P55: 49940000 | Q55: 1363 | R55: Fortalecimiento de la gestión local y de las acciones de vigilancia y control | S55: 2020-04-15 | T55: 2020-04-21 | U55: 2020-09-20 | V55: 9988000 | W55: 4 | X55: 2497000 | Y55: 853 | Z55: 9988000 | AA55: LEONARDO ALEXANDER RODRíCUEZ LÓPÉZ | AB55: NILBA ALIET AREVALO CASTELLANOS | AC55: ALMACEN | AD55: 380-47-994000104894 | AE55: 14/4/2020 | AF55: 24/4/2021 | AG55: NA | AH55: 0 | AI55: NA | AJ55: NA | AK55: NA | AL55: NA | AM55: NA | AN55: 2020-08-22 | AO55: 30 | AP55: DIAS | AQ55: 2497000 | AR55: 2020-08-22 | AS55: 30 | AT55: DIAS | AU55: NA | AV55: NA | AW55: NA | AX55: NA
A56: CONTRATACION DIRECTA | B56: Contratos de prestación de servicios | C56: TERMINADO | D56: FDLK-CD-50-2020 | E56: CPS-050-2020 | F56: =VLOOKUP(E56,[1]Hoja1!D$3:E$393,2,0) -> 1 | G56: LUZ VIVIANA CORTES GUAJE | H56: 1022405031 | I56: LUZ VIVIANA CORTES GUAJE | J56: 1022405031 | L56: https://community.secop.gov.co/Public/Tendering/OpportunityDetail/Index?noticeUID=CO1.NTC.1205260&isFromPublicArea=True&isModal=False | M56: PRESTAR LOS SERVICIOS DE APOYO ADMINISTRATIVO Y ASISTENCIAL EN ASUNTOS RELACIONADOS CON MEDIO AMBIENTE EN EL ÁREA DE GESTIÓN POLICIVA JURÍDICA DE LA ALCALDÍA LOCAL DE KENNEDY | N56: INVERSIÓN | O56: 771 | P56: 9988000 | Q56: 1363 | R56: Fortalecimiento de la gestión local y de las acciones de vigilancia y control | S56: 2020-04-16 | T56: 2020-04-22 | U56: 2020-08-16 | V56: 9988000 | W56: 4 | X56: 2497000 | Y56: 857 | Z56: 9988000 | AA56: LEONARDO ALEXANDER RODRíCUEZ LÓPÉZ | AB56: NORMA LETICIA GUZMAN RIMOLLI | AC56: GESTION POLICIVA Y JURIDICA | AD56: 3.8047994e+16 | AE56: 15/4/2020 | AF56: 25/2/2021 | AG56: NA | AH56: 0 | AI56: NA | AJ56: NA | AK56: NA | AL56: NA | AM56: NA | AN56: NA | AO56: NA | AP56: NA | AQ56: NA | AR56: NA | AS56: NA | AT56: NA | AU56: NA | AV56: NA | AW56: NA | AX56: NA
A57: CONTRATACION DIRECTA | B57: Contratos de prestación de servicios | C57: TERMINADO | D57: FDLK-CD-51-2020 | E57: CPS-051-2020 | F57: =VLOOKUP(E57,[1]Hoja1!D$3:E$393,2,0) -> 1 | G57: JOHN CAMILO PEÑA GALINDO | H57: 1016039921 | I57: JOHN CAMILO PEÑA GALINDO | J57: 1016039921 | L57: https://community.secop.gov.co/Public/Tendering/OpportunityDetail/Index?noticeUID=CO1.NTC.1205534&isFromPublicArea=True&isModal=False | M57: PRESTAR LOS SERVICIOS DE APOYO EN LA CONDUCCIÓN DE LOS VEHÍCULOS LIVIANOS DEL PARQUE AUTOMOTOR DE PROPIEDAD DEL FONDO DE DESARROLLO LOCAL DE KENNEDY | N57: INVERSIÓN | O57: 775 | P57: 49940000 | Q57: 1363 | R57: Fortalecimiento de la gestión local y de las acciones de vigilancia y control | S57: 2020-04-16 | T57: 2020-04-21 | U57: 2020-08-16 | V57: 9988000 | W57: 4 | X57: 2497000 | Y57: 855 | Z57: 9988000 | AA57: LEONARDO ALEXANDER RODRíCUEZ LÓPÉZ | AB57: NILBA ALIET AREVALO CASTELLANOS | AC57: ALMACEN | AD57: 380-47-994000104907 | AE57: 16/04/2020 | AF57: 22/02/2021 | AG57: NA | AH57: 0 | AI57: NA | AJ57: NA | AK57: NA | AL57: NA | AM57: NA | AN57: NA | AO57: NA | AP57: NA | AQ57: NA | AR57: NA | AS57: NA | AT57: NA | AU57: NA | AV57: NA | AW57: NA | AX57: NA
A58: CONTRATACION DIRECTA | B58: CONTRATO INTERADMINISTRATIVO | C58: EN EJECUCION | D58: FDLK-CIA-52-2020 | E58: CIA-052-2020 | F58: =VLOOKUP(E58,[1]Hoja1!D$3:E$393,2,0) -> 0.8626373626 | G58: EMPRESA DE TELECOMUNICIACIONES DE BOGOTA S.A. E.S.P. (ETB S.A. E.S.P) | H58: 899.999.115-8 | I58: CAMILO ANDRES OLEA RODRIGUEZ | J58: 80.504.362 | L58: https://community.secop.gov.co/Public/Tendering/OpportunityDetail/Index?noticeUID=CO1.NTC.1205468&isFromPublicArea=True&isModal=False | M58: PRESTAR LOS SERVICIOS DE INTERNET PARA LA ALCALDÍA LOCAL DE KENNEDY-FONDO DE DESARROLLO LOCAL DE KENNEDY y LOS PUNTOS VIVE DIGITAL | N58: FUNCIONAMIENTO | O58: 777 | P58: 74261426 | Q58: 004/1363 | R58: Servicios de telecoumicacion a traves de internet// Fortalecimiento de la gestión local y de las acciones de vigilancia y control | S58: 2020-04-16 | T58: 2020-04-17 | U58: 2021-04-16 | V58: 74261426 | W58: 12 | X58: 6188452.167 | Y58: 856 | Z58: 74261426 | AA58: LEONARDO ALEXANDER RODRíCUEZ LÓPÉZ | AB58: FREDY ALEXANDER JOYA GRIMALDOS | AC58: NA | AD58: 2201320000189 | AE58: 2020-04-16 | AF58: 2021-10-16 | AG58: NA | AH58: 0 | AI58: NA | AJ58: NA | AK58: NA | AL58: NA | AM58: NA | AN58: NA | AO58: NA | AP58: NA | AQ58: NA | AR58: NA | AS58: NA | AT58: NA | AU58: NA | AV58: NA | AW58: NA | AX58: NA
A59: CONTRATACION DIRECTA | B59: Contratos de prestación de servicios | C59: TERMINADO | D59: FDLK-CD-53-2020 | E59: CPS-053-2020 | F59: =VLOOKUP(E59,[1]Hoja1!D$3:E$393,2,0) -> 1 | G59: CARLOS ALBERTO MORENO LIZARAZO | H59: 80154383 | I59: CARLOS ALBERTO MORENO LIZARAZO | J59: 80154383 | L59: https://community.secop.gov.co/Public/Tendering/OpportunityDetail/Index?noticeUID=CO1.NTC.1215114&isFromPublicArea=True&isModal=False | M59: PRESTAR LOS SERVICIOS DE APOYO ADMINISTRATIVO Y ASISTENCIAL EN ASUNTOS RELACIONADOS CON ESPACIO PÚBLICO Y/O GESTIÓN DEL RIESGO EN EL ÁREA DEGESTIÓN POLICIVA JURÍDICA DE LA ALCALDÍA LOCAL DE KENNEDY | N59: INVERSIÓN | O59: 782 | P59: 9988000 | Q59: 1363 | R59: Fortalecimiento de la gestión local y de las acciones de vigilancia y control | S59: 2020-04-23 | T59: 2020-04-29 | U59: 2020-10-28 | V59: 9988000 | W59: 4 | X59: 2497000 | Y59: 860 | Z59: 9988000 | AA59: LEONARDO ALEXANDER RODRíCUEZ LÓPÉZ | AB59: NORMA LETICIA GUZMAN RIMOLLI | AC59: GESTION POLICIVA Y JURIDICA | AD59: 380-47-994000104989 | AE59: 23/04/2020 | AF59: 28/02/2021 | AG59: NA | AH59: 0 | AI59: NA | AJ59: NA | AK59: NA | AL59: NA | AM59: NA | AN59: 2020-08-22 | AO59: 60 | AP59: DIAS | AQ59: 4994000 | AR59: 2020-08-22 | AS59: 60 | AT59: DIAS | AU59: NA | AV59: NA | AW59: NA | AX59: NA
A60: CONTRATACION DIRECTA | B60: Contratos de prestación de servicios | C60: EN EJECUCION | D60: FDLK-CD-54-2020 | E60: CPS-054-2020 | F60: =VLOOKUP(E60,[1]Hoja1!D$3:E$393,2,0) -> 0.8227146814 | G60: DIANA MARCELA DELGADO JEREZ | H60: 1030561127 | I60: DIANA MARCELA DELGADO JEREZ | J60: 1030561127 | L60: https://community.secop.gov.co/Public/Tendering/OpportunityDetail/Index?noticeUID=CO1.NTC.1225817&isFromPublicArea=True&isModal=False | M60: PRESTAR SERVICIOS PROFESIONALES ESPECIALIZADOS PARA APOYAR AL DESPACHO DE LA ALCALDESA LOCAL EN EL SEGUIMIENTO FINANCIERO, PRESUPUESTAL Y ADMINISTRATIVO DE LOS PROGRAMAS, PROYECTOS Y METAS ESTABLECIDAS EN EL PLAN DE DESARROLLO LOCAL VIGENTE DE LA LOCALIDAD DE KENNEDY | N60: INVERSIÓN | O60: 796 | P60: 60.320.000 | Q60: 1363 | R60: Fortalecimiento de la gestión local y de las acciones de vigilancia y control | S60: 2020-04-29 | T60: 2020-05-04 | U60: 2021-04-30 | V60: 60320000 | W60: 8 | X60: 7540000 | Y60: 866 | Z60: 60320000 | AA60: LEONARDO ALEXANDER RODRíCUEZ LÓPÉZ | AB60: YEIMY CAROLINA AGUDELO HERNANDEZ | AC60: DESPACHO | AD60: 380-47-994000105034 | AE60: 29/04/2020 | AF60: 17/07/2021 | AG60: NA | AH60: 0 | AI60: NA | AJ60: NA | AK60: NA | AL60: NA | AM60: NA | AN60: 2021-01-01 | AO60: 4 | AP60: MESES | AQ60: 30160000 | AR60: 2021-01-01 | AS60: 4 | AT60: MESES | AU60: NA | AV60: NA | AW60: NA | AX60: NA
A61: CONTRATACION DIRECTA | B61: Contratos de prestación de servicios | C61: TERMINADO | D61: FDLK-CD-55-2020 | E61: CPS-055-2020 | F61: =VLOOKUP(E61,[1]Hoja1!D$3:E$393,2,0) -> 1 | G61: GILMA PAOLA GRANADOS ROZO | H61: 52776073 | I61: GILMA PAOLA GRANADOS ROZO | J61: 52776073 | L61: https://community.secop.gov.co/Public/Tendering/OpportunityDetail/Index?noticeUID=CO1.NTC.1232561&isFromPublicArea=True&isModal=False | M61: PRESTAR LOS SERVICIOS DE APOYO TÉCNICO Y ADMINISTRATIVO AL DESPACHO DE LA ALCALDÍA LOCAL DE KENNEDY | N61: INVERSIÓN | O61: 802 | P61: 30.800.000 | Q61: 1363 | R61: Fortalecimiento de la gestión local y de las acciones de vigilancia y control | S61: 2020-05-05 | T61: 2020-05-06 | U61: 2020-12-31 | V61: 30800000 | W61: 8 | X61: 3850000 | Y61: 868 | Z61: 30800000 | AA61: LEONARDO ALEXANDER RODRíCUEZ LÓPÉZ | AB61: FRANCY MILE OVALLE TORRES | AC61: DESPACHO | AD61: 380-47-994000105076 | AE61: 2020-05-05 | AF61: 15/07/2021 | AG61: NA | AH61: 0 | AI61: NA | AJ61: NA | AK61: YURI ROCIO PEREZ SALAMANCA 1026265865 | AL61: GILMA PAOLA GRANADOS ROZO | AM61: 2020-11-17 | AN61: NA | AO61: NA | AP61: NA | AQ61: NA | AR61: NA | AS61: NA | AT61: NA | AU61: NA | AV61: NA | AW61: NA | AX61: NA
A62: CONTRATACION DIRECTA | B62: Contratos de prestación de servicios | C62: EN EJECUCION | D62: FDLK-CD-56-2020 | E62: CPS-056-2020 | F62: =VLOOKUP(E62,[1]Hoja1!D$3:E$393,2,0) -> 0.99 | G62: MONICA JOHANNA HERNANDEZ PERAZA | H62: 52451276 | I62: MONICA JOHANNA HERNANDEZ PERAZA | J62: 52451276 | L62: https://community.secop.gov.co/Public/Tendering/OpportunityDetail/Index?noticeUID=CO1.NTC.1225525&isFromPublicArea=True&isModal=False | M62: PRESTAR SUS SERVICIOS PROFESIONALES ESPECIALIZADOS PARA APOYAR JURÍDICAMENTE A LA ALCALDÍA LOCAL DE KENNEDY-FONDO DE DESARROLLO LOCAL DE KENNEDY EN LOS ASUNTOS CONSTITUCIONALES, LEGALES Y REGLAMENTARIOS DE SU COMPETENCIA, PARTICULARMENTE LOS RELACIONADOS CON LA COORDINACIÓN DE LAS ETAPAS PRECONTRACTUAL, ONTRACTUAL Y POSCONTRACTUAL DE LOS PROCESOS DE CONTRATACIÓN | N62: INVERSIÓN | O62: 795 | P62: 68.000.000 | Q62: 1363 | R62: Fortalecimiento de la gestión local y de las acciones de vigilancia y control | S62: 2020-04-29 | T62: 2020-05-04 | U62: 2021-02-28 | V62: 68000000 | W62: 8 | X62: 8500000 | Y62: 863 | Z62: 68000000 | AA62: LEONARDO ALEXANDER RODRíCUEZ LÓPÉZ | AB62: DIANA MARCELA DELGADO JEREZ | AC62: CONTRATACION | AD62: 21-44-101321987 | AE62: 29/04/2020 | AF62: 2021-07-31 | AG62: NA | AH62: 0 | AI62: NA | AJ62: NA | AK62: NA | AL62: NA | AM62: NA | AN62: 2021-01-01 | AO62: 2 | AP62: MESES | AQ62: 17000000 | AR62: 2021-01-01 | AS62: 2 | AT62: MESES | AU62: NA | AV62: NA | AW62: NA | AX62: NA
A63: CONTRATACION DIRECTA | B63: Contratos de prestación de servicios | C63: EN EJECUCION | D63: FDLK-CD-57-2020 | E63: CPS-057-2020 | F63: =VLOOKUP(E63,[1]Hoja1!D$3:E$393,2,0) -> 0.99 | G63: ERIKA ANDREA RISCANEVO VIRACACHA | H63: 1033731222 | I63: ERIKA ANDREA RISCANEVO VIRACACHA | J63: 1033731222 | L63: https://community.secop.gov.co/Public/Tendering/OpportunityDetail/Index?noticeUID=CO1.NTC.1226650&isFromPublicArea=True&isModal=False | M63: COORDINAR, LIDERAR Y ASESORAR LOS PLANES Y ESTRATEGIAS DE COMUNICACIÓN INTERNA Y EXTERNA PARA LA DIVULGACION DE LOS PROGRAMAS, PROYECTOS Y ACTIVIDADES DEL DESPACHO Y DE LA ALCALDIA LOCAL | N63: INVERSIÓN | O63: 794 | P63: 60.320.000 | Q63: 1363 | R63: Fortalecimiento de la gestión local y de las acciones de vigilancia y control | S63: 2020-04-30 | T63: 2020-05-04 | U63: 2021-02-28 | V63: 60320000 | W63: 8 | X63: 7540000 | Y63: 864 | Z63: 60320000 | AA63: LEONARDO ALEXANDER RODRíCUEZ LÓPÉZ | AB63: DIANA MARCELA DELGADO JEREZ | AC63: COMUNICACION Y PRENSA | AD63: 15-44-101226724 | AE63: 30/04/2020 | AF63: 2021-05-07 | AG63: NA | AH63: 0 | AI63: NA | AJ63: NA | AK63: NA | AL63: NA | AM63: NA | AN63: 2021-01-01 | AO63: 2 | AP63: MESES | AQ63: 15080000 | AR63: 2021-01-01 | AS63: 2 | AT63: MESES | AU63: NA | AV63: NA | AW63: NA | AX63: NA
A64: CONTRATACION DIRECTA | B64: Contratos realizados por medio de la modalidad de Urgencia Manifiesta | C64: TERMINADO | D64: FDLK-CD-58-2020 | E64: CPS-058-2020 | F64: =VLOOKUP(E64,[1]Hoja1!D$3:E$393,2,0) -> 1 | G64: CRUZ ROJA COLOMBIANA SECCIONAL CUNDINAMARCA Y BOGOTÁ | H64: 860070301 | I64: GABRIEL CAMERO RAMOS | J64: 79367172 | L64: k | M64: LA CRUZ ROJA SE OBLIGA A PRESTAR, A MONTO AGOTABLE, LOS SERVICIOS Y REALIZAR LAS ACCIONES NECESARIAS PARA LA PROVISIÓN Y ENTREGA DE AYUDA HUMANITARIA Y ASISTENCIA PARA LA CONTINGENCIA DE LA POBLACIÓN POBRE Y VULNERABLE DE BOGOTÁ D.C., EN EL MARCO DE LA CONTENCIÓN Y MITIGACIÓN DEL COVID-19, LA DECLARATORIA DE EMERGENCIA SANITARIA EN TODO EL TERRITORIO NACIONAL Y LA CALAMIDAD PÚBLICA DECLARADA EN LA CIUDAD DE BOGOTÁ D.C. DE ACUERDO A LO ESTABLECIDO EN EL MANUAL OPERATIVO DEL SISTEMA DISTRITAL BOGOTÁ SOLIDARIA EN CASA. | N64: INVERSIÓN | O64: 800 | P64: 12222307077 | Q64: 1378 | R64: Igualdad y autonomía para una Kennedy incluyente | S64: 2020-05-06 | T64: 2020-05-15 | U64: 2020-09-15 | V64: 9777845662 | W64: 4 | X64: 2444461416 | Y64: 873 | Z64: 12222307077 | AA64: YEIMY CAROLINA AGUDELO HERNANDEZ | AC64: NA | AD64: 18-40-101046627 | AE64: 2020-05-06 | AF64: 2020-09-06 | AG64: NA | AH64: 0 | AI64: NA | AJ64: NA | AK64: NA | AL64: NA | AM64: NA | AN64: NA | AO64: NA | AP64: NA | AQ64: NA | AR64: NA | AS64: NA | AT64: NA | AU64: NA | AV64: NA | AW64: NA | AX64: NA
A65: MINIMA CUANTIA | B65: Compra y venta de suministros | C65: TERMINADO | D65: FDLK- MC-3-2020 | E65: CCV-59-2020 | F65: =VLOOKUP(E65,[1]Hoja1!D$3:E$393,2,0) -> 1 | G65: SOMMER INTERNACIONAL LTDA. | H65: 830.136.416-6 | I65: MAURICIO EDUARDO SOLER SALGADO | J65: 79838752 | L65: https://community.secop.gov.co/Public/Tendering/OpportunityDetail/Index?noticeUID=CO1.NTC.1234620&isFromPublicArea=True&isModal=False | M65: ADQUISICIÓN DE ELEMENTOS E INSUMOS DE PROTECCIÓN Y PREVENCIÓN DE PROPAGACIÓN DEL COVID-19 PARA SERVIDORES Y/O COLABORADORES DEL FONDO DE DESARROLLO LOCAL DE KENNEDY”. | N65: INVERSIÓN | O65: 801 | P65: 18379009 | Q65: 1363 | R65: Fortalecimiento de la gestión local y de las acciones de vigilancia y control | S65: 2020-05-14 | T65: 2020-05-15 | U65: 2020-05-30 | V65: 12713000 | W65: 0.5 | X65: 12713000 | Y65: 888 | Z65: 12713000 | AA65: YEIMY CAROLINA AGUDELO HERNANDEZ | AB65: EDISON JAVIER VELÁSQUEZ RODRÍGUEZ | AC65: NA | AD65: 15-46-101016071 | AE65: 2020-05-13 | AF65: 2020-11-30 | AG65: NA | AH65: 0 | AI65: NA | AJ65: NA | AK65: NA | AL65: NA | AM65: NA | AN65: NA | AO65: NA | AP65: NA | AQ65: NA | AR65: NA | AS65: NA | AT65: NA | AU65: NA | AV65: NA | AW65: NA | AX65: NA
A66: MINIMA CUANTIA | B66: Compra y venta de suministros | C66: TERMINADO | D66: FDLK- MC-2-2020 | E66: CCV-60-2020 | F66: =VLOOKUP(E66,[1]Hoja1!D$3:E$393,2,0) -> 1 | G66: BIM LATINOAMERICA SAS | H66: 900.987.336-1 | I66: HELDY CATHERINE CALDERON GIRALDO | J66: 1053816700 | M66: CONTRATAR EL SUMINISTRO DE LICENCIAMIENTO ADOBE PARA EL GRUPO DE PRENSA Y COMUNICACIONES DE LA ALCALDÍA LOCAL DE KENNEDY | N66: INVERSIÓN | O66: 789 | P66: 5017811 | Q66: 1363 | R66: Fortalecimiento de la gestión local y de las acciones de vigilancia y control | S66: 2020-05-14 | T66: 2020-05-18 | U66: 2020-06-17 | V66: 3918000 | W66: 1 | X66: 3918000 | Y66: 889 | Z66: 3918000 | AA66: YEIMY CAROLINA AGUDELO HERNANDEZ | AB66: SEBASTIAN JOSE PEREZ BERNAL | AC66: NA | AD66: NB-100129585 | AE66: 2020-05-14 | AF66: 2020-12-18 | AG66: NA | AH66: 0 | AI66: NA | AJ66: NA | AK66: NA | AL66: NA | AM66: NA | AN66: NA | AO66: NA | AP66: NA | AQ66: NA | AR66: NA | AS66: NA | AT66: NA | AU66: NA | AV66: NA | AW66: NA | AX66: NA
A67: CONTRATACION DIRECTA | B67: Contratos de prestación de servicios | C67: TERMINADO | D67: FDLK-CD-61-2020 | E67: CPS-061-2020 | F67: =VLOOKUP(E67,[1]Hoja1!D$3:E$393,2,0) -> 1 | G67: ALEXANDER CANTOR CASTILLO | H67: 79919129 | I67: ALEXANDER CANTOR CASTILLO | J67: 79919129 | L67: https://community.secop.gov.co/Public/Tendering/OpportunityDetail/Index?noticeUID=CO1.NTC.1246564&isFromPublicArea=True&isModal=False | M67: PRESTACIÓN DE SERVICIOS PROFESIONALES PARA APOYAR EL SEGUIMIENTO DE ACTIVIDADES ENFOCADAS A LA GESTION AMBIENTAL EXTERNA Y LA MITIGACIONES DE IMPACTOS AMBIENTALES EN LA LOCALIDAD. | N67: INVERSIÓN | O67: 834 | P67: 22048000 | Q67: 1363 | R67: Fortalecimiento de la gestión local y de las acciones de vigilancia y control | S67: 2020-04-15 | T67: 2020-05-21 | U67: 2020-09-20 | V67: 22048000 | W67: 4 | X67: 5512000 | Y67: 891 | Z67: 22048000 | AA67: YEIMY CAROLINA AGUDELO HERNANDEZ | AB67: NORMA LETICIA GUZMAN RIMOLLI | AC67: GESTION POLICIVA Y JURIDICA | AD67: 1244101195303 | AE67: 15/05/2020 | AF67: 31/03/2021 | AG67: NA | AH67: 0 | AI67: NA | AJ67: NA | AK67: NA | AL67: NA | AM67: NA | AN67: NA | AO67: NA | AP67: NA | AQ67: NA | AR67: NA | AS67: NA | AT67: NA | AU67: NA | AV67: NA | AW67: NA | AX67: NA
A68: CONTRATACION DIRECTA | B68: Contratos de prestación de servicios | C68: TERMINADO | D68: FDLK-CD-62-2020 | E68: CPS-062-2020 | F68: =VLOOKUP(E68,[1]Hoja1!D$3:E$393,2,0) -> 1 | G68: JOSE FILIBERTO ARDILA MORENO | H68: 79509118 | I68: JOSE FILIBERTO ARDILA MORENO | J68: 79509118 | L68: https://community.secop.gov.co/Public/Tendering/OpportunityDetail/Index?noticeUID=CO1.NTC.1247204&isFromPublicArea=True&isModal=False | M68: PRESTAR LOS SERVICIOS PROFESIONALES PARALIDERAR LOS ASUNTOS REFERENTES AL ESPACIO PÚBLICO, VENDEDORES INFORMALES EN LA LOCALIDAD DEKENNEDY Y ACOMPAÑAMIENTO EN OPERATIVOS IVC | N68: INVERSIÓN | O68: 806 | P68: 26280000 | Q68: 1363 | R68: Fortalecimiento de la gestión local y de las acciones de vigilancia y control | S68: 2020-05-15 | T68: 2020-05-26 | U68: 2020-11-25 | V68: 26280000 | W68: 4 | X68: 6570000 | Y68: 890 | Z68: 26280000 | AA68: YEIMY CAROLINA AGUDELO HERNANDEZ | AB68: NORMA LETICIA GUZMAN RIMOLLI | AC68: GESTION POLICIVA Y JURIDICA | AD68: 380-47-994000105215 | AE68: 15/05/2020 | AF68: 28/03/2021 | AG68: NA | AH68: 0 | AI68: NA | AJ68: NA | AK68: NA | AL68: NA | AM68: NA | AN68: 2020-09-27 | AO68: 60 | AP68: MESES | AQ68: 13140000 | AR68: 2020-09-27 | AS68: 60 | AT68: MESES | AU68: NA | AV68: NA | AW68: NA | AX68: NA
A69: CONTRATACION DIRECTA | B69: Contratos de prestación de servicios | C69: EN EJECUCION | D69: FDLK-CD-63-2020 | E69: CPS-063-2020 | F69: =VLOOKUP(E69,[1]Hoja1!D$3:E$393,2,0) -> 0.9893992933 | G69: PAULA CAMILA CAMARGO VARGAS | H69: 1026281012 | I69: PAULA CAMILA CAMARGO VARGAS | J69: 1026281012 | L69: https://community.secop.gov.co/Public/Tendering/OpportunityDetail/Index?noticeUID=CO1.NTC.1251210&isFromPublicArea=True&isModal=False | M69: “PRESTAR SERVICIOS PROFESIONALES PARA APOYAR JURÍDICAMENTE A LA ALCALDÍA LOCAL DE KENNEDY-FONDO DE DESARROLLO LOCAL DE KENNEDY EN LOS ASUNTOS CONSTITUCIONALES, LEGALES Y REGLAMENTARIOS DE SU COMPETENCIA, PARTICULARMENTE LOS RELACIONADOS CON LAS ETAPAS PRECONTRACTUAL, CONTRACTUAL Y POSCONTRACTUAL DE LOS PROCESOS DE CONTRATACIÓN”. | N69: INVERSIÓN | O69: 821 | P69: 46.018.000 | Q69: 1363 | R69: Fortalecimiento de la gestión local y de las acciones de vigilancia y control | S69: 2020-05-18 | T69: 2020-05-21 | U69: 2021-02-28 | V69: 46018000 | W69: 7 | X69: 6574000 | Y69: 896 | Z69: 46018000 | AA69: YEIMY CAROLINA AGUDELO HERNANDEZ | AB69: MONICA JOHANNA HERNANDEZ PERAZA | AC69: CONTRATACION | AD69: 21-44-101323200 | AE69: 18/5/2020 | AF69: 25/0672021 | AG69: NA | AH69: 0 | AI69: NA | AJ69: NA | AK69: NA | AL69: NA | AM69: NA | AN69: 2020-12-21 | AO69: 70 | AP69: DIAS | AQ69: 15339333 | AR69: 2020-12-21 | AS69: 70 | AT69: DIAS | AU69: NA | AV69: NA | AW69: NA | AX69: NA
A70: CONTRATACION DIRECTA | B70: Contratos de prestación de servicios | C70: TERMINADO | D70: FDLK-CD-64-2020 | E70: CPS-064-2020 | F70: =VLOOKUP(E70,[1]Hoja1!D$3:E$393,2,0) -> 1 | G70: DIANA JINETH AVILA RUIZ | H70: 52218682 | I70: DIANA JINETH AVILA RUIZ | J70: 52218682 | L70: https://community.secop.gov.co/Public/Tendering/OpportunityDetail/Index?noticeUID=CO1.NTC.1251812&isFromPublicArea=True&isModal=False | M70: PRESTAR LOS SERVICIOS DE APOYO AL ÁREA DE GESTIÓN DE DESARROLLO LOCAL PARA LOS ASUNTOS RELACIONADOS CON LOS PROYECTOS DE INFRAESTRUCTURA DE LA ALCALDÍA LOCAL DE KENNEDY Y LOS TRÁMITES DE SU COMPETENCIA | N70: INVERSIÓN | O70: 817 | P70: 9987744 | Q70: 1367 | R70: Recuperación de la malla vial local | S70: 2020-05-19 | T70: 2020-05-20 | U70: 2020-09-18 | V70: 9987744 | W70: 4 | X70: 2496936 | Y70: 895 | Z70: 9987744 | AA70: YEIMY CAROLINA AGUDELO HERNANDEZ | AB70: JOSÉ TARCICIO QUIROGA VELAZQUES | AC70: INFRAESTRUCTURA | AD70: 380-47-994000105286 | AE70: 19/95/2020 | AF70: 25/03/2021 | AG70: NA | AH70: 0 | AI70: NA | AJ70: NA | AK70: NA | AL70: NA | AM70: NA | AN70: NA | AO70: NA | AP70: NA | AQ70: NA | AR70: NA | AS70: NA | AT70: NA | AU70: NA | AV70: NA | AW70: NA | AX70: NA
A71: CONTRATACION DIRECTA | B71: Contratos de prestación de servicios | C71: TERMINADO | D71: FDLK-CD-65-2020 | E71: CPS-065-2020 | F71: =VLOOKUP(E71,[1]Hoja1!D$3:E$393,2,0) -> 1 | G71: ANDERSON JAVIER QUINTERO GAITAN | H71: 1023880680 | I71: ANDERSON JAVIER QUINTERO GAITAN | J71: 1023880680 | L71: https://community.secop.gov.co/Public/Tendering/OpportunityDetail/Index?noticeUID=CO1.NTC.1251736&isFromPublicArea=True&isModal=False | M71: PRESTAR SUS SERVICIOS PROFESIONALES PARA APOYAR A LA ALCALDÍA LOCAL DE KENNEDY EN LAS ETAPAS PRECONTRACTUAL, CONTRACTUAL Y POSCONTRACTUAL DEL PROYECTO 1381 KENNEDY MEJOR PARA LAS VÍCTIMAS, LA PAZ Y LA RECONCILIACIÓN TENDIENTE A GARANTIZAR EL CUMPLIMIENTO DEL PLAN DE DESARROLLO LOCAL | N71: INVERSIÓN | O71: 816 | P71: 22.048.000 | Q71: 1381 | R71: Kennedy mejor para las víctimas, la paz y la reconciliación | S71: 2020-05-19 | T71: 2020-05-20 | U71: 2020-11-19 | V71: 22048000 | W71: 4 | X71: 5512000 | Y71: 894 | Z71: 22048000 | AA71: YEIMY CAROLINA AGUDELO HERNANDEZ | AB71: SINDY JHOANA TORRES ALVAREZ | AC71: PLANEACION | AD71: 21-44-101330039 | AE71: 2020-08-24 | AF71: 2021-06-30 | AG71: NA | AH71: 0 | AI71: NA | AJ71: NA | AK71: CLAUDIA PATRICIA GUARNIZO GUZMAN CC 65587464 | AL71: ANDERSON JAVIER QUINTERO GAITAN | AM71: 2020-08-20 | AN71: 2020-09-20 | AO71: 60 | AP71: DIAS | AQ71: 11024000 | AR71: 2020-09-20 | AS71: 60 | AT71: DIAS | AU71: NA | AV71: NA | AW71: NA | AX71: NA
A72: CONTRATACION DIRECTA | B72: Contratos de prestación de servicios | C72: EN EJECUCION | D72: FDLK-CD-66-2020 | E72: CPS-066-2020 | F72: =VLOOKUP(E72,[1]Hoja1!D$3:E$393,2,0) -> 0.9927272727 | G72: MARÍA DEL PILAR MUJICA SANDOVAL | H72: 52535501 | I72: MARÍA DEL PILAR MUJICA SANDOVAL | J72: 52535501 | L72: https://community.secop.gov.co/Public/Tendering/OpportunityDetail/Index?noticeUID=CO1.NTC.1252527&isFromPublicArea=True&isModal=False | M72: “PRESTAR SUS SERVICIOS PROFESIONALES ESPECIALIZADOS PARA APOYAR AL ÁREA DE GESTIÓN DE DESARROLLO LOCAL DEL FONDO DE DESARROLLO LOCAL DE KENNEDY A FIN DE ORIENTAR LOS PROCESOS PROGRAMAS Y PROYECTOS QUE EVIDENCIAN EL AVANCE DEL PLAN DE DESARROLLO LOCAL Y LA CONSTRUCCIÓN DEL PLAN DE DESARROLLO LOCAL PARA LA VIGENCIA 2021-2024¨. | N72: INVERSIÓN | O72: 820 | P72: 59.500.000 | Q72: 1363 | R72: Fortalecimiento de la gestión local y de las acciones de vigilancia y control | S72: 2020-05-19 | T72: 2020-05-28 | U72: 2021-02-27 | V72: 59500000 | W72: 7 | X72: 8500000 | Y72: 903 | Z72: 59500000 | AA72: YEIMY CAROLINA AGUDELO HERNANDEZ | AB72: MARIA DEL PILAR MUÑOZ TORRES | AC72: PLANEACION | AD72: 3.8047994e+16 | AE72: 2020-05-19 | AF72: 2021-03-25 | AG72: NA | AH72: 0 | AI72: NA | AJ72: NA | AK72: NA | AL72: NA | AM72: NA | AN72: 2020-12-28 | AO72: 2 | AP72: MESES | AQ72: 17000000 | AR72: 2020-12-28 | AS72: 2 | AT72: MESES | AU72: NA | AV72: NA | AW72: NA | AX72: NA
A73: CONTRATACION DIRECTA | B73: Contratos de prestación de servicios | C73: TERMINADO | D73: FDLK-CD-68-2020 | E73: CPS-068-2020 | F73: =VLOOKUP(E73,[1]Hoja1!D$3:E$393,2,0) -> 1 | G73: EDGAR DAVID ARCINIEGAS SANTAMARÍA | H73: 1032423911 | I73: EDGAR DAVID ARCINIEGAS SANTAMARÍA | J73: 1032423911 | L73: https://community.secop.gov.co/Public/Tendering/OpportunityDetail/Index?noticeUID=CO1.NTC.1262712&isFromPublicArea=True&isModal=False | M73: PRESTAR LOS SERVICIOS PROFESIONALES ESPECIALIZADOS A LA ALCALDÍA LOCAL DE KENNEDY EN MATERIA JURÍDICA, EN APOYO DE LA REVISIÓN Y CONCEPTO DE LOS ASUNTOS JURÍDICOS QUE SE REQUIERAN POR PARTE DEL DESPACHO DE LA ALCALDESA LOCAL | N73: INVERSIÓN | O73: 834 | P73: 59.500.000 | Q73: 1363 | R73: Fortalecimiento de la gestión local y de las acciones de vigilancia y control | S73: 2020-05-27 | T73: 2020-05-28 | U73: 2020-12-27 | V73: 59500000 | W73: 7 | X73: 8500000 | Y73: 908 | Z73: 59500000 | AA73: YEIMY CAROLINA AGUDELO HERNANDEZ | AB73: DIANA MARCELA DELGADO JEREZ | AC73: DESPACHO | AD73: 380-47-994000105417 | AE73: 27/05/2020 | AF73: 30/06/2021 | AG73: NA | AH73: 0 | AI73: NA | AJ73: NA | AK73: NA | AL73: NA | AM73: NA | AN73: NA | AO73: NA | AP73: NA | AQ73: NA | AR73: NA | AS73: NA | AT73: NA | AU73: NA | AV73: NA | AW73: NA | AX73: NA
A74: CONTRATACION DIRECTA | B74: Contratos de prestación de servicios | C74: EN EJECUCION | D74: FDLK-CD-69-2020 | E74: CPS-069-2020 | F74: =VLOOKUP(E74,[1]Hoja1!D$3:E$393,2,0) -> 0.9891304348 | G74: MARIA NATHALYA DELGADO MUÑOZ | H74: 1022360143 | I74: MARIA NATHALYA DELGADO MUÑOZ | J74: 1022360143 | L74: https://community.secop.gov.co/Public/Tendering/OpportunityDetail/Index?noticeUID=CO1.NTC.1258125&isFromPublicArea=True&isModal=False | M74: “PRESTAR SUS SERVICIOS PROFESIONALES PARA APOYAR AL ÁREA DE GESTIÓN DE DESARROLLO LOCAL DEL FONDO DE DESARROLLO LOCAL DE KENNEDY EN LOS PROCESOS DE FORMULACIÓN y SEGUIMIENTO DE LOS PLANES PROGRAMAS Y PROYECTOS DEL PLAN DE DESARROLLO LOCAL”. | N74: INVERSIÓN | O74: 818 | P74: 46018000 | Q74: 1363 | R74: Fortalecimiento de la gestión local y de las acciones de vigilancia y control | S74: 2020-05-22 | T74: 2020-05-28 | U74: 2021-02-28 | V74: 46018000 | W74: 7 | X74: 6574000 | Y74: 904 | Z74: 46018000 | AA74: YEIMY CAROLINA AGUDELO HERNANDEZ | AB74: MARIA DEL PILAR MUJICA SANDOVAL | AC74: PLANEACION | AD74: 380-47-994000105395 | AE74: 22/5/2'020 | AF74: 2021-03-07 | AG74: NA | AH74: 0 | AI74: NA | AJ74: NA | AK74: NA | AL74: NA | AM74: NA | AN74: 2020-12-28 | AO74: 61 | AP74: DIAS | AQ74: 13805400 | AR74: 2020-12-28 | AS74: 61 | AT74: DIAS | AU74: NA | AV74: NA | AW74: NA | AX74: NA
A75: CONTRATACION DIRECTA | B75: Contratos de prestación de servicios | C75: EN EJECUCION | D75: FDLK-CD-70-2020 | E75: CPS-070-2020 | F75: =VLOOKUP(E75,[1]Hoja1!D$3:E$393,2,0) -> 0.9891304348 | G75: KARLA MACHADO PEREZ | H75: 1129566521 | I75: KARLA MACHADO PEREZ | J75: 1129566521 | L75: https://community.secop.gov.co/Public/Tendering/OpportunityDetail/Index?noticeUID=CO1.NTC.1258227&isFromPublicArea=True&isModal=False | M75: PRESTAR SERVICIOS PROFESIONALES A LA ALCALDÍA LOCAL DE KENNEDY PARA APOYAR LA IMPLEMENTACIÓN DE LAS ESTRATEGÍAS, INICIATIVAS Y PROGRAMAS PARA LA FORMULACIÓN DEL PLAN DE DESARROLLO DISTRITAL 2021-2024 QUE APRUEBE EL CONCEJO DISTRITAL Y EL NUEVO PLAN DE DESARROLLO LOCAL VIGENCIA 2021-2024 | N75: INVERSIÓN | O75: 819 | P75: 46018000 | Q75: 1363 | R75: Fortalecimiento de la gestión local y de las acciones de vigilancia y control | S75: 2020-05-22 | T75: 2020-05-28 | U75: 2021-02-28 | V75: 46018000 | W75: 7 | X75: 6574000 | Y75: 905 | Z75: 46018000 | AA75: YEIMY CAROLINA AGUDELO HERNANDEZ | AB75: MARIA DEL PILAR MUJICA SANDOVAL | AC75: PLANEACION | AD75: 380-47-994000105357 | AE75: 22/5/2'020 | AF75: 2021-03-07 | AG75: NA | AH75: 0 | AI75: NA | AJ75: NA | AK75: NA | AL75: NA | AM75: NA | AN75: 2021-02-28 | AO75: 60 | AP75: DIAS | AQ75: 13805400 | AR75: 2021-02-28 | AS75: 60 | AT75: DIAS | AU75: NA | AV75: NA | AW75: NA | AX75: NA
A76: CONTRATACION DIRECTA | B76: Contratos de prestación de servicios | C76: EN EJECUCION | D76: FDLK-CD-71-2020 | E76: CPS-071-2020 | F76: =VLOOKUP(E76,[1]Hoja1!D$3:E$393,2,0) -> 0.9891696751 | G76: CAMILA ANDREA DALEMAN VARGAS | H76: 1015420263 | I76: CAMILA ANDREA DALEMAN VARGAS | J76: 1015420263 | L76: https://community.secop.gov.co/Public/Tendering/OpportunityDetail/Index?noticeUID=CO1.NTC.1257959&isFromPublicArea=True&isModal=False | M76: “PRESTAR LOS SERVICIOS PROFESIONALES A LA ALCALDÍA LOCAL DE KENNEDY EN EL DESARROLLO DE ACTIVIDADES Y TRAMITES ADMINISTRATIVOS RELACIONADOS CON LA PLANEACIÓN Y ESTRUCTURACIÓN DEL PROYECTOS DE INVERSIÓN Y FUNCIONAMIENTO, NECESARIOS EN EL ÁREA DE GESTIÓN DE DESARROLLO LOCAL PARA DAR ALCANCE A LAS METAS ESTABLECIDAS EN EL PLAN DE DESARROLLO LOCAL DE KENNEDY VIGENTE” | N76: INVERSIÓN | O76: 832 | P76: 29.400.000 | Q76: 1363 | R76: Fortalecimiento de la gestión local y de las acciones de vigilancia y control | S76: 2020-05-22 | T76: 2020-05-27 | U76: 2021-02-28 | V76: 29400000 | W76: 7 | X76: 4200000 | Y76: 906 | Z76: 29400000 | AA76: YEIMY CAROLINA AGUDELO HERNANDEZ | AB76: MARIA DEL PILAR MUJICA SANDOVAL | AC76: PLANEACION | AD76: 380-47-994000105356 | AE76: 2020-12-05 | AF76: 2021-10-07 | AG76: NA | AH76: 0 | AI76: NA | AJ76: NA | AK76: NA | AL76: NA | AM76: NA | AN76: 2020-12-27 | AO76: 64 | AP76: DIAS | AQ76: 8960000 | AR76: 2020-12-27 | AS76: 64 | AT76: DIAS | AU76: NA | AV76: NA | AW76: NA | AX76: NA
A77: CONTRATACION DIRECTA | B77: Contratos de prestación de servicios | C77: EN EJECUCION | D77: FDLK-CD-72-2020 | E77: CPS-072-2020 | F77: =VLOOKUP(E77,[1]Hoja1!D$3:E$393,2,0) -> 0.9891304348 | G77: JAMES DUARTE SILVA | H77: 80223000 | I77: JAMES DUARTE SILVA | J77: 80223000 | L77: https://community.secop.gov.co/Public/Tendering/OpportunityDetail/Index?noticeUID=CO1.NTC.1258589&isFromPublicArea=True&isModal=False | M77: “PRESTAR APOYO EN LOS PROCESOS PARA LA ADMINISTRACIÓN DE BIENES DE PROPIEDAD DEL FONDO DE DESARROLLO LOCAL DE KENNEDY Y DE LOS QUE SEAN ASIGNADOS POR LA SECRETARÍA DE GOBIERNO DE ACUERDO A LOS PROCESOS Y PROCEDIMIENTOS ESTABLECIDOS”. | N77: INVERSIÓN | O77: 836 | P77: 26.974.885 | Q77: 1363 | R77: Fortalecimiento de la gestión local y de las acciones de vigilancia y control | S77: 2020-05-26 | T77: 2020-05-28 | U77: 2021-02-28 | V77: 26974885 | W77: 7 | X77: 3853555 | Y77: 907 | Z77: 26974885 | AA77: YEIMY CAROLINA AGUDELO HERNANDEZ | AB77: YULLIET PATRICIA LLERENA AVENDAÑO | AC77: ALMACEN | AD77: 380 47 994000105380 | AE77: 26/05/2020 | AF77: 2021-10-07 | AG77: NA | AH77: 0 | AI77: NA | AJ77: NA | AK77: NA | AL77: NA | AM77: NA | AN77: 2020-12-28 | AO77: 63 | AP77: DIAS | AQ77: 8092466 | AR77: 2020-12-28 | AS77: 63 | AT77: DIAS | AU77: NA | AV77: NA | AW77: NA | AX77: NA
A78: CONTRATACION DIRECTA | B78: Contratos de prestación de servicios | C78: EN EJECUCION | D78: FDLK-CD-73-2020 | E78: CPS-073-2020 | F78: =VLOOKUP(E78,[1]Hoja1!D$3:E$393,2,0) -> 0.9889705882 | G78: MILENA ARDILA VEGA | H78: 1032426008 | I78: MILENA ARDILA VEGA | J78: 1032426008 | L78: https://community.secop.gov.co/Public/Tendering/OpportunityDetail/Index?noticeUID=CO1.NTC.1267461&isFromPublicArea=True&isModal=False | M78: “PRESTAR LOS SERVICIOS PROFESIONALES A LA ALCALDÍA LOCAL DE KENNEDY EN EL DESARROLLO DE ACTIVIDADES Y TRAMITES ADMINISTRATIVOS RELACIONADOS CON LA PLANEACIÓN Y ESTRUCTURACIÓN DEL PROYECTOS DE INVERSIÓN Y FUNCIONAMIENTO, NECESARIOS EN EL ÁREA DE GESTIÓN DE DESARROLLO LOCAL PARA DAR ALCANCE A LAS METAS ESTABLECIDAS EN EL PLAN DE DESARROLLO LOCAL DE KENNEDY Y LAS NECESIDADES DE FUNCIONAMIENTO” | N78: INVERSIÓN | O78: 835 | P78: 46018000 | Q78: 1363 | R78: Fortalecimiento de la gestión local y de las acciones de vigilancia y control | S78: 2020-05-28 | T78: 2020-06-01 | U78: 2021-02-28 | V78: 46018000 | W78: 7 | X78: 6574000 | Y78: 914 | Z78: 46018000 | AA78: YEIMY CAROLINA AGUDELO HERNANDEZ | AB78: MARIA DEL PILAR MUJICA SANDOVAL | AC78: PLANEACION | AD78: 380 47 994000105445 | AE78: 28/05/2020 | AF78: 30/06/2021 | AG78: NA | AH78: 0 | AI78: NA | AJ78: NA | AK78: NA | AL78: NA | AM78: NA | AN78: 2020-12-29 | AO78: 2 | AP78: MESES | AQ78: 13148000 | AR78: 2020-12-29 | AS78: 2 | AT78: MESES | AU78: NA | AV78: NA | AW78: NA | AX78: NA
A79: SELECCION ABREVIADA | B79: PRESTACIÓN DE SERVICIOS | C79: EN EJECUCION | D79: FDLK-SAMC-1-2020 | E79: CPS-74-2020 | F79: =VLOOKUP(E79,[1]Hoja1!D$3:E$393,2,0) -> 0.7362637363 | G79: UNIÓN TEMPORAL MANTENIMIENTO AUTOMOTOR | H79: 901.187.302-0 | I79: HERNANDO BULLA ORJUELA | J79: 4831 | K79: INVERSIONES EL NORTE SAS NI 900.710.493-9 (50%)/ HERNANDO BULLA ORJUELA CE 4831 (50%) | L79: https://community.secop.gov.co/Public/Tendering/OpportunityDetail/Index?noticeUID=CO1.NTC.1231159&isFromPublicArea=True&isModal=False | M79: CONTRATAR A MONTO AGOTABLE EL MANTENIMIENTO PREVENTIVO Y CORRECTIVO CON SUMINISTRO DE REPUESTOS Y ACCESORIOS NUEVOS, GENUINOS Y ORIGINALES PARA LOS VEHÍCULOS LIVIANOS, DEL FONDO DE DESARROLLO LOCAL DE KENNEDY. | N79: FUNCIONAMIENTO | O79: 780 | P79: 69429757 | Q79: 3/1363 | R79: Servicios de publicidad y el suministro o tiempo publicitario/Fortalecimiento de la gestión local y de las acciones de vigilancia y control | S79: 2020-05-26 | T79: 2020-06-02 | U79: 2021-06-01 | V79: 69429757 | W79: 12 | X79: 5785813.083 | Y79: 916 | Z79: 69429757 | AA79: YEIMY CAROLINA AGUDELO HERNANDEZ | AB79: YULLIET PATRICIA LLERENA AVENDAÑO | AC79: ALMACEN | AD79: 33-44-101200654 | AE79: 2020-07-29 | AF79: 2021-06-01 | AG79: NA | AH79: 0 | AI79: NA | AJ79: NA | AK79: NA | AL79: NA | AM79: NA | AN79: NA | AO79: NA | AP79: NA | AQ79: NA | AR79: NA | AS79: NA | AT79: NA | AU79: NA | AV79: NA | AW79: NA | AX79: NA
A80: CONTRATACION DIRECTA | B80: Contratos de prestación de servicios | C80: TERMINADO | D80: FDLK-CD-75-2020 | E80: CPS-075-2020 | F80: =VLOOKUP(E80,[1]Hoja1!D$3:E$393,2,0) -> 1 | G80: ERIKA VANESSA USECHE TRIANA | H80: 1024540712 | I80: ERIKA VANESSA USECHE TRIANA | J80: 1024540712 | L80: https://community.secop.gov.co/Public/Tendering/OpportunityDetail/Index?noticeUID=CO1.NTC.1263604&isFromPublicArea=True&isModal=False | M80: PRESTACIÓN DE SERVICIOS PROFESIONALES A LA ALCALDÍA LOCAL DE KENNEDY APOYANDO LAS ETAPAS PRECONTRACTUAL, CONTRACTUAL Y POSTCONTRACTUAL DE LOS PROYECTOS DE DOTACIÓN DE JARDINES INFANTILES Y PREVENCIÓN DE VIOLENCIA INFANTIL Y PROMOCIÓN DEL BUEN TRATO TENDIENTE A GARANTIZAR EL CUMPLIMIENTO DEL PLAN DE DESARROLLO LOCAL | N80: INVERSIÓN | O80: 830 | P80: 22048000 | Q80: 1365 | R80: Fortalecimiento pedagógico y estructural a jardines infantiles y prevención de violencia infantil y promoción del buen trato | S80: 2020-05-28 | T80: 2020-06-01 | U80: 2020-09-30 | V80: 22048000 | W80: 4 | X80: 5512000 | Y80: 910 | Z80: 22048000 | AA80: YEIMY CAROLINA AGUDELO HERNANDEZ | AB80: MARIA DEL PILAR MUJICA SANDOVAL | AC80: PLANEACION | AD80: 15-46-101016271 | AE80: 28/05/2020 | AF80: 2021-05-04 | AG80: NA | AH80: 0 | AI80: NA | AJ80: NA | AK80: NA | AL80: NA | AM80: NA | AN80: NA | AO80: NA | AP80: NA | AQ80: NA | AR80: NA | AS80: NA | AT80: NA | AU80: NA | AV80: NA | AW80: NA | AX80: NA
A81: CONTRATACION DIRECTA | B81: Contratos de prestación de servicios | C81: TERMINADO | D81: FDLK-CD-76-2020 | E81: CPS-076-2020 | F81: =VLOOKUP(E81,[1]Hoja1!D$3:E$393,2,0) -> 1 | G81: HECTOR JULIO CEDANO MARTINEZ | H81: 1024462252 | I81: HECTOR JULIO CEDANO MARTINEZ | J81: 1024462252 | L81: https://community.secop.gov.co/Public/Tendering/OpportunityDetail/Index?noticeUID=CO1.NTC.1263605&isFromPublicArea=True&isModal=False | M81: PRESTACIÓN DE SERVICIOS PROFESIONALES A LA ALCALDÍA LOCAL DE KENNEDY, APOYANDO LA FORMULACION Y EJECUCION DE LOS PROCESOS RECREODEPORTIVOS, ARTÍSTICOS Y CULTURALES, TENDIENTE A GARANTIZAR EL CUMPLIMIENTO DEL PLAN DE DESARROLLO LOCAL. | N81: INVERSIÓN | O81: 826 | P81: 22048000 | Q81: 1362 | R81: Promoción y desarrollo local de la cultura, la recreación y el deporte | S81: 2020-05-28 | T81: 2020-06-02 | U81: 2020-10-01 | V81: 22048000 | W81: 4 | X81: 5512000 | Y81: 911 | Z81: 22048000 | AA81: YEIMY CAROLINA AGUDELO HERNANDEZ | AB81: MARIA DEL PILAR MUJICA SANDOVAL | AC81: PLANEACION | AD81: 21-46-101015738 | AE81: 28/05/2020 | AF81: 2021-02-04 | AG81: NA | AH81: 0 | AI81: NA | AJ81: NA | AK81: NA | AL81: NA | AM81: NA | AN81: NA | AO81: NA | AP81: NA | AQ81: NA | AR81: NA | AS81: NA | AT81: NA | AU81: NA | AV81: NA | AW81: NA | AX81: NA
A82: CONTRATACION DIRECTA | B82: Contratos de prestación de servicios | C82: EN EJECUCION | D82: FDLK-CD-77-2020 | E82: CPS-077-2020 | F82: =VLOOKUP(E82,[1]Hoja1!D$3:E$393,2,0) -> 0.9890909091 | G82: AYDEE MILENA SARMIENTO ORTIZ | H82: 52718491 | I82: AYDEE MILENA SARMIENTO ORTIZ | J82: 52718491 | L82: https://community.secop.gov.co/Public/Tendering/OpportunityDetail/Index?noticeUID=CO1.NTC.1264105&isFromPublicArea=True&isModal=False | M82: PRESTAR LOS SERVICIOS PROFESIONALES ESPECIALIZADOS PARA EL SEGUIMIENTO ADMINISTRATIVO Y FINANCIERO DEL ÁREA DE GESTIÓN DE DESARROLLO LOCAL. | N82: INVERSIÓN | O82: 833 | P82: 52780000 | Q82: 1363 | R82: Fortalecimiento de la gestión local y de las acciones de vigilancia y control | S82: 2020-05-26 | T82: 2020-05-29 | U82: 2021-02-28 | V82: 52780000 | W82: 7 | X82: 7540000 | Y82: 912 | Z82: 52780000 | AA82: YEIMY CAROLINA AGUDELO HERNANDEZ | AB82: DIANA MARCELA DELGADO JEREZ | AC82: PLANEACION | AD82: 11-44-101152497 | AE82: 26/05/2020 | AF82: 30/06/2021 | AG82: NA | AH82: 0 | AI82: NA | AJ82: NA | AK82: NA | AL82: NA | AM82: NA | AN82: 2020-12-29 | AO82: 62 | AP82: DIAS | AQ82: 15582667 | AR82: 2020-12-29 | AS82: 62 | AT82: DIAS | AU82: NA | AV82: NA | AW82: NA | AX82: NA
A83: CONTRATACION DIRECTA | B83: Contratos de prestación de servicios | C83: TERMINADO | D83: FDLK-CD-78-2020 | E83: CPS-078-2020 | F83: =VLOOKUP(E83,[1]Hoja1!D$3:E$393,2,0) -> 1 | G83: JENIFFER PAOLA MAYORGA SARAZA | H83: 1018449693 | I83: JENIFFER PAOLA MAYORGA SARAZA | J83: 1018449693 | L83: https://community.secop.gov.co/Public/Tendering/OpportunityDetail/Index?noticeUID=CO1.NTC.1268185&isFromPublicArea=True&isModal=False | M83: “PRESTACIÓN DE SERVICIOS PROFESIONALES A LA ALCALDÍA LOCAL DE KENNEDY COORDINANDO LA ARTICULACIÓN, ASISTENCIA Y ACOMPAÑAMIENTO DE LOS PROCESOS DE PLANEACIÓN LOCAL, PARA LA PROMOCIÓN DE LA PARTICIPACIÓN DE LAS MUJERES Y DE LA EQUIDAD DE GÉNERO, PARA MATERIALIZAR EN LA LOCALIDAD LAS ESTRATEGIAS DE TERRITORIALIZACIÓN Y TRANSVERSALIZACIÓN DE LA POLÍTICA PUBLICA DE MUJERES Y EQUIDAD DE GÉNERO, PPMYEG.”. | N83: INVERSIÓN | O83: 824 | P83: 22.048.000 | Q83: 1371 | R83: Fortalecimiento de la participación | S83: 2020-05-28 | T83: 2020-06-04 | U83: 2020-10-03 | V83: 22048000 | W83: 4 | X83: 5512000 | Y83: 922 | Z83: 22048000 | AA83: YEIMY CAROLINA AGUDELO HERNANDEZ | AB83: MARIA DEL PILAR MUJICA SANDOVAL | AC83: PARTICIPACION | AD83: 380 47 994000105459 | AE83: 28/5/2020 | AF83: 2021-03-04 | AG83: NA | AH83: 0 | AI83: NA | AJ83: NA | AK83: NA | AL83: NA | AM83: NA | AN83: NA | AO83: NA | AP83: NA | AQ83: NA | AR83: NA | AS83: NA | AT83: NA | AU83: NA | AV83: NA | AW83: NA | AX83: NA
A84: LICITACION PUBLICA | B84: CONTRATO DE PRESTACION DE SERVICIOS | C84: EN EJECUCION | D84: FDLK-LP-1-2020 | E84: CPS-079-2020 | F84: =VLOOKUP(E84,[1]Hoja1!D$3:E$393,2,0) -> 0.8149253731 | G84: COOPERATIVA DE VIGILANCIA Y SERVICIOS DE BUCARAMANGA CTA - COOVIAM CTA | H84: 804.000.353–1 | I84: JULIANA MARCELA LUNA CHAVEZ | J84: 52.789.684 | L84: https://community.secop.gov.co/Public/Tendering/OpportunityDetail/Index?noticeUID=CO1.NTC.1222626&isFromPublicArea=True&isModal=False | M84: PRESTACION DEL SERVICIO DE VIGILANCIA, GUARDA, CUSTODIA, MONITOREO DE ALARMAS Y SEGURIDAD PRIVADA CON ARMAS Y/O SIN ARMAS: MEDIOS TECNOLOGICOS Y CONTROL DE ACCESO PARA LOS/AS USUARIOS / AS, FUNCIONARIOS/ AS, CONTRATISTAS Y PERSONAS EN GENERAL MEDIANTE EL ESTABLECIMIENTO DE CONTROL DE INGRESO Y SALIDA DE LAS INSTALACIONES DE LA ENTIDAD, Y PARA LOS BIENES MUEBLES E INMUEBLES EN LOS CUALES SE DESARROLLE LA MISIONALIDAD DE LA ALCALDIA LOCAL DE KENNEDY Y DE TODOS AQUELLOS POR LOS CUALES LLEGASE A SER | N84: FUNCIONAMIENTO | O84: 784 | P84: 1266958971 | Q84: 005/1363 | R84: Serivios de proteccion (guardas de seguridad) // Fortalecimiento de la gestión local y de las acciones de vigilancia y control | S84: 2020-05-28 | T84: 2020-05-28 | U84: 2021-04-28 | V84: 1256518570 | W84: 11 | X84: 114228960.9 | Y84: 909 | Z84: 1256518570 | AA84: YEIMY CAROLINA AGUDELO HERNANDEZ | AB84: MARIA DEL PILAR MUÑOZ TORRES | AC84: NA | AD84: CSC-100004807 y CSC-100001270 | AE84: 2020-05-28 | AF84: 2020-04-28 | AG84: NA | AH84: 0 | AI84: NA | AJ84: NA | AK84: NA | AL84: NA | AM84: NA | AN84: NA | AO84: NA | AP84: NA | AQ84: 61269661 | AR84: NA | AS84: NA | AT84: NA | AU84: NA | AV84: NA | AW84: NA | AX84: NA
A85: CONTRATACION DIRECTA | B85: Contratos de prestación de servicios | C85: EN EJECUCION | D85: FDLK-CD-80-2020 | E85: CPS-080-2020 | F85: =VLOOKUP(E85,[1]Hoja1!D$3:E$393,2,0) -> 0.9889705882 | G85: FRANCY MILE OVALLE TORRES | H85: 1019036542 | I85: FRANCY MILE OVALLE TORRES | J85: 1019036542 | L85: https://community.secop.gov.co/Public/Tendering/OpportunityDetail/Index?noticeUID=CO1.NTC.1269519&isFromPublicArea=True&isModal=False | M85: “PRESTAR APOYO PROFESIONAL PARA EL DESARROLLO TÉCNICO Y OPERATIVO DE TODOS LOS PROCESOS ADMINISTRATIVOS DEL DESPACHO DEL FONDO DE DESARROLLO LOCAL DE KENNEDY¨. | N85: INVERSIÓN | O85: 846 | P85: 45.500.000 | Q85: 1363 | R85: Fortalecimiento de la gestión local y de las acciones de vigilancia y control | S85: 2020-05-29 | T85: 2020-06-01 | U85: 2021-02-28 | V85: 45500000 | W85: 7 | X85: 6500000 | Y85: 913 | Z85: 45500000 | AA85: YEIMY CAROLINA AGUDELO HERNANDEZ | AB85: DIANA MARCELA DELGADO JEREZ | AC85: DESPACHO | AD85: 380 47 994000105451 | AE85: 28/5/2020 | AF85: 2021-03-07 | AG85: NA | AH85: 0 | AI85: NA | AJ85: NA | AK85: NA | AL85: NA | AM85: NA | AN85: 2021-01-01 | AO85: 2 | AP85: MESES | AQ85: 13000000 | AR85: 2021-01-01 | AS85: 2 | AT85: MESES | AU85: NA | AV85: NA | AW85: NA | AX85: NA
A86: CONTRATACION DIRECTA | B86: Contratos de prestación de servicios | C86: TERMINADO | D86: FDLK-CD-81-2020 | E86: CPS-081-2020 | F86: =VLOOKUP(E86,[1]Hoja1!D$3:E$393,2,0) -> 1 | G86: GLORIA ALEJANDRA CASTAÑEDA ALVAREZ | H86: 1030546484 | I86: GLORIA ALEJANDRA CASTAÑEDA ALVAREZ | J86: 1030546484 | L86: https://community.secop.gov.co/Public/Tendering/OpportunityDetail/Index?noticeUID=CO1.NTC.1268658&isFromPublicArea=True&isModal=False | M86: PRESTAR SUS SERVICIOS PROFESIONALES PARA APOYAR A LA ALCALDIA LOCAL DE KENNEDY, DE CONFORMIDAD AL CONVENIO INTERADMINISTRATIVO ESPECIFICO Nro. 1377 de 2016 Y EL DECRETO 633 DE 2017 | N86: INVERSIÓN | O86: 856 | P86: 22048000 | Q86: 1363 | R86: Fortalecimiento de la gestión local y de las acciones de vigilancia y control | S86: 2020-05-28 | T86: 2020-06-02 | U86: 2020-10-01 | V86: 22048000 | W86: 4 | X86: 5512000 | Y86: 915 | Z86: 22048000 | AA86: YEIMY CAROLINA AGUDELO HERNANDEZ | AB86: JULIAN ADOLFO RAMIREZ BEDOYA | AC86: CASA DEL CONSUMIDOR | AD86: 380 47 994000105432 | AE86: 28/5/2020 | AF86: 18/04/2021 | AG86: NA | AH86: 0 | AI86: NA | AJ86: NA | AK86: NA | AL86: NA | AM86: NA | AN86: NA | AO86: NA | AP86: NA | AQ86: NA | AR86: NA | AS86: NA | AT86: NA | AU86: NA | AV86: NA | AW86: NA | AX86: NA
A87: CONTRATACION DIRECTA | B87: Contratos de prestación de servicios | C87: TERMINADO | D87: FDLK-CD-82-2020 | E87: CPS-082-2020 | F87: =VLOOKUP(E87,[1]Hoja1!D$3:E$393,2,0) -> 1 | G87: CAMILO ANDRES BACCA ARIAS | H87: 1022343449 | I87: CAMILO ANDRES BACCA ARIAS | J87: 1022343449 | L87: https://community.secop.gov.co/Public/Tendering/OpportunityDetail/Index?noticeUID=CO1.NTC.1275366&isFromPublicArea=True&isModal=False | M87: “PRESTACIÓN DE SERVICIOS PROFESIONALES A LA ALCALDÍA LOCAL DE KENNEDY, APOYANDO LA FORMULACION Y EJECUCION DE LOS PROCESOS RECREODEPORTIVOS, ARTÍSTICOS Y CULTURALES, TENDIENTE A GARANTIZAR EL CUMPLIMIENTO DEL PLAN DE DESARROLLO LOCAL.”.. | N87: INVERSIÓN | O87: 825 | P87: 22.048.000 | Q87: 1362 | R87: Promoción y desarrollo local de la cultura, la recreación y el deporte | S87: 2020-06-02 | T87: 2020-07-29 | U87: 2020-10-03 | V87: 22048000 | W87: 4 | X87: 5512000 | Y87: 925 | Z87: 22048000 | AA87: YEIMY CAROLINA AGUDELO HERNANDEZ | AB87: MARIA DEL PILAR MUJICA SANDOVAL | AC87: PLANEACION | AD87: 21-44-101328352 | AE87: 2020-07-30 | AF87: 2021-04-20 | AG87: NA | AH87: 0 | AI87: NA | AJ87: NA | AK87: DIEGO HERNAN GARCIA BERNAL | AL87: CAMILO ANDRES BACCA ARIAS | AM87: 2020-07-17 | AN87: NA | AO87: NA | AP87: NA | AQ87: NA | AR87: NA | AS87: NA | AT87: NA | AU87: NA | AV87: NA | AW87: NA | AX87: NA
A88: CONTRATACION DIRECTA | B88: Contratos de prestación de servicios | C88: EN EJECUCION | D88: FDLK-CD-83-2020 | E88: CPS-083-2020 | F88: =VLOOKUP(E88,[1]Hoja1!D$3:E$393,2,0) -> 0.9888059701 | G88: JOSE TARCICIO QUIROGA VELASQUEZ | H88: 80362049 | I88: JOSE TARCICIO QUIROGA VELASQUEZ | J88: 80362049 | L88: https://community.secop.gov.co/Public/Tendering/OpportunityDetail/Index?noticeUID=CO1.NTC.1276123&isFromPublicArea=True&isModal=False | M88: “PRESTAR SUS SERVICIOS PROFESIONALES ESPECIALZIADOS PARA APOYAR A LA ALCALDÍA LOCAL DE KENNEDY EN LA COORDINACION FORMULACION Y SEGUIMIENTO DEL PROYECTO 1367 RECUPERACIÓN DE LA MALLA VIAL LOCAL TENDIENTE A GARANTIZAR EL CUMPLIMIENTO DEL PLAN DE DESARROLLO LOCAL.”. | N88: INVERSIÓN | O88: 847 | P88: 52500000 | Q88: 1367 | R88: Recuperación de la malla vial local | S88: 2020-06-03 | T88: 2020-06-05 | U88: 2021-02-28 | V88: 52500000 | W88: 7 | X88: 7500000 | Y88: 923 | Z88: 52500000 | AA88: YEIMY CAROLINA AGUDELO HERNANDEZ | AB88: DIANA MARCELA DELGADO JEREZ | AC88: INFRAESTRUCTURA | AD88: 15-44-101227900 | AE88: 2020-02-06 | AF88: 30/06/2021 | AG88: NA | AH88: 0 | AI88: NA | AJ88: NA | AK88: NA | AL88: NA | AM88: NA | AN88: 2021-01-01 | AO88: 2 | AP88: MESES | AQ88: 15000000 | AR88: 2021-01-01 | AS88: 2 | AT88: MESES | AU88: NA | AV88: NA | AW88: NA | AX88: NA
A89: CONTRATACION DIRECTA | B89: Contratos de prestación de servicios | C89: TERMINADO | D89: FDLK-CD-84-2020 | E89: CPS-084-2020 | F89: =VLOOKUP(E89,[1]Hoja1!D$3:E$393,2,0) -> 1 | G89: MELISSA EUGENIA SÁNCHEZ VIDAL | H89: 1018420532 | I89: MELISSA EUGENIA SÁNCHEZ VIDAL | J89: 1018420532 | L89: https://community.secop.gov.co/Public/Tendering/OpportunityDetail/Index?noticeUID=CO1.NTC.1276527&isFromPublicArea=True&isModal=False | M89: PRESTACIÓN DE SERVICIOS PROFESIONALES A LA ALCALDÍA LOCAL DE KENNEDY APOYANDO LA ETAPA PRECONTRACTUAL, CONTRACTUAL Y POSCONTRACTUAL DE LOS PROYECTO EN SALUD TENDIENTE A GARANTIZAR EL CUMPLIMIENTO DEL PLAN DE DESARROLLO LOCAL | N89: INVERSIÓN | O89: 843 | P89: 22048000 | Q89: 1373 | R89: Fortalecimiento al mejoramiento de la calidad de vida | S89: 2020-06-03 | T89: 2020-06-05 | U89: 2020-10-04 | V89: 22048000 | W89: 4 | X89: 5512000 | Y89: 924 | Z89: 22048000 | AA89: YEIMY CAROLINA AGUDELO HERNANDEZ | AB89: MARIA DEL PILAR MUJICA SANDOVAL | AC89: PLANEACION | AD89: 380-47-994000105550 | AE89: 2020-04-06 | AF89: 2021-06-04 | AG89: NA | AH89: 0 | AI89: NA | AJ89: NA | AK89: NA | AL89: NA | AM89: NA | AN89: NA | AO89: NA | AP89: NA | AQ89: NA | AR89: NA | AS89: NA | AT89: NA | AU89: NA | AV89: NA | AW89: NA | AX89: NA
A90: CONTRATACION DIRECTA | B90: Contratos de prestación de servicios | C90: TERMINADO | D90: FDLK-CD-85-2020 | E90: CPS-085-2020 | F90: =VLOOKUP(E90,[1]Hoja1!D$3:E$393,2,0) -> 1 | G90: MARITZA RUIZ POSADA | H90: 1073678229 | I90: MARITZA RUIZ POSADA | J90: 1073678229 | L90: https://community.secop.gov.co/Public/Tendering/OpportunityDetail/Index?noticeUID=CO1.NTC.1278734&isFromPublicArea=True&isModal=False | M90: “PRESTAR LOS SERVICIOS PROFESIONALES PARA APOYAR LA GESTIÓN DE LOS ASUNTOS RELACIONADOS CON LA SEGURIDAD CIUDADANA Y LA CONVIVENCIA EN LA LOCALIDAD DE KENNEDY, ASÍ COMO ORGANIZAR Y LIDERAR EL EQUIPO DE GESTORES DE CONVIVENCIA”. | N90: INVERSIÓN | O90: 829 | P90: 22048000 | Q90: 1376 | R90: Fortalecimiento de seguridad e iniciativa de convivencia en la localidad de Kennedy | S90: 2020-06-05 | T90: 2020-06-11 | U90: 2020-10-10 | V90: 22048000 | W90: 4 | X90: 5512000 | Y90: 926 | Z90: 22048000 | AA90: YEIMY CAROLINA AGUDELO HERNANDEZ | AB90: NORMA LETICIA GUZMAN RIMOLLI | AC90: GESTION POLICIVA Y JURIDICA | AD90: 14-44-101118584 | AE90: 2020-05-06 | AF90: 20/04/2021 | AG90: NA | AH90: 0 | AI90: NA | AJ90: NA | AK90: NA | AL90: NA | AM90: NA | AN90: NA | AO90: NA | AP90: NA | AQ90: NA | AR90: NA | AS90: NA | AT90: NA | AU90: NA | AV90: NA | AW90: NA | AX90: NA
A91: CONTRATACION DIRECTA | B91: Contratos de prestación de servicios | C91: TERMINADO | D91: FDLK-CD-88-2020. | E91: CPS-088-2020 | F91: =VLOOKUP(E91,[1]Hoja1!D$3:E$393,2,0) -> 1 | G91: SANDRA PATRICIA GAITAN FAJARDO | H91: 51933177 | I91: SANDRA PATRICIA GAITAN FAJARDO | J91: 51933177 | L91: https://community.secop.gov.co/Public/Tendering/OpportunityDetail/Index?noticeUID=CO1.NTC.1286665&isFromPublicArea=True&isModal=False | M91: PRESTACIÓN DE SERVICIOS PROFESIONALES PARA APOYAR JURÍDICAMENTE A LA ALCALDÍA LOCAL DE KENNEDY-FONDO DE DESARROLLO LOCAL DE KENNEDY EN LOS ASUNTOS CONSTITUCIONALES, LEGALES Y REGLAMENTARIOS DE SU COMPETENCIA, PARTICULARMENTE LOS RELACIONADOS CON EL APOYO A LA COORDINACIÓN DE LAS ETAPAS PRECONTRACTUAL, CONTRACTUAL Y POSCONTRACTUAL DE LOS PROCESOS DE CONTRATACIÓN | N91: INVERSIÓN | O91: 865 | P91: 25440000 | Q91: 1363 | R91: Fortalecimiento de la gestión local y de las acciones de vigilancia y control | S91: 2020-06-10 | T91: 2020-06-11 | U91: 2020-10-10 | V91: 25440000 | W91: 4 | X91: 6360000 | Y91: 940 | Z91: 25440000 | AA91: YEIMY CAROLINA AGUDELO HERNANDEZ | AB91: MONICA JOHANNA HERNANDEZ PERAZA | AC91: CONTRATACION | AD91: 33-44-101201126 | AE91: 10/06/20202 | AF91: 2021-10-04 | AG91: NA | AH91: 0 | AI91: NA | AJ91: NA | AK91: NA | AL91: NA | AM91: NA | AN91: NA | AO91: NA | AP91: NA | AQ91: NA | AR91: NA | AS91: NA | AT91: NA | AU91: NA | AV91: NA | AW91: NA | AX91: NA
A92: CONTRATACION DIRECTA | B92: Contratos de prestación de servicios | C92: EN EJECUCION | D92: FDLK-CD-89-2020 | E92: CPS-089-2020 | F92: =VLOOKUP(E92,[1]Hoja1!D$3:E$393,2,0) -> 0.8366666667 | G92: SINDY JHOANA TORRES ALVAREZ | H92: 1026266387 | I92: SINDY JHOANA TORRES ALVAREZ | J92: 1026266387 | L92: https://community.secop.gov.co/Public/Tendering/OpportunityDetail/Index?noticeUID=CO1.NTC.1289853&isFromPublicArea=True&isModal=False | M92: “PRESTAR SUS SERVICIOS PROFESIONALES PARA APOYAR A LA ALCALDÍA LOCAL DE KENNEDY EN LA COORDINACION FORMULACION Y SEGUIMIENTO DEL PROYECTO 1381 KENNEDY MEJOR PARA LAS VÍCTIMAS, LA PAZ Y LA RECONCILIACIÓN TENDIENTE A GARANTIZAR EL CUMPLIMIENTO DEL PLAN DE DESARROLLO LOCAL”. | N92: INVERSIÓN | O92: 848 | P92: 52.780.000 | Q92: 1381 | R92: Kennedy mejor para las víctimas, la paz y la reconciliación | S92: 2020-06-13 | T92: 2020-06-19 | U92: 2021-04-15 | V92: 52780000 | W92: 7 | X92: 7540000 | Y92: 951 | Z92: 52780000 | AA92: YEIMY CAROLINA AGUDELO HERNANDEZ | AB92: MARIA DEL PILAR MUJICA SANDOVAL | AC92: PLANEACION | AD92: 12-46-101037946 | AE92: 16/06/2020 | AF92: 2021-05-07 | AG92: NA | AH92: 0 | AI92: NA | AJ92: NA | AK92: NA | AL92: NA | AM92: NA | AN92: 2021-01-01 | AO92: 105 | AP92: DIAS | AQ92: 26390000 | AR92: 2021-01-01 | AS92: 105 | AT92: DIAS | AU92: NA | AV92: NA | AW92: NA | AX92: NA
A93: CONTRATACION DIRECTA | B93: Contratos de prestación de servicios | C93: TERMINADO | D93: FDLK-CD-90-2020 | E93: CPS-090-2020 | F93: =VLOOKUP(E93,[1]Hoja1!D$3:E$393,2,0) -> 1 | G93: CRISTIAN RODRIGO BOLAÑOS SOLARTE | H93: 1013594088 | I93: CRISTIAN RODRIGO BOLAÑOS SOLARTE | J93: 1013594088 | L93: https://community.secop.gov.co/Public/Tendering/OpportunityDetail/Index?noticeUID=CO1.NTC.1288358&isFromPublicArea=True&isModal=False | M93: Prestar sus servicios profesionales para apoyar al fondo de desarrollo local de Kennedy, en las etapas precontractual, contractual y poscontractual del proyecto 1365 adecuar jardines infantiles de la localidad de conformidad con el plan de desarrollo local | N93: INVERSIÓN | O93: 867 | P93: 22.048.000 | Q93: 1365 | R93: Fortalecimiento pedagógico y estructural a jardines infantiles y prevención de violencia infantil y promoción del buen trato | S93: 2020-06-11 | T93: 2020-06-17 | U93: 2020-12-16 | V93: 22048000 | W93: 4 | X93: 5512000 | Y93: 948 | Z93: 22048000 | AA93: YEIMY CAROLINA AGUDELO HERNANDEZ | AB93: JOSÉ TARCICIO QUIROGA VELAZQUES | AC93: INFRAESTRUCTURA | AD93: 380-47-994000105623 | AE93: 2020-11-06 | AF93: 18/03/2021 | AG93: NA | AH93: 0 | AI93: NA | AJ93: NA | AK93: NA | AL93: NA | AM93: NA | AN93: 2020-10-17 | AO93: 60 | AP93: DIAS | AQ93: 11024000 | AR93: 2020-10-17 | AS93: 60 | AT93: DIAS | AU93: NA | AV93: NA | AW93: NA | AX93: NA
A94: CONTRATACION DIRECTA | B94: Contratos de prestación de servicios | C94: TERMINADO | D94: FDLK-CD-91-2020 | E94: CPS-091-2020 | F94: =VLOOKUP(E94,[1]Hoja1!D$3:E$393,2,0) -> 1 | G94: EDGAR NELSON RESTREPO MORALES | H94: 79266164 | I94: EDGAR NELSON RESTREPO MORALES | J94: 79266164 | L94: https://community.secop.gov.co/Public/Tendering/OpportunityDetail/Index?noticeUID=CO1.NTC.1290535&isFromPublicArea=True&isModal=False | M94: PRESTAR LOS SERVICIOS DE APOYO COMO OPERADOR DE MAQUINARIA RODANTE DE CONSTRUCCIÓN DE PROPIEDAD DEL FONDO DE DESARROLLO LOCAL DE KENNEDY APOYANDO LA EJECUCION DE LOS PROYECTOS DEL ÁREA INFRAESTRUCTURA Y LAS DEMAS ACTIVIDADES QUE SE GENEREN | N94: INVERSIÓN | O94: 853 | P94: 9.988.000 | Q94: 1367 | R94: Recuperación de la malla vial local | S94: 2020-06-12 | T94: 2020-06-18 | U94: 2020-12-17 | V94: 9988000 | W94: 4 | X94: 2497000 | Y94: 950 | Z94: 9988000 | AA94: YEIMY CAROLINA AGUDELO HERNANDEZ | AB94: JOSÉ TARCICIO QUIROGA VELAZQUES | AC94: INFRAESTRUCTURA | AD94: 380-47-994000105638 | AE94: 2020-06-12 | AF94: 2021-06-18 | AG94: NA | AH94: 0 | AI94: NA | AJ94: NA | AK94: NA | AL94: NA | AM94: NA | AN94: 2020-10-18 | AO94: 60 | AP94: DIAS | AQ94: 4994000 | AR94: 2020-10-18 | AS94: 60 | AT94: DIAS | AU94: NA | AV94: NA | AW94: NA | AX94: NA
A95: CONTRATACION DIRECTA | B95: Contratos de prestación de servicios | C95: TERMINADO | D95: FDLK-CD-93-2020 | E95: CPS-093-2020 | F95: =VLOOKUP(E95,[1]Hoja1!D$3:E$393,2,0) -> 1 | G95: MARCELA IRENE GONZALEZ BONILLA | H95: 52243558 | I95: MARCELA IRENE GONZALEZ BONILLA | J95: 52243558 | L95: https://community.secop.gov.co/Public/Tendering/OpportunityDetail/Index?noticeUID=CO1.NTC.1293781&isFromPublicArea=True&isModal=False | M95: PRESTAR SUS SERVICIOS PROFESIONALES AL FONDO DE DESARROLLO LOCAL DE KENNEDY COMO APOYO PARA LA DESCONGESTION DE LOS PROCESOS LIQUIDATORIOS EN CURSO Y DEPURACION DE LAS OBLIGACIONES POR PAGAR A CARGO DEL FONDO DE DESARROLLO LOCAL DE KENNEDY | N95: INVERSIÓN | O95: 868 | P95: 66144000 | Q95: 1363 | R95: Fortalecimiento de la gestión local y de las acciones de vigilancia y control | S95: 2020-06-16 | T95: 2020-06-18 | U95: 2020-12-17 | V95: 22048000 | W95: 4 | X95: 5512000 | Y95: 945 | Z95: 22048000 | AA95: YEIMY CAROLINA AGUDELO HERNANDEZ | AB95: GLORIA STELLA ROBALLO OLMOS | AC95: CONTRATACION | AD95: 12-46-101037938 | AE95: 16/06/2020 | AF95: 2021-05-05 | AG95: NA | AH95: 0 | AI95: NA | AJ95: NA | AK95: NA | AL95: NA | AM95: NA | AN95: 2020-10-18 | AO95: 60 | AP95: DIAS | AQ95: 11024000 | AR95: 2020-10-18 | AS95: 60 | AT95: DIAS | AU95: NA | AV95: NA | AW95: NA | AX95: NA
A96: CONTRATACION DIRECTA | B96: Contratos de prestación de servicios | C96: EN EJECUCION | D96: FDLK-CD-94-2020 | E96: CPS-094-2020 | F96: =VLOOKUP(E96,[1]Hoja1!D$3:E$393,2,0) -> 1 | G96: MARBY YANET MARTINEZ ORTIZ | H96: 52149245 | I96: MARBY YANET MARTINEZ ORTIZ | J96: 52149245 | L96: https://community.secop.gov.co/Public/Tendering/OpportunityDetail/Index?noticeUID=CO1.NTC.1295342&isFromPublicArea=True&isModal=False | M96: “PRESTAR LOS SERVICIOS PROFESIONALES PARA LA OPERACIÓN, PRESTACIÓN, SEGUIMIENTO Y CUMPLIMIENTO DE LOS PROCEDIMIENTOS ADMINISTRATIVOS, OPERATIVOS Y PROGRAMÁTICOS DEL SERVICIO APOYO ECONÓMICO TIPO C, QUE CONTRIBUYAN A LA GARANTÍA DE LOS DERECHOS DE LA POBLACIÓN MAYOR EN EL MARCO DE LA POLÍTICA PÚBLICA SOCIAL PARA EL ENVEJECIMIENTO Y LA VEJEZ EN EL DISTRITO CAPITAL A CARGO DE LA ALCALDÍA LOCAL DE KENNEDY. | N96: INVERSIÓN | O96: 852 | P96: 33.632.000 | Q96: 1378 | R96: Igualdad y autonomía para una Kennedy incluyente | S96: 2020-06-17 | T96: 2020-06-19 | U96: 2021-02-15 | V96: 33632000 | W96: 8 | X96: 4204000 | Y96: 952 | Z96: 33632000 | AA96: YEIMY CAROLINA AGUDELO HERNANDEZ | AB96: GIUSSEPE SALVATORE SCOPPETTA TORRES | AC96: PLANEACION | AD96: 2638179-6 | AE96: 17/6/2020 | AF96: 20/08/2021 | AG96: NA | AH96: 0 | AI96: NA | AJ96: NA | AK96: NA | AL96: NA | AM96: NA | AN96: 2021-01-01 | AO96: 46 | AP96: DIAS | AQ96: 6300000 | AR96: 2021-01-01 | AS96: 46 | AT96: DIAS | AU96: NA | AV96: NA | AW96: NA | AX96: NA
A97: CONTRATACION DIRECTA | B97: CONTRATO INTERADMINISTRATIVO | C97: TERMINADO | D97: FDLK-CIA-96-2020 | E97: CD-096-2020 | F97: =VLOOKUP(E97,[1]Hoja1!D$3:E$393,2,0) -> 1 | G97: EMPRESA DE TELECOMUNICACIONES DE BOGOTA S.A. ESP ETB. | H97: 899.999.115-8 | I97: CAMILO ANDRES OLEA RODRIGUEZ | J97: 80.504.362 | L97: https://www.contratos.gov.co/consultas/detalleProceso.do?numConstancia=20-22-16249 | M97: PROVEER UNA PLATAFORMA VIRTUAL Y SERVICIOS TECNOLÓGICOS NECESARIOS A LOS FONDOS DE DESARROLLO LOCAL, EN LA REALIZACIÓN DE LAS ASAMBLEAS, EVENTOS Y FOROS DIGITALES, EN EL MARCO DE LOS ENCUENTROS CIUDADANOS, DE ACUERDO CON LOS LINEAMIENTOS ESTRATÉGICOS QUE DETERMINEN LOS FDL | N97: INVERSIÓN | O97: 900 | P97: 74561378 | Q97: 1371 | R97: Fortalecimiento de la participación | S97: 2020-06-20 | T97: 2020-06-23 | U97: 2020-07-31 | V97: 74561378 | W97: 1 | X97: 74561378 | Y97: 956 | Z97: 74561378 | AA97: YEIMY CAROLINA AGUDELO HERNANDEZ | AB97: KARLA MACHADO PÉREZ | AC97: NA | AD97: 2019404 | AE97: 2020-06-20 | AF97: 2023-07-31 | AG97: NA | AH97: 0 | AI97: NA | AJ97: NA | AK97: NA | AL97: NA | AM97: NA | AN97: NA | AO97: NA | AP97: NA | AQ97: NA | AR97: NA | AS97: NA | AT97: NA | AU97: NA | AV97: NA | AW97: NA | AX97: NA
A98: CONTRATACION DIRECTA | B98: Contratos de prestación de servicios | C98: EN EJECUCION | D98: FDLK-CD-97-2020 | E98: CPS-097-2020 | F98: =VLOOKUP(E98,[1]Hoja1!D$3:E$393,2,0) -> 0.9879032258 | G98: CRISTIAN DARIO DUARTE LESMES | H98: 1019016609 | I98: CRISTIAN DARIO DUARTE LESMES | J98: 1019016609 | L98: https://community.secop.gov.co/Public/Tendering/OpportunityDetail/Index?noticeUID=CO1.NTC.1305914&isFromPublicArea=True&isModal=False | M98: PRESTAR SUS SERVICIOS PROFESIONALES ESPECIALIZADOS A LA ALCALDÍA LOCAL DE KENNEDY DE LOS PROCESOS, PROYECTOS, PROGRAMAS DE DOTACIÓN DE INSTITUCIONES EDUCATIVAS DE LA LOCALIDAD TENDIENTES A GARANTIZAR EL CUMPLIMIENTO DEL PLAN DE DESARROLLO LOCAL Y SERVIR COMO ENLACE ANTE CORABASTOS Y EL SECTOR DE DESARROLLO ECONÓMICO | N98: INVERSIÓN | O98: 891 | P98: 60.320.000 | Q98: 1360 | R98: Fortalecimiento de las instituciones educativas distritales, para una inclusión educativa | S98: 2020-06-24 | T98: 2020-06-25 | U98: 2021-02-28 | V98: 60320000 | W98: 8 | X98: 7540000 | Y98: 959 | Z98: 60320000 | AA98: YEIMY CAROLINA AGUDELO HERNANDEZ | AB98: MARIA DEL PILAR MUJICA SANDOVAL | AC98: PLANEACION | AD98: 21-44-101325872 | AE98: 2020-06-24 | AF98: 30/6/2021 | AG98: NA | AH98: 0 | AI98: NA | AJ98: NA | AK98: NA | AL98: NA | AM98: NA | AN98: 2021-01-01 | AO98: 2 | AP98: MESES | AQ98: 15080000 | AR98: 2021-01-01 | AS98: 2 | AT98: MESES | AU98: NA | AV98: NA | AW98: NA | AX98: NA
A99: CONTRATACION DIRECTA | B99: Contratos de prestación de servicios | C99: EN EJECUCION | D99: FDLK-CD-98-2020 | E99: CPS-098-2020 | F99: =VLOOKUP(E99,[1]Hoja1!D$3:E$393,2,0) -> 0.987854251 | G99: LEÓN DARÍO RAMÍREZ RANGEL | H99: 1010173266 | I99: LEÓN DARÍO RAMÍREZ RANGEL | J99: 1010173266 | L99: https://community.secop.gov.co/Public/Tendering/OpportunityDetail/Index?noticeUID=CO1.NTC.1307326&isFromPublicArea=True&isModal=False | M99: RESTACIÓN DE SERVICIOS PROFESIONALES PARA APOYAR JURÍDICAMENTE A LA ALCALDÍA LOCAL DE KENNEDY - FONDO DEDESARROLLO LOCAL DE KENNEDY EN LOS ASUNTOS CONSTITUCIONALES, LEGALES YREGLAMENTARIOS DE SU COMPETENCIA, PARTICULARMENTE LOS RELACIONADOS CON LAS ETAPASPRECONTRACTUAL, CONTRACTUAL Y POSCONTRACTUAL DE LOS PROCESOS DE CONTRATACIÓN | N99: INVERSIÓN | O99: 914 | P99: 102600000 | Q99: 1363 | R99: Fortalecimiento de la gestión local y de las acciones de vigilancia y control | S99: 2020-06-25 | T99: 2020-06-26 | U99: 2021-02-28 | V99: 34200000 | W99: 6 | X99: 5700000 | Y99: 958 | Z99: 34200000 | AA99: YEIMY CAROLINA AGUDELO HERNANDEZ | AB99: MONICA JOHANNA HERNANDEZ PERAZA | AC99: CONTRATACION | AD99: 21-44-101325946 | AE99: 2020-06-26 | AF99: 16/06/2021 | AG99: NA | AH99: 0 | AI99: NA | AJ99: NA | AK99: NA | AL99: NA | AM99: NA | AN99: 2020-12-26 | AO99: 65 | AP99: DIAS | AQ99: 12350000 | AR99: 2020-12-26 | AS99: 65 | AT99: DIAS | AU99: NA | AV99: NA | AW99: NA | AX99: NA
A100: CONTRATACION DIRECTA | B100: Contratos de prestación de servicios | C100: EN EJECUCION | D100: FDLK-CD-99-2020 | E100: CPS-099-2020 | F100: =VLOOKUP(E100,[1]Hoja1!D$3:E$393,2,0) -> 1 | G100: ADRIANA DEVIA DIAZ | H100: 52702473 | I100: ADRIANA DEVIA DIAZ | J100: 52702473 | L100: https://community.secop.gov.co/Public/Tendering/OpportunityDetail/Index?noticeUID=CO1.NTC.1307167&isFromPublicArea=True&isModal=False | M100: PRESTAR SUS SERVICIOS PROFESIONALES PARA LA IMPLEMENTACIÓN DE LAS ACCIONES Y LINEAMIENTOS TÉCNICOS SURTIDOS DEL PROGRAMA DE GESTIÓN DOCUMENTAL Y DEMÁS INSTRUMENTOS TÉCNICOS ARCHIVÍSTICOS | N100: INVERSIÓN | O100: 863 | P100: 16134020 | Q100: 1363 | R100: Fortalecimiento de la gestión local y de las acciones de vigilancia y control | S100: 2020-06-26 | T100: 2020-08-25 | U100: 2021-02-25 | V100: 16134020 | W100: 4 | X100: 4033505 | Y100: 963 | Z100: 16134000 | AA100: YEIMY CAROLINA AGUDELO HERNANDEZ | AB100: MARIA DEL PILAR MUÑOZ TORRES | AC100: ADMINISTRATIVO Y FINANCIERO | AD100: 11-44-101155936 | AE100: 2020-07-09 | AF100: 2021-05-09 | AG100: NA | AH100: 0 | AI100: NA | AJ100: NA | AK100: WILSON RAMÓN PÉREZ CIFUENTES CC 79249215 | AL100: ADRIANA DEVIA DIAZ | AM100: 2020-08-24 | AN100: 2020-12-26 | AO100: 2 | AP100: MESES | AQ100: 8067010 | AR100: 2020-12-26 | AS100: 2 | AT100: MESES | AU100: NA | AV100: NA | AW100: NA | AX100: NA
A101: CONTRATACION DIRECTA | B101: Contratos de prestación de servicios | C101: TERMINADO | D101: FDLK-CD-100-2020 | E101: CPS-100-2020 | F101: =VLOOKUP(E101,[1]Hoja1!D$3:E$393,2,0) -> 1 | G101: LAURA ALEJANDRA PEÑA SIERRA | H101: 1012444924 | I101: LAURA ALEJANDRA PEÑA SIERRA | J101: 1012444924 | L101: https://community.secop.gov.co/Public/Tendering/OpportunityDetail/Index?noticeUID=CO1.NTC.1307261&isFromPublicArea=True&isModal=False | M101: PRESTAR LOS SERVICIOS DE APOYO AL ÁREA DE GESTIÓN DESARROLLO LOCAL DE LA ALCALDÍA LOCAL DE KENNEDY EN ATENCIÓN A LA COMUNIDAD | N101: INVERSIÓN | O101: 870 | P101: 9.988.000 | Q101: 1363 | R101: Fortalecimiento de la gestión local y de las acciones de vigilancia y control | S101: 2020-06-26 | T101: 2020-07-01 | U101: 2020-12-31 | V101: 9988000 | W101: 4 | X101: 2497000 | Y101: 964 | Z101: 9988000 | AA101: YEIMY CAROLINA AGUDELO HERNANDEZ | AB101: FRANCY MILE OVALLE TORRES | AC101: DESPACHO | AD101: 21-44-101326027 | AE101: 26/06/2020 | AF101: 31/10/2021 | AG101: NA | AH101: 0 | AI101: NA | AJ101: NA | AK101: NA | AL101: NA | AM101: NA | AN101: 2020-11-01 | AO101: 60 | AP101: DIAS | AQ101: 4994000 | AR101: 2020-11-01 | AS101: 60 | AT101: DIAS | AU101: NA | AV101: NA | AW101: NA | AX101: NA
A102: CONTRATACION DIRECTA | B102: Contratos de prestación de servicios | C102: EN EJECUCION | D102: FDLK-CD-101-2020 | E102: CPS-101-2020 | F102: =VLOOKUP(E102,[1]Hoja1!D$3:E$393,2,0) -> 0.9876033058 | G102: LEIDY JAQUELINE CAMARGO RODRIGUEZ | H102: 1026288168 | I102: LEIDY JAQUELINE CAMARGO RODRIGUEZ | J102: 1026288168 | L102: https://community.secop.gov.co/Public/Tendering/OpportunityDetail/Index?noticeUID=CO1.NTC.1308324&isFromPublicArea=True&isModal=False | M102: PRESTAR LOS SERVICIOS DE APOYO ADMINISTRATIVO EN EL DESARROLLO OPERATIVO DE LOS TRÁMITES CONTRACTUALES ADELANTADOS POR LA ALCALDÍA LOCAL DE KENNEDY - FONDO DE DESARROLLO LOCAL DE KENNEDY | N102: INVERSIÓN | O102: 844 | P102: 23.872.000 | Q102: 1363 | R102: Fortalecimiento de la gestión local y de las acciones de vigilancia y control | S102: 2020-06-26 | T102: 2020-07-01 | U102: 2021-02-28 | V102: 17904000 | W102: 6 | X102: 2984000 | Y102: 965 | Z102: 17904000 | AA102: YEIMY CAROLINA AGUDELO HERNANDEZ | AB102: MONICA JOHANNA HERNANDEZ PERAZA | AC102: CONTRATACION | AD102: 21-44-101326020 | AE102: 26/06/2020 | AF102: 30/06/2021 | AG102: NA | AH102: 0 | AI102: NA | AJ102: NA | AK102: NA | AL102: NA | AM102: NA | AN102: 2021-01-01 | AO102: 2 | AP102: MESES | AQ102: 5968000 | AR102: 2021-01-01 | AS102: 2 | AT102: MESES | AU102: NA | AV102: NA | AW102: NA | AX102: NA
A103: CONTRATACION DIRECTA | B103: Contratos de prestación de servicios | C103: TERMINADO | D103: FDLK-CD-102-2020. | E103: CPS-102-2020 | F103: =VLOOKUP(E103,[1]Hoja1!D$3:E$393,2,0) -> 1 | G103: ANDREA TATIANA OSORIO VANEGAS. | H103: 1030587457 | I103: ANDREA TATIANA OSORIO VANEGAS. | J103: 1030587457 | L103: https://community.secop.gov.co/Public/Tendering/OpportunityDetail/Index?noticeUID=CO1.NTC.1308636&isFromPublicArea=True&isModal=False | M103: PRESTAR SUS SERVICIOS PROFESIONALES AL FONDO DE DESARROLLO LOCAL DE KENNEDY COMO APOYO PARA LA DESCONGESTIÓN DE LOS PROCESOS LIQUIDATORIOS EN CURSO Y DEPURACIÓN DE LAS OBLIGACIONES POR PAGAR A CARGO DEL FONDO DE DESARROLLO LOCAL DE KENNEDY | N103: INVERSIÓN | O103: 845 | P103: 22048000 | Q103: 1363 | R103: Fortalecimiento de la gestión local y de las acciones de vigilancia y control | S103: 2020-06-26 | T103: 2020-07-01 | U103: 2020-12-31 | V103: 22048000 | W103: 4 | X103: 5512000 | Y103: 966 | Z103: 22048000 | AA103: YEIMY CAROLINA AGUDELO HERNANDEZ | AB103: GLORIA STELLA ROBALLO OLMOS | AC103: CONTRATACION | AD103: 21-44-101326070 | AE103: 26/06/2020 | AF103: 30/04/2021 | AG103: NA | AH103: 0 | AI103: NA | AJ103: NA | AK103: NA | AL103: NA | AM103: NA | AN103: 2020-11-01 | AO103: 60 | AP103: DIAS | AQ103: 11024000 | AR103: 2020-11-01 | AS103: 60 | AT103: DIAS | AU103: NA | AV103: NA | AW103: NA | AX103: NA
A104: CONTRATACION DIRECTA | B104: Contratos de prestación de servicios | C104: TERMINADO | D104: FDLK-CD-103-2020 | E104: CPS-103-2020 | F104: =VLOOKUP(E104,[1]Hoja1!D$3:E$393,2,0) -> 1 | G104: EDISON JAVIER VELÁSQUEZ RODRIGUEZ | H104: 79655150 | I104: EDISON JAVIER VELÁSQUEZ RODRIGUEZ | J104: 79655150 | L104: https://community.secop.gov.co/Public/Tendering/OpportunityDetail/Index?noticeUID=CO1.NTC.1309615&isFromPublicArea=True&isModal=False | M104: PRESTAR LOS SERVICIOS PROFESIONALES AL DESPACHO DE LA ALCALDIA LOCAL, COMO ENLACE EN LOS TEMAS DE GESTION DEL RIESGO, MANEJO DE AGLOMERACIONES, ATRACCIONES Y DISPOSITIVOS DE ENTRETENIMIENTOS A CARGO DE LA LOCALIDAD DE KENNEDY, DE CONFORMIDAD CON EL MARCO NORMATIVO APLICABLE PARA LA MATERIA | N104: INVERSIÓN | O104: 901 | P104: 33364000 | Q104: 1363 | R104: Fortalecimiento de la gestión local y de las acciones de vigilancia y control | S104: 2020-06-26 | T104: 2020-07-01 | U104: 2020-12-31 | V104: 33364000 | W104: 4 | X104: 8341000 | Y104: 962 | Z104: 33364000 | AA104: YEIMY CAROLINA AGUDELO HERNANDEZ | AB104: NORMA LETICIA GUZMAN RIMOLLI | AC104: GESTION POLICIVA Y JURIDICA | AD104: 64-46-101008867 | AE104: 26/06/2020 | AF104: 30/04/2021 | AG104: NA | AH104: 0 | AI104: NA | AJ104: NA | AK104: NA | AL104: NA | AM104: NA | AN104: 2020-11-01 | AO104: 60 | AP104: DIAS | AQ104: 16682000 | AR104: 2020-11-01 | AS104: 60 | AT104: DIAS | AU104: NA | AV104: NA | AW104: NA | AX104: NA
A105: CONTRATACION DIRECTA | B105: Contratos de prestación de servicios | C105: TERMINADO | D105: FDLK-CD-104-2020 | E105: CPS-104-2020 | F105: =VLOOKUP(E105,[1]Hoja1!D$3:E$393,2,0) -> 1 | G105: LAURA XIMENA PERDOMO CEDEÑO | H105: 1032461308 | I105: LAURA XIMENA PERDOMO CEDEÑO | J105: 1032461308 | L105: https://community.secop.gov.co/Public/Tendering/OpportunityDetail/Index?noticeUID=CO1.NTC.1313189&isFromPublicArea=True&isModal=False | M105: APOYANDO LA EJECUCIÓN DEL PROYECTO 1380 MI CASA ME PERTENECE EN EL COMPONENTE JURÍDICO TENDIENTE A LA TITULACIÓN DE PREDIOS CONFORME A GARANTIZAR EL CUMPLIMIENTO DEL PLAN DE DESARROLLO LOCAL | N105: INVERSIÓN | O105: 864 | P105: 21840000 | Q105: 1380 | R105: Mi casa me pertenece | S105: 2020-06-30 | T105: 2020-07-03 | U105: 2020-12-31 | V105: 21840000 | W105: 4 | X105: 5460000 | Y105: 976 | Z105: 21840000 | AA105: YEIMY CAROLINA AGUDELO HERNANDEZ | AB105: YULLIET PATRICIA LLERENA AVENDAÑO | AC105: PLANEACION | AD105: 21-44-101326188 | AE105: 30/06/2020 | AF105: 2021-01-05 | AG105: NA | AH105: 0 | AI105: NA | AJ105: NA | AK105: NA | AL105: NA | AM105: NA | AN105: 2020-11-03 | AO105: 59 | AP105: DIAS | AQ105: 10738000 | AR105: 2020-11-03 | AS105: 59 | AT105: DIAS | AU105: NA | AV105: NA | AW105: NA | AX105: NA
A106: CONTRATACION DIRECTA | B106: Contratos de prestación de servicios | C106: TERMINADO | D106: FDLK-CD-105-2020 | E106: CPS-105-2020 | F106: =VLOOKUP(E106,[1]Hoja1!D$3:E$393,2,0) -> 1 | G106: YULY ALEJANDRA VARELA TORRES | H106: 53161176 | I106: YULY ALEJANDRA VARELA TORRES | J106: 53161176 | L106: https://community.secop.gov.co/Public/Tendering/OpportunityDetail/Index?noticeUID=CO1.NTC.1313118&isFromPublicArea=True&isModal=False | M106: PRESTAR SUS SERVICIOS PROFESIONALES AL FONDO DE DESARROLLO LOCAL DE KENNEDY COMO APOYO PARA LA DESCONGESTION DE LOS PROCESOS LIQUIDATORIOS EN CURSO Y DEPURACION DE LAS OBLIGACIONES POR PAGAR A CARGO DEL FONDO DE DESARROLLO LOCAL DE KENNEDY | N106: INVERSIÓN | O106: 868 | P106: 66144000 | Q106: 1363 | R106: Fortalecimiento de la gestión local y de las acciones de vigilancia y control | S106: 2020-06-30 | T106: 2020-07-06 | U106: 2020-12-31 | V106: 22048000 | W106: 4 | X106: 5512000 | Y106: 980 | Z106: 22048000 | AA106: YEIMY CAROLINA AGUDELO HERNANDEZ | AB106: GLORIA STELLA ROBALLO OLMOS | AC106: CONTRATACION | AD106: 14-46-101041709 | AE106: 2020-01-07 | AF106: 2021-12-05 | AG106: NA | AH106: 0 | AI106: NA | AJ106: NA | AK106: NA | AL106: NA | AM106: NA | AN106: 2020-11-06 | AO106: 55 | AP106: DIAS | AQ106: 10105333 | AR106: 2020-11-06 | AS106: 55 | AT106: DIAS | AU106: NA | AV106: NA | AW106: NA | AX106: NA
A107: CONTRATACION DIRECTA | B107: Contratos de prestación de servicios | C107: TERMINADO | D107: FDLK-CD-106-2020 | E107: CPS-106-2020 | F107: =VLOOKUP(E107,[1]Hoja1!D$3:E$393,2,0) -> 1 | G107: HUGO ARMANDO SALINAS RODRIGUEZ | H107: 79849091 | I107: HUGO ARMANDO SALINAS RODRIGUEZ | J107: 79849091 | L107: https://community.secop.gov.co/Public/Tendering/OpportunityDetail/Index?noticeUID=CO1.NTC.1312835&isFromPublicArea=True&isModal=False | M107: PRESTAR SUS SERVICIOS PROFESIONALES A LA ALCALDÍA LOCAL DE KENNEDY APOYANDO LAS ETAPAS PRECONTRACTUAL, CONTRACTUAL Y POSCONTRACTUAL DE LOS PROYECTOS TENDIENTES A GARANTIZAR EL CUMPLIMIENTO DEL PLAN DE DESARROLLO LOCAL. | N107: INVERSIÓN | O107: 896 | P107: 26298980 | Q107: 1363 | R107: Fortalecimiento de la gestión local y de las acciones de vigilancia y control | S107: 2020-06-30 | T107: 2020-07-06 | U107: 2020-12-31 | V107: 26298980 | W107: 4 | X107: 6574745 | Y107: 970 | Z107: 26298980 | AA107: YEIMY CAROLINA AGUDELO HERNANDEZ | AB107: MARIA DEL PILAR MUJICA SANDOVAL | AC107: PLANEACION | AD107: 21-44-101326094 | AE107: 30/06/2020 | AF107: 30/04/2021 | AG107: NA | AH107: 0 | AI107: NA | AJ107: NA | AK107: NA | AL107: NA | AM107: NA | AN107: 2020-11-05 | AO107: 55 | AP107: DIAS | AQ107: 12053699 | AR107: 2020-11-05 | AS107: 55 | AT107: DIAS | AU107: NA | AV107: NA | AW107: NA | AX107: NA
A108: CONTRATACION DIRECTA | B108: Contratos de prestación de servicios | C108: TERMINADO | D108: FDLK-CD-107-2020 | E108: CPS-107-2020 | F108: =VLOOKUP(E108,[1]Hoja1!D$3:E$393,2,0) -> 1 | G108: ANGIE PAOLA ESCALANTE RODRÍGUEZ | H108: 1024503927 | I108: ANGIE PAOLA ESCALANTE RODRÍGUEZ | J108: 1024503927 | L108: https://community.secop.gov.co/Public/Tendering/OpportunityDetail/Index?noticeUID=CO1.NTC.1312875&isFromPublicArea=True&isModal=False | M108: APOYAR EN LAS TAREAS OPERATIVAS DE CARÁCTERARCHIVÍSTICO DESARROLLADAS EN LA ALCALDÍA LOCAL PARA GARANTIZAR LA APLICACIÓN CORRECTA DELOS PROCEDIMIENTOS TÉCNICOS | N108: INVERSIÓN | O108: 908 | P108: 30828440 | Q108: 1363 | R108: Fortalecimiento de la gestión local y de las acciones de vigilancia y control | S108: 2020-06-30 | T108: 2020-07-08 | U108: 2020-12-31 | V108: 15414220 | W108: 4 | X108: 3853555 | Y108: 979 | Z108: 15414220 | AA108: YEIMY CAROLINA AGUDELO HERNANDEZ | AB108: MARIA DEL PILAR MUÑOZ TORRES | AC108: ADMINISTRATIVO Y FINANCIERO | AD108: 380-47-994000106324 | AE108: 30/06/2020 | AF108: 2021-04-05 | AG108: NA | AH108: 0 | AI108: NA | AJ108: NA | AK108: NA | AL108: NA | AM108: NA | AN108: 2020-11-07 | AO108: 54 | AP108: DIAS | AQ108: 6807947 | AR108: 2020-11-07 | AS108: 54 | AT108: DIAS | AU108: NA | AV108: NA | AW108: NA | AX108: NA
A109: CONTRATACION DIRECTA | B109: Contratos de prestación de servicios | C109: EN EJECUCION | D109: FDLK-CD-108-2020 | E109: CPS-108-2020 | F109: =VLOOKUP(E109,[1]Hoja1!D$3:E$393,2,0) -> 0.9876033058 | G109: LUIS HERNANDO NIVIA PINZON | H109: 1014193169 | I109: LUIS HERNANDO NIVIA PINZON | J109: 1014193169 | L109: https://community.secop.gov.co/Public/Tendering/OpportunityDetail/Index?noticeUID=CO1.NTC.1312900&isFromPublicArea=True&isModal=False | M109: PRESTACIÓN DE SERVICIOS PROFESIONALES PARA APOYAR JURÍDICAMENTE A LA ALCALDÍA LOCAL DE KENNEDY - FONDO DE DESARROLLO LOCAL DE KENNEDY EN LOS ASUNTOS CONSTITUCIONALES, LEGALES Y REGLAMENTARIOS DE SU COMPETENCIA, PARTICULARMENTE LOS RELACIONADOS CON LAS ETAPAS PRECONTRACTUAL, CONTRACTUAL Y POSCONTRACTUAL DE LOS PROCESOS DE CONTRATACIÓN | N109: INVERSIÓN | O109: 914 | P109: 102600000 | Q109: 1363 | R109: Fortalecimiento de la gestión local y de las acciones de vigilancia y control | S109: 2020-06-30 | T109: 2020-07-01 | U109: 2021-02-28 | V109: 34200000 | W109: 6 | X109: 5700000 | Y109: 967 | Z109: 34200000 | AA109: YEIMY CAROLINA AGUDELO HERNANDEZ | AB109: MONICA JOHANNA HERNANDEZ PERAZA | AC109: CONTRATACION | AD109: 33-46-101024098 | AE109: 2020-01-07 | AF109: 2021-01-07 | AG109: NA | AH109: 0 | AI109: NA | AJ109: NA | AK109: LUIS HERNANDO NIVIA PINZON | AL109: KAREN VIVIANA STEPHANY FRANCO CASTAÑEDA | AM109: 2020-12-09 | AN109: 2021-01-01 | AO109: 2 | AP109: MESES | AQ109: 11400000 | AR109: 2021-01-01 | AS109: 2 | AT109: MESES | AU109: NA | AV109: NA | AW109: NA | AX109: NA
A110: CONTRATACION DIRECTA | B110: Contratos de prestación de servicios | C110: TERMINADO | D110: FDLK-CD-109-2020 | E110: CPS-109-2020 | F110: =VLOOKUP(E110,[1]Hoja1!D$3:E$393,2,0) -> 1 | G110: JUAN ALBERTO CARO CARO | H110: 79102953 | I110: JUAN ALBERTO CARO CARO | J110: 79102953 | L110: https://community.secop.gov.co/Public/Tendering/OpportunityDetail/Index?noticeUID=CO1.NTC.1313834&isFromPublicArea=True&isModal=False | M110: PRESTAR SUS SERVICIOS PROFESIONALES A LA ALCALDÍA LOCAL DE KENNEDY PARA APOYAR LA REALIZACIÓN DE LOS ENCUENTROS CIUDADANOS, LA RENDICIÓN DE CUENTAS, EL ACOMPAÑAMIENTO A LAS INSTANCIAS DE PARTICIPACIÓN LOCALES Y EL SEGUIMIENTO A LA EJECUCIÓN DEL PLAN DE DESARROLLO | N110: INVERSIÓN | O110: 855 | P110: 33632000 | Q110: 1371 | R110: Fortalecimiento de la participación | S110: 2020-07-01 | T110: 2020-07-06 | U110: 2020-12-31 | V110: 25083867 | W110: 5.966666667 | X110: 4204000.056 | Y110: 973 | Z110: 25083867 | AA110: YEIMY CAROLINA AGUDELO HERNANDEZ | AB110: LUIS ALEJANDRO VENEGAS ROBAYO | AC110: PARTICIPACION | AD110: 11-46-101014051 | AE110: 2020-01-07 | AF110: 2021-05-07 | AG110: NA | AH110: 0 | AI110: NA | AJ110: NA | AK110: NA | AL110: NA | AM110: NA | AN110: NA | AO110: NA | AP110: NA | AQ110: NA | AR110: NA | AS110: NA | AT110: NA | AU110: NA | AV110: NA | AW110: NA | AX110: NA
A111: CONTRATACION DIRECTA | B111: Contratos de prestación de servicios | C111: TERMINADO | D111: FDLK-CD-110-2020 | E111: CPS-110-2020 | F111: =VLOOKUP(E111,[1]Hoja1!D$3:E$393,2,0) -> 1 | G111: JOHN JAIRO LÓPEZ GAVILÁN | H111: 80120721 | I111: JOHN JAIRO LÓPEZ GAVILÁN | J111: 80120721 | L111: https://community.secop.gov.co/Public/Tendering/OpportunityDetail/Index?noticeUID=CO1.NTC.1313658&isFromPublicArea=True&isModal=False | M111: PRESTAR SUS SERVICIOS PROFESIONALES PARA APOYAR ACTIVIDADES RELACIONADAS CON EVALUACION, SEGUIMIENTO Y CONTROL DE GESTION APOYANDO EL DESPACHO DEL ALCALDE LOCAL DE KENNEDY | N111: INVERSIÓN | O111: 930 | P111: 26296000 | Q111: 1363 | R111: Fortalecimiento de la gestión local y de las acciones de vigilancia y control | S111: 2020-06-30 | T111: 2020-07-07 | U111: 2020-12-31 | V111: 26296000 | W111: 4 | X111: 6574000 | Y111: 981 | Z111: 26296000 | AA111: YEIMY CAROLINA AGUDELO HERNANDEZ | AB111: DIANA MARCELA DELGADO JEREZ | AC111: DESPACHO | AD111: 380 47 994000106315 | AE111: 30/6/2020 | AF111: 2021-04-05 | AG111: NA | AH111: 0 | AI111: NA | AJ111: NA | AK111: NA | AL111: NA | AM111: NA | AN111: 2020-11-05 | AO111: 54 | AP111: DIAS | AQ111: 11833200 | AR111: 2020-11-05 | AS111: 54 | AT111: DIAS | AU111: NA | AV111: NA | AW111: NA | AX111: NA
A112: CONTRATACION DIRECTA | B112: Contratos de prestación de servicios | C112: TERMINADO | D112: FDLK-CD-111-2020 | E112: CPS-111-2020 | F112: =VLOOKUP(E112,[1]Hoja1!D$3:E$393,2,0) -> 1 | G112: DENISS VELASQUEZ BARRERA | H112: 1016053664 | I112: DENISS VELASQUEZ BARRERA | J112: 1016053664 | L112: https://community.secop.gov.co/Public/Tendering/OpportunityDetail/Index?noticeUID=CO1.NTC.1313804&isFromPublicArea=True&isModal=False | M112: PRESTAR LOS SERVICIOS DE APOYO TÉCNICO Y ADMINISTRATIVO AL ÁREA DE GESTIÓN POLICIVA JURÍDICA DE LA ALCALDÍA LOCAL DE KENNEDY | N112: INVERSIÓN | O112: 909 | P112: 15412000 | Q112: 1363 | R112: Fortalecimiento de la gestión local y de las acciones de vigilancia y control | S112: 2020-06-30 | T112: 2020-07-02 | U112: 2020-12-31 | V112: 15412000 | W112: 4 | X112: 3853000 | Y112: 971 | Z112: 15412000 | AA112: YEIMY CAROLINA AGUDELO HERNANDEZ | AB112: NORMA LETICIA GUZMAN RIMOLLI | AC112: GESTION POLICIVA Y JURIDICA | AD112: 3800-47-994000106233 | AE112: 30/6/2020 | AF112: 2021-05-05 | AG112: NA | AH112: 0 | AI112: NA | AJ112: NA | AK112: NA | AL112: NA | AM112: NA | AN112: 2020-11-02 | AO112: 59 | AP112: DIAS | AQ112: 7577567 | AR112: 2020-11-02 | AS112: 59 | AT112: DIAS | AU112: NA | AV112: NA | AW112: NA | AX112: NA
A113: CONTRATACION DIRECTA | B113: Contratos de prestación de servicios | C113: EN EJECUCION | D113: FDLK-CD-112-2020 | E113: CPS-112-2020 | F113: =VLOOKUP(E113,[1]Hoja1!D$3:E$393,2,0) -> 0.9873417722 | G113: LUIS ALEJANDRO VENEGAS ROBAYO | H113: 1015393374 | I113: LUIS ALEJANDRO VENEGAS ROBAYO | J113: 1015393374 | L113: https://community.secop.gov.co/Public/Tendering/OpportunityDetail/Index?noticeUID=CO1.NTC.1315086&isFromPublicArea=True&isModal=False | M113: APOYAR AL ALCALDESA LOCAL EN LA PROMOCIÓN, ACOMPAÑAMIENTO, COORDINACIÓN Y ATENCIÓN DE LAS INSTANCIAS DE COORDINACIÓN INTERINSTITUCIONALES Y LAS INSTANCIAS DE PARTICIPACIÓN LOCALES, ASÍ COMO LOS PROCESOS COMUNITARIOS EN LA LOCALIDAD | N113: INVERSIÓN | O113: 854 | P113: 52592000 | Q113: 1371 | R113: Fortalecimiento de la participación | S113: 2020-07-02 | T113: 2020-07-06 | U113: 2021-02-28 | V113: 39005734 | W113: 5.933333333 | X113: 6574000.112 | Y113: 978 | Z113: 39005734 | AA113: YEIMY CAROLINA AGUDELO HERNANDEZ | AB113: DIANA MARCELA DELGADO JEREZ | AC113: PARTICIPACION | AD113: NB-100132557 | AE113: 2020-02-07 | AF113: 2021-05-07 | AG113: NA | AH113: 0 | AI113: NA | AJ113: NA | AK113: NA | AL113: NA | AM113: NA | AN113: 2021-01-01 | AO113: 2 | AP113: MESES | AQ113: 13148000 | AR113: 2021-01-01 | AS113: 2 | AT113: MESES | AU113: NA | AV113: NA | AW113: NA | AX113: NA
A114: CONTRATACION DIRECTA | B114: Contratos de prestación de servicios | C114: TERMINADO | D114: FDLK-CD-113-2020 | E114: CPS-113-2020 | F114: =VLOOKUP(E114,[1]Hoja1!D$3:E$393,2,0) -> 1 | G114: WILFREDO PAEZ GALINDO | H114: 80727904 | I114: WILFREDO PAEZ GALINDO | J114: 80727904 | L114: https://community.secop.gov.co/Public/Tendering/OpportunityDetail/Index?noticeUID=CO1.NTC.1316229&isFromPublicArea=True&isModal=False | M114: PRESTAR LOS SERVICIOS DE APOYO EN LA CONDUCCIÓN DE LOS VEHÍCULOS LIVIANOS DEL PARQUE AUTOMOTOR DE PROPIEDAD DEL FONDO DE DESARROLLO LOCAL DE KENNEDY | N114: INVERSIÓN | O114: 885 | P114: 19976000 | Q114: 1363 | R114: Fortalecimiento de la gestión local y de las acciones de vigilancia y control | S114: 2020-07-01 | T114: 2020-07-03 | U114: 2020-12-31 | V114: 9988000 | W114: 4 | X114: 2497000 | Y114: 985 | Z114: 9988000 | AA114: YEIMY CAROLINA AGUDELO HERNANDEZ | AB114: NILBA ALIET AREVALO CASTELLANOS | AC114: ALMACEN | AD114: 380-47-994000106266 | AE114: 2020-01-07 | AF114: 2021-06-05 | AG114: NA | AH114: 0 | AI114: NA | AJ114: NA | AK114: NA | AL114: NA | AM114: NA | AN114: 2020-11-03 | AO114: 58 | AP114: DIAS | AQ114: 4910767 | AR114: 2020-11-03 | AS114: 58 | AT114: DIAS | AU114: NA | AV114: NA | AW114: NA | AX114: NA
A115: CONTRATACION DIRECTA | B115: Contratos de prestación de servicios | C115: TERMINADO | D115: FDLK-CD-114-2020 | E115: CPS-114-2020 | F115: =VLOOKUP(E115,[1]Hoja1!D$3:E$393,2,0) -> 1 | G115: DEIVID ALEJANDRO HENAO PLAZA | H115: 1012368647 | I115: DEIVID ALEJANDRO HENAO PLAZA | J115: 1012368647 | L115: https://community.secop.gov.co/Public/Tendering/OpportunityDetail/Index?noticeUID=CO1.NTC.1316233&isFromPublicArea=True&isModal=False | M115: PRESTAR SUS SERVICIOS PROFESIONALES AL FONDO DE DESARROLLO LOCAL DE KENNEDY COMO APOYO PARA LA DESCONGESTION DE LOS PROCESOS LIQUIDATORIOS EN CURSO Y DEPURACION DE LAS OBLIGACIONES POR PAGAR A CARGO DEL FONDO DE DESARROLLO LOCAL DE KENNEDY | N115: INVERSIÓN | O115: 868 | P115: 66144000 | Q115: 1363 | R115: Fortalecimiento de la gestión local y de las acciones de vigilancia y control | S115: 2020-07-02 | T115: 2020-07-08 | U115: 2020-12-31 | V115: 22048000 | W115: 4 | X115: 5512000 | Y115: 986 | Z115: 22048000 | AA115: YEIMY CAROLINA AGUDELO HERNANDEZ | AB115: GLORIA STELLA ROBALLO OLMOS | AC115: CONTRATACION | AD115: 33-44-101201784 | AE115: 2020-02-07 | AF115: 2021-05-10 | AG115: NA | AH115: 0 | AI115: NA | AJ115: NA | AK115: NA | AL115: NA | AM115: NA | AN115: 2020-11-08 | AO115: 53 | AP115: DIAS | AQ115: 9737866 | AR115: 2020-11-08 | AS115: 53 | AT115: DIAS | AU115: NA | AV115: NA | AW115: NA | AX115: NA
A116: CONTRATACION DIRECTA | B116: Contratos de prestación de servicios | C116: TERMINADO | D116: FDLK-CD-115-2020 | E116: CPS-115-2020 | F116: =VLOOKUP(E116,[1]Hoja1!D$3:E$393,2,0) -> 1 | G116: RUBEN DARIO ORTIZ BOGOTA | H116: 80132643 | I116: RUBEN DARIO ORTIZ BOGOTA | J116: 80132643 | L116: https://community.secop.gov.co/Public/Tendering/OpportunityDetail/Index?noticeUID=CO1.NTC.1316100&isFromPublicArea=True&isModal=False | M116: PRESTAR LOS SERVICIOS DE APOYO EN LA CONDUCCIÓN DE LOS VEHÍCULOS PESADOS DEL PARQUE AUTOMOTOR DE PROPIEDAD DEL FONDO DE DESARROLLO LOCAL DE KENNEDY | N116: INVERSIÓN | O116: 906 | P116: 19976000 | Q116: 1363 | R116: Fortalecimiento de la gestión local y de las acciones de vigilancia y control | S116: 2020-07-01 | T116: 2020-07-03 | U116: 2020-12-31 | V116: 9988000 | W116: 4 | X116: 2497000 | Y116: 987 | Z116: 9988000 | AA116: YEIMY CAROLINA AGUDELO HERNANDEZ | AB116: JOSÉ TARCICIO QUIROGA VELAZQUES | AC116: INFRAESTRUCTURA | AD116: 380-47-994000106269 | AE116: 2020-11-07 | AF116: 2021-03-05 | AG116: NA | AH116: 0 | AI116: NA | AJ116: NA | AK116: NA | AL116: NA | AM116: NA | AN116: 2020-11-03 | AO116: 59 | AP116: DIAS | AQ116: 4827533 | AR116: 2020-11-03 | AS116: 59 | AT116: DIAS | AU116: NA | AV116: NA | AW116: NA | AX116: NA
A117: CONTRATACION DIRECTA | B117: Contratos de prestación de servicios | C117: TERMINADO | D117: FDLK-CD-116-2020 | E117: CPS-116-2020 | F117: =VLOOKUP(E117,[1]Hoja1!D$3:E$393,2,0) -> 1 | G117: JOSE INOCENCIO MARTINEZ | H117: 19366746 | I117: JOSE INOCENCIO MARTINEZ | J117: 19366746 | L117: https://community.secop.gov.co/Public/Tendering/OpportunityDetail/Index?noticeUID=CO1.NTC.1316909&isFromPublicArea=True&isModal=False | M117: PRESTAR LOS SERVICIOS DE APOYO EN LA CONDUCCIÓN DE LOS VEHÍCULOS PESADOS DEL PARQUE AUTOMOTOR DE PROPIEDAD DEL FONDO DE DESARROLLO LOCAL DE KENNEDY | N117: INVERSIÓN | O117: 906 | P117: 19976000 | Q117: 1363 | R117: Fortalecimiento de la gestión local y de las acciones de vigilancia y control | S117: 2020-07-02 | T117: 2020-07-03 | U117: 2020-12-31 | V117: 9988000 | W117: 4 | X117: 2497000 | Y117: 988 | Z117: 9988000 | AA117: YEIMY CAROLINA AGUDELO HERNANDEZ | AB117: JOSÉ TARCICIO QUIROGA VELAZQUES | AC117: INFRAESTRUCTURA | AD117: 380-47-994000106278 | AE117: 2020-11-07 | AF117: 2021-03-05 | AG117: NA | AH117: 0 | AI117: NA | AJ117: NA | AK117: NA | AL117: NA | AM117: NA | AN117: 2020-11-03 | AO117: 59 | AP117: DIAS | AQ117: 4827533 | AR117: 2020-11-03 | AS117: 59 | AT117: DIAS | AU117: NA | AV117: NA | AW117: NA | AX117: NA
A118: CONTRATACION DIRECTA | B118: Contratos de prestación de servicios | C118: TERMINADO | D118: FDLK-CD-117-2020 | E118: CPS-117-2020 | F118: =VLOOKUP(E118,[1]Hoja1!D$3:E$393,2,0) -> 1 | G118: FABIAN CAMILO GARCIA VILLARREAL | H118: 1030587174 | I118: FABIAN CAMILO GARCIA VILLARREAL | J118: 1030587174 | L118: https://community.secop.gov.co/Public/Tendering/OpportunityDetail/Index?noticeUID=CO1.NTC.1316755&isFromPublicArea=True&isModal=False | M118: “PRESTAR LOS SERVICIOS PROFESIONALES PARA APOYAR LA GESTIÓN DE LOS ASUNTOS RELACIONADOS CON LA SEGURIDAD CIUDADANA Y LA CONVIVENCIA EN LA LOCALIDAD DE KENNEDY, ASÍ COMO ORGANIZAR Y LIDERAR EL EQUIPO DE GESTORES DE CONVIVENCIA”. | N118: INVERSIÓN | O118: 828 | P118: 22048000 | Q118: 1376 | R118: Fortalecimiento de seguridad e iniciativa de convivencia en la localidad de Kennedy | S118: 2020-07-02 | T118: 2020-07-06 | U118: 2020-12-31 | V118: 22048000 | W118: 4 | X118: 5512000 | Y118: 989 | Z118: 22048000 | AA118: YEIMY CAROLINA AGUDELO HERNANDEZ | AB118: NORMA LETICIA GUZMAN RIMOLLI | AC118: GESTION POLICIVA Y JURIDICA | AD118: 80 47 994000106280 | AE118: 2020-02-07 | AF118: 2021-06-05 | AG118: NA | AH118: 0 | AI118: NA | AJ118: NA | AK118: NA | AL118: NA | AM118: NA | AN118: 2020-11-06 | AO118: 55 | AP118: DIAS | AQ118: 10105333 | AR118: 2020-11-06 | AS118: 55 | AT118: DIAS | AU118: NA | AV118: NA | AW118: NA | AX118: NA
A119: CONTRATACION DIRECTA | B119: Contratos de prestación de servicios | C119: TERMINADO | D119: FDLK-CD-118-2020 | E119: CPS-118-2020 | F119: =VLOOKUP(E119,[1]Hoja1!D$3:E$393,2,0) -> 1 | G119: ANDRES VALBUENA POLANIA | H119: 80149634 | I119: ANDRES VALBUENA POLANIA | J119: 80149634 | L119: https://community.secop.gov.co/Public/Tendering/OpportunityDetail/Index?noticeUID=CO1.NTC.1317346&isFromPublicArea=True&isModal=False | M119: PRESTAR LOS SERVICIOS DE APOYO EN LAS ACCIONES ENCAMINADAS AL RESTABLECIMIENTO DE LA ARMONÍA, PAZ, SEGURIDAD Y CONVIVENCIA CIUDADANA, EN LA LOCALIDAD DE KENNEDY | N119: INVERSIÓN | O119: 910 | P119: 285244000 | Q119: 1376 | R119: Fortalecimiento de seguridad e iniciativa de convivencia en la localidad de Kennedy | S119: 2020-07-02 | T119: 2020-07-08 | U119: 2020-12-31 | V119: 9836000 | W119: 4 | X119: 2459000 | Y119: 1008 | Z119: 9836000 | AA119: YEIMY CAROLINA AGUDELO HERNANDEZ | AB119: MARITZA RUIZ POSADA | AC119: Seguridad | AD119: 380-47-994000106317 | AE119: 2020-02-07 | AF119: 2021-10-05 | AG119: NA | AH119: 0 | AI119: NA | AJ119: NA | AK119: NA | AL119: NA | AM119: NA | AN119: 2020-11-08 | AO119: 52 | AP119: DIAS | AQ119: 4344233 | AR119: 2020-11-08 | AS119: 52 | AT119: DIAS | AU119: NA | AV119: NA | AW119: NA | AX119: NA
A120: CONTRATACION DIRECTA | B120: Contratos de prestación de servicios | C120: TERMINADO | D120: FDLK-CD-119-2020 | E120: CPS-119-2020 | F120: =VLOOKUP(E120,[1]Hoja1!D$3:E$393,2,0) -> 1 | G120: JAIRO JAVIER SUÁREZ HERNÁNDEZ | H120: 10184012 | I120: JAIRO JAVIER SUÁREZ HERNÁNDEZ | J120: 10184012 | L120: https://community.secop.gov.co/Public/Tendering/OpportunityDetail/Index?noticeUID=CO1.NTC.1317184&isFromPublicArea=True&isModal=False | M120: APOYAR EN LAS TAREAS OPERATIVAS DE CARÁCTERARCHIVÍSTICO DESARROLLADAS EN LA ALCALDÍA LOCAL PARA GARANTIZAR LA APLICACIÓN CORRECTA DELOS PROCEDIMIENTOS TÉCNICOS | N120: INVERSIÓN | O120: 908 | P120: 30828440 | Q120: 1363 | R120: Fortalecimiento de la gestión local y de las acciones de vigilancia y control | S120: 2020-07-02 | T120: 2020-07-08 | U120: 2020-12-31 | V120: 15414220 | W120: 4 | X120: 3853555 | Y120: 1026 | Z120: 15414220 | AA120: YEIMY CAROLINA AGUDELO HERNANDEZ | AB120: MARIA DEL PILAR MUÑOZ TORRES | AC120: ADMINISTRATIVO Y FINANCIERO | AD120: 380-47-994000106337 | AE120: 2020-02-07 | AF120: 2021-10-05 | AG120: NA | AH120: 0 | AI120: NA | AJ120: NA | AK120: NA | AL120: NA | AM120: NA | AN120: 2020-11-07 | AO120: 54 | AP120: DIAS | AQ120: 6807947 | AR120: 2020-11-07 | AS120: 54 | AT120: DIAS | AU120: NA | AV120: NA | AW120: NA | AX120: NA
A121: CONTRATACION DIRECTA | B121: Contratos de prestación de servicios | C121: EN EJECUCION | D121: FDLK-CD-120-2020 | E121: CPS-120-2020 | F121: =VLOOKUP(E121,[1]Hoja1!D$3:E$393,2,0) -> 0.9873417722 | G121: PAOLA ANDREA OTERO LOPEZ | H121: 53001226 | I121: PAOLA ANDREA OTERO LOPEZ | J121: 53001226 | L121: https://community.secop.gov.co/Public/Tendering/OpportunityDetail/Index?noticeUID=CO1.NTC.1317268&isFromPublicArea=True&isModal=False | M121: PRESTAR SERVICIOS PROFESIONALES PARA APOYAR JURÍDICAMENTE A LA ALCALDÍA LOCAL DE KENNEDY-FONDO DE DESARROLLO LOCAL DE KENNEDY EN LOS ASUNTOS CONSTITUCIONALES, LEGALES Y REGLAMENTARIOS DE SU COMPETENCIA, PARTICULARMENTE LOS RELACIONADOS CON LAS ETAPAS PRECONTRACTUAL, CONTRACTUAL Y POSCONTRACTUAL DE LOS PROCESOS DE CONTRATACIÓN”. | N121: INVERSIÓN | O121: 931 | P121: 39000000 | Q121: 1363 | R121: Fortalecimiento de la gestión local y de las acciones de vigilancia y control | S121: 2020-07-03 | T121: 2020-07-06 | U121: 2021-02-28 | V121: 38566667 | W121: 6 | X121: 6427777.833 | Y121: 990 | Z121: 38566667 | AA121: YEIMY CAROLINA AGUDELO HERNANDEZ | AB121: MONICA JOHANNA HERNANDEZ PERAZA | AC121: CONTRATACION | AD121: 21-44-101326428 | AE121: 13/7/2020 | AF121: 31/12/2021 | AG121: NA | AH121: 0 | AI121: NA | AJ121: NA | AK121: NA | AL121: NA | AM121: NA | AN121: 2021-01-01 | AO121: 2 | AP121: MESES | AQ121: 13000000 | AR121: 2021-01-01 | AS121: 2 | AT121: MESES | AU121: NA | AV121: NA | AW121: NA | AX121: NA
A122: CONTRATACION DIRECTA | B122: Contratos de prestación de servicios | C122: TERMINADO | D122: FDLK-CD-121-2020 | E122: CPS-121-2020 | F122: =VLOOKUP(E122,[1]Hoja1!D$3:E$393,2,0) -> 1 | G122: RÓMULO SIMÓN ESTRELLA PANTOJA | H122: 1089242261 | I122: RÓMULO SIMÓN ESTRELLA PANTOJA | J122: 1089242261 | L122: https://community.secop.gov.co/Public/Tendering/OpportunityDetail/Index?noticeUID=CO1.NTC.1317661&isFromPublicArea=True&isModal=False | M122: PRESTAR LOS SERVICIOS DE APOYO ASISTENCIAL Y ADMINSTRATIVO EN EL PROYECTO 1380, MI CASA ME PERTENECE, TENDIENTE A LA TITULACION DE PREDIOS, CONFORME AL PLAN DE DESARROLLO LOCAL | N122: INVERSIÓN | O122: 975 | P122: 9988000 | Q122: 1380 | R122: Mi casa me pertenece | S122: 2020-07-02 | T122: 2020-07-08 | U122: 2020-12-31 | V122: 9988000 | W122: 4 | X122: 2497000 | Y122: 1000 | Z122: 9988000 | AA122: YEIMY CAROLINA AGUDELO HERNANDEZ | AB122: YULLIET PATRICIA LLERENA AVENDAÑO | AC122: PLANEACION | AD122: NB-100132822 | AE122: 2020-07-07 | AF122: 2021-12-05 | AG122: NA | AH122: 0 | AI122: NA | AJ122: NA | AK122: NA | AL122: NA | AM122: NA | AN122: 2020-11-07 | AO122: 54 | AP122: DIAS | AQ122: 4411366 | AR122: 2020-11-07 | AS122: 54 | AT122: DIAS | AU122: NA | AV122: NA | AW122: NA | AX122: NA
A123: CONTRATACION DIRECTA | B123: Contratos de prestación de servicios | C123: TERMINADO | D123: FDLK-CD-122-2020 | E123: CPS-122-2020 | F123: =VLOOKUP(E123,[1]Hoja1!D$3:E$393,2,0) -> 1 | G123: SERGIO ANDRES CALDERON GARZÓN | H123: 79989849 | I123: SERGIO ANDRES CALDERON GARZÓN | J123: 79989849 | L123: https://community.secop.gov.co/Public/Tendering/OpportunityDetail/Index?noticeUID=CO1.NTC.1317839&isFromPublicArea=True&isModal=False | M123: PRESTAR LOS SERVICIOS PROFESIONALES PARA EL DESARROLLO E IMPLEMENTACIÓN DE ESTRATEGIAS DE SENSIBILIZACIÓN EN EL MARCO DE LA SANA CONVIVENCIA Y CULTURA CIUDADANA | N123: INVERSIÓN | O123: 923 | P123: 26280000 | Q123: 1376 | R123: Fortalecimiento de seguridad e iniciativa de convivencia en la localidad de Kennedy | S123: 2020-07-02 | T123: 2020-07-09 | U123: 2020-12-31 | V123: 26280000 | W123: 4 | X123: 6570000 | Y123: 1001 | Z123: 26280000 | AA123: YEIMY CAROLINA AGUDELO HERNANDEZ | AB123: NORMA LETICIA GUZMAN RIMOLLI | AC123: GESTION POLICIVA Y JURIDICA | AD123: 14-46-101041760 | AE123: 2020-07-07 | AF123: 17/5/2021 | AG123: NA | AH123: 0 | AI123: NA | AJ123: NA | AK123: NA | AL123: NA | AM123: NA | AN123: 2020-11-08 | AO123: 53 | AP123: DIAS | AQ123: 11388000 | AR123: 2020-11-08 | AS123: 53 | AT123: DIAS | AU123: NA | AV123: NA | AW123: NA | AX123: NA
A124: CONTRATACION DIRECTA | B124: Contratos de prestación de servicios | C124: TERMINADO | D124: FDLK-CD-123-2020 | E124: CPS-123-2020 | F124: =VLOOKUP(E124,[1]Hoja1!D$3:E$393,2,0) -> 1 | G124: SANDRA MARCELA ALZATE GARCIA | H124: 52503022 | I124: SANDRA MARCELA ALZATE GARCIA | J124: 52503022 | L124: https://community.secop.gov.co/Public/Tendering/OpportunityDetail/Index?noticeUID=CO1.NTC.1318143&isFromPublicArea=True&isModal=False | M124: PRESTAR LOS SERVICIOS DE APOYO A LOS ARCHIVOS DE GESTIÓN DE LA ENTIDAD EN LA IMPLEMENTACIÓN DE LOS PROCESOS DE CLASIFICACIÓN, ORDENACIÓN, SELECCIÓN NATURAL, FOLIACIÓN, IDENTIFICACIÓN, LEVANTAMIENTO DE INVENTARIOS, ALMACENAMIENTO Y APLICACIÓN DE PROTOCOLOS DE ELIMINACIÓN Y TRANSFERENCIAS DOCUMENTALES | N124: INVERSIÓN | O124: 907 | P124: 39952000 | Q124: 1363 | R124: Fortalecimiento de la gestión local y de las acciones de vigilancia y control | S124: 2020-07-03 | T124: 2020-07-08 | U124: 2020-12-31 | V124: 9988000 | W124: 4 | X124: 2497000 | Y124: 996 | Z124: 9988000 | AA124: YEIMY CAROLINA AGUDELO HERNANDEZ | AB124: MARIA DEL PILAR MUÑOZ TORRES | AC124: ADMINISTRATIVO Y FINANCIERO | AD124: 380-47-994000106295 | AE124: 2020-03-07 | AF124: 2021-08-05 | AG124: NA | AH124: 0 | AI124: NA | AJ124: NA | AK124: NA | AL124: NA | AM124: NA | AN124: 2020-11-08 | AO124: 53 | AP124: DIAS | AQ124: 4411367 | AR124: 2020-11-08 | AS124: 53 | AT124: DIAS | AU124: NA | AV124: NA | AW124: NA | AX124: NA
A125: CONTRATACION DIRECTA | B125: Contratos de prestación de servicios | C125: TERMINADO | D125: FDLK-CD-124-2020 | E125: CPS-124-2020 | F125: =VLOOKUP(E125,[1]Hoja1!D$3:E$393,2,0) -> 1 | G125: GEOVANNY ALEXANDER SANCHEZ TRUJILLO | H125: 1024474417 | I125: GEOVANNY ALEXANDER SANCHEZ TRUJILLO | J125: 1024474417 | L125: https://community.secop.gov.co/Public/Tendering/OpportunityDetail/Index?noticeUID=CO1.NTC.1318151&isFromPublicArea=True&isModal=False | M125: PRESTAR LOS SERVICIOS DE APOYO EN LA CONDUCCIÓN DE LOS VEHÍCULOS LIVIANOS DEL PARQUE AUTOMOTOR DE PROPIEDAD DEL FONDO DE DESARROLLO LOCAL DE KENNEDY | N125: INVERSIÓN | O125: 885 | P125: 19976000 | Q125: 1363 | R125: Fortalecimiento de la gestión local y de las acciones de vigilancia y control | S125: 2020-07-02 | T125: 2020-07-09 | U125: 2020-12-31 | V125: 9988000 | W125: 4 | X125: 2497000 | Y125: 1027 | Z125: 9988000 | AA125: YEIMY CAROLINA AGUDELO HERNANDEZ | AB125: NILBA ALIET AREVALO CASTELLANOS | AC125: ALMACEN | AD125: 380-47-994000106287 | AE125: 2020-03-07 | AF125: 2021-08-05 | AG125: NA | AH125: 0 | AI125: NA | AJ125: NA | AK125: NA | AL125: NA | AM125: NA | AN125: 2020-11-09 | AO125: 52 | AP125: DIAS | AQ125: 4328133 | AR125: 2020-11-09 | AS125: 52 | AT125: DIAS | AU125: NA | AV125: NA | AW125: NA | AX125: NA
A126: CONTRATACION DIRECTA | B126: Contratos de prestación de servicios | C126: TERMINADO | D126: FDLK-CD-125-2020 | E126: CPS-125-2020 | F126: =VLOOKUP(E126,[1]Hoja1!D$3:E$393,2,0) -> 1 | G126: ANGELICA MARIA VARGAS PINZON | H126: 1033699015 | I126: ANGELICA MARIA VARGAS PINZON | J126: 1033699015 | L126: https://community.secop.gov.co/Public/Tendering/OpportunityDetail/Index?noticeUID=CO1.NTC.1318177&isFromPublicArea=True&isModal=False | M126: PRESTAR LOS SERVICIOS DE APOYO A LOS ARCHIVOS DE GESTIÓN DE LA ENTIDAD EN LA IMPLEMENTACIÓN DE LOS PROCESOS DE CLASIFICACIÓN, ORDENACIÓN, SELECCIÓN NATURAL, FOLIACIÓN, IDENTIFICACIÓN, LEVANTAMIENTO DE INVENTARIOS, ALMACENAMIENTO Y APLICACIÓN DE PROTOCOLOS DE ELIMINACIÓN Y TRANSFERENCIAS DOCUMENTALES | N126: INVERSIÓN | O126: 907 | P126: 39952000 | Q126: 1363 | R126: Fortalecimiento de la gestión local y de las acciones de vigilancia y control | S126: 2020-07-02 | T126: 2020-07-06 | U126: 2020-12-31 | V126: 9988000 | W126: 4 | X126: 2497000 | Y126: 997 | Z126: 9988000 | AA126: YEIMY CAROLINA AGUDELO HERNANDEZ | AB126: MARIA DEL PILAR MUÑOZ TORRES | AC126: ADMINISTRATIVO Y FINANCIERO | AD126: 380-47-994000106322 | AE126: 2020-03-07 | AF126: 2021-08-05 | AG126: NA | AH126: 0 | AI126: NA | AJ126: NA | AK126: NA | AL126: NA | AM126: NA | AN126: 2020-11-15 | AO126: 46 | AP126: DIAS | AQ126: 3828733 | AR126: 2020-11-15 | AS126: 46 | AT126: DIAS | AU126: NA | AV126: NA | AW126: NA | AX126: NA
A127: CONTRATACION DIRECTA | B127: Contratos de prestación de servicios | C127: TERMINADO | D127: FDLK-CD 126-2020 | E127: CPS-126-2020 | F127: =VLOOKUP(E127,[1]Hoja1!D$3:E$393,2,0) -> 1 | G127: ANA MARIA CORTÉS CABRERA | H127: 26421174 | I127: ANA MARIA CORTÉS CABRERA | J127: 26421174 | L127: https://community.secop.gov.co/Public/Tendering/OpportunityDetail/Index?noticeUID=CO1.NTC.1318702&isFromPublicArea=True&isModal=False | M127: APOYAR JURÍDICAMENTE LA EJECUCIÓN DE LAS ACCIONES REQUERIDAS PARA LA DEPURACIÓN DE LAS ACTUACIONES ADMINISTRATIVAS QUE CURSAN EN LA ALCALDÍA LOCAL | N127: INVERSIÓN | O127: 924 | P127: 24252000 | Q127: 1363 | R127: Fortalecimiento de la gestión local y de las acciones de vigilancia y control | S127: 2020-07-03 | T127: 2020-07-08 | U127: 2020-12-31 | V127: 24252000 | W127: 4 | X127: 6063000 | Y127: 1024 | Z127: 24252000 | AA127: YEIMY CAROLINA AGUDELO HERNANDEZ | AB127: NORMA LETICIA GUZMAN RIMOLLI | AC127: GESTION POLICIVA Y JURIDICA | AD127: 33-46-101024166 | AE127: 2020-03-07 | AF127: 2021-06-05 | AG127: NA | AH127: 0 | AI127: NA | AJ127: NA | AK127: NA | AL127: NA | AM127: NA | AN127: 2020-11-08 | AO127: 53 | AP127: DIAS | AQ127: 10711300 | AR127: 2020-11-08 | AS127: 53 | AT127: DIAS | AU127: NA | AV127: NA | AW127: NA | AX127: NA
A128: CONTRATACION DIRECTA | B128: Contratos de prestación de servicios | C128: TERMINADO | D128: FDLK-CD 127-2020 | E128: CPS-127-2020 | F128: =VLOOKUP(E128,[1]Hoja1!D$3:E$393,2,0) -> 1 | G128: CLAUDIA PATRICIA RUIZ SARAY | H128: 52177848 | I128: CLAUDIA PATRICIA RUIZ SARAY | J128: 52177848 | L128: https://community.secop.gov.co/Public/Tendering/OpportunityDetail/Index?noticeUID=CO1.NTC.1318804&isFromPublicArea=True&isModal=False | M128: APOYAR JURÍDICAMENTE LA EJECUCIÓN DE LAS ACCIONES REQUERIDAS PARA LA DEPURACIÓN DE LAS ACTUACIONES ADMINISTRATIVAS QUE CURSAN EN LA ALCALDÍA LOCAL | N128: INVERSIÓN | O128: 924 | P128: 24252000 | Q128: 1363 | R128: Fortalecimiento de la gestión local y de las acciones de vigilancia y control | S128: 2020-07-03 | T128: 2020-07-07 | U128: 2020-12-31 | V128: 24252000 | W128: 4 | X128: 6063000 | Y128: 1012 | Z128: 24252000 | AA128: YEIMY CAROLINA AGUDELO HERNANDEZ | AB128: NORMA LETICIA GUZMAN RIMOLLI | AC128: GESTION POLICIVA Y JURIDICA | AD128: 380-47 -994000106304 | AE128: 2020-06-07 | AF128: 2021-09-05 | AG128: NA | AH128: 0 | AI128: NA | AJ128: NA | AK128: NA | AL128: NA | AM128: NA | AN128: 2020-11-06 | AO128: 54 | AP128: DIAS | AQ128: 10913400 | AR128: 2020-11-06 | AS128: 54 | AT128: DIAS | AU128: NA | AV128: NA | AW128: NA | AX128: NA
A129: CONTRATACION DIRECTA | B129: Contratos de prestación de servicios | C129: TERMINADO | D129: FDLK-CD 128-2020 | E129: CPS-128-2020 | F129: =VLOOKUP(E129,[1]Hoja1!D$3:E$393,2,0) -> 1 | G129: GIOVANNY ESTEBEN RONDON VANEGAS | H129: 1030621844 | I129: GIOVANNY ESTEBEN RONDON VANEGAS | J129: 1030621844 | L129: https://community.secop.gov.co/Public/Tendering/OpportunityDetail/Index?noticeUID=CO1.NTC.1318703&isFromPublicArea=True&isModal=False | M129: PRESTAR LOS SERVICIOS DE APOYO TÉCNICO Y ADMINISTRATIVO EN LA DESCONGESTIÓN DE TRÁMITES DEL ÁREA DE GESTIÓN POLICIVA JURÍDICA DE LA ALCALDÍA LOCAL DE KENNEDY | N129: INVERSIÓN | O129: 904 | P129: 57664000 | Q129: 1363 | R129: Fortalecimiento de la gestión local y de las acciones de vigilancia y control | S129: 2020-07-03 | T129: 2020-07-07 | U129: 2020-12-31 | V129: 14416000 | W129: 4 | X129: 3604000 | Y129: 1013 | Z129: 14416000 | AA129: YEIMY CAROLINA AGUDELO HERNANDEZ | AB129: NORMA LETICIA GUZMAN RIMOLLI | AC129: GESTION POLICIVA Y JURIDICA | AD129: 11-46-101014077 | AE129: 2020-03-07 | AF129: 2021-05-05 | AG129: NA | AH129: 0 | AI129: NA | AJ129: NA | AK129: NA | AL129: NA | AM129: NA | AN129: 2020-11-07 | AO129: 54 | AP129: DIAS | AQ129: 6487200 | AR129: 2020-11-07 | AS129: 54 | AT129: DIAS | AU129: NA | AV129: NA | AW129: NA | AX129: NA
A130: CONTRATACION DIRECTA | B130: Contratos de prestación de servicios | C130: TERMINADO | D130: FDLK-CD 129-2020 | E130: CPS-129-2020 | F130: =VLOOKUP(E130,[1]Hoja1!D$3:E$393,2,0) -> 1 | G130: SERGIO EDUARDO MOLINA OCHOA | H130: 80772254 | I130: SERGIO EDUARDO MOLINA OCHOA | J130: 80772254 | L130: https://community.secop.gov.co/Public/Tendering/OpportunityDetail/Index?noticeUID=CO1.NTC.1318805&isFromPublicArea=True&isModal=False | M130: Prestar sus servicios profesionales a la alcaldía local de Kennedy apoyando la etapa precontractual, contractual y poscontractual del proyecto de infraestructura y espacio público tendiente a garantizar el cumplimiento del plan de desarrollo local | N130: INVERSIÓN | O130: 866 | P130: 44095542 | Q130: 1369 | R130: Recreación y deporte para todos | S130: 2020-07-03 | T130: 2020-07-07 | U130: 2020-12-31 | V130: 22047771 | W130: 4 | X130: 5511942.75 | Y130: 1014 | Z130: 22047771 | AA130: YEIMY CAROLINA AGUDELO HERNANDEZ | AB130: JOSÉ TARCICIO QUIROGA VELAZQUES | AC130: INFRAESTRUCTURA | AD130: 380 47 994000106332 | AE130: 2020-06-07 | AF130: 2021-09-05 | AG130: NA | AH130: 0 | AI130: NA | AJ130: NA | AK130: NA | AL130: NA | AM130: NA | AN130: 2020-11-07 | AO130: 55 | AP130: DIAS | AQ130: 10105229 | AR130: 2020-11-07 | AS130: 55 | AT130: DIAS | AU130: NA | AV130: NA | AW130: NA | AX130: NA
A131: CONTRATACION DIRECTA | B131: Contratos de prestación de servicios | C131: TERMINADO | D131: FDLK-CD 130-2020 | E131: CPS-130-2020 | F131: =VLOOKUP(E131,[1]Hoja1!D$3:E$393,2,0) -> 1 | G131: TILCIA YULIE VELANDIA NIÑO | H131: 52861044 | I131: TILCIA YULIE VELANDIA NIÑO | J131: 52861044 | L131: https://community.secop.gov.co/Public/Tendering/OpportunityDetail/Index?noticeUID=CO1.NTC.1318806&isFromPublicArea=True&isModal=False | M131: PRESTAR LOS SERVICIOS DE APOYO TÉCNICO Y ADMINISTRATIVO EN LA DESCONGESTIÓN DE TRÁMITES DEL ÁREA DE GESTIÓN POLICIVA JURÍDICA DE LA ALCALDÍA LOCAL DE KENNEDY | N131: INVERSIÓN | O131: 904 | P131: 57664000 | Q131: 1363 | R131: Fortalecimiento de la gestión local y de las acciones de vigilancia y control | S131: 2020-07-03 | T131: 2020-07-07 | U131: 2020-12-31 | V131: 14416000 | W131: 4 | X131: 3604000 | Y131: 1015 | Z131: 14416000 | AA131: YEIMY CAROLINA AGUDELO HERNANDEZ | AB131: NORMA LETICIA GUZMAN RIMOLLI | AC131: GESTION POLICIVA Y JURIDICA | AD131: 380-47-994000106300 | AE131: 2020-06-07 | AF131: 2021-09-05 | AG131: NA | AH131: 0 | AI131: NA | AJ131: NA | AK131: NA | AL131: NA | AM131: NA | AN131: 2020-11-07 | AO131: 54 | AP131: DIAS | AQ131: 6487200 | AR131: 2020-11-07 | AS131: 54 | AT131: DIAS | AU131: NA | AV131: NA | AW131: NA | AX131: NA
A132: CONTRATACION DIRECTA | B132: Contratos de prestación de servicios | C132: TERMINADO | D132: FDLK-CD 131-2020 | E132: CPS-131-2020 | F132: =VLOOKUP(E132,[1]Hoja1!D$3:E$393,2,0) -> 1 | G132: VILMA SOFIA CASSAB APONTE | H132: 51672906 | I132: VILMA SOFIA CASSAB APONTE | J132: 51672906 | L132: https://community.secop.gov.co/Public/Tendering/OpportunityDetail/Index?noticeUID=CO1.NTC.1318808&isFromPublicArea=True&isModal=False | M132: PRESTAR SUS SERVICIOS PROFESIONALES A LA ALCALDÍA LOCAL DE KENNEDY APOYANDO TÉCNICAMENTE LAS DISTINTAS ETAPAS DE LOS PROYECTOS DEL ÁREA INFRAESTRUCTURA | N132: INVERSIÓN | O132: 902 | P132: 16816000 | Q132: 1367 | R132: Recuperación de la malla vial local | S132: 2020-07-03 | T132: 2020-07-07 | U132: 2020-12-31 | V132: 16816000 | W132: 4 | X132: 4204000 | Y132: 1016 | Z132: 16816000 | AA132: YEIMY CAROLINA AGUDELO HERNANDEZ | AB132: JOSÉ TARCICIO QUIROGA VELAZQUES | AC132: INFRAESTRUCTURA | AD132: 380-47-994000106302 | AE132: 2020-06-07 | AF132: 2021-09-05 | AG132: NA | AH132: 0 | AI132: NA | AJ132: NA | AK132: NA | AL132: NA | AM132: NA | AN132: 2020-11-06 | AO132: 55 | AP132: DIAS | AQ132: 7567200 | AR132: 2020-11-06 | AS132: 55 | AT132: DIAS | AU132: NA | AV132: NA | AW132: NA | AX132: NA
A133: CONTRATACION DIRECTA | B133: Contratos de prestación de servicios | C133: EN EJECUCION | D133: FDLK-CD 132-2020 | E133: CPS-132-2020 | F133: =VLOOKUP(E133,[1]Hoja1!D$3:E$393,2,0) -> 0.9871794872 | G133: JOAN CAMILO PINTO | H133: 1030559633 | I133: JOAN CAMILO PINTO | J133: 1030559633 | L133: https://community.secop.gov.co/Public/Tendering/OpportunityDetail/Index?noticeUID=CO1.NTC.1318761&isFromPublicArea=True&isModal=False | M133: PRESTAR SUS SERVICIOS PROFESIONALES A LA ALCALDIA LOCAL DE KENNEDY PARA APOYA LA REALIZACION DE LOS ENCUENTROS CIUDADANOS, EL ACOMPAÑAMIENTO A LAS INSTANCIAS DE PARTICIPACION LOCALES Y EL SEGUIMIENTO A LA FORMULACION DEL PLAN DE DESARROLLO | N133: INVERSIÓN | O133: 927 | P133: 25200000 | Q133: 1371 | R133: Fortalecimiento de la participación | S133: 2020-07-03 | T133: 2020-07-09 | U133: 2021-02-28 | V133: 25200000 | W133: 6 | X133: 4200000 | Y133: 1034 | Z133: 25200000 | AA133: YEIMY CAROLINA AGUDELO HERNANDEZ | AB133: LUIS ALEJANDRO VENEGAS ROBAYO | AC133: PARTICIPACION | AD133: 21-44-101326492 | AE133: 2020-06-07 | AF133: 30/06/2021 | AG133: NA | AH133: 0 | AI133: NA | AJ133: NA | AK133: NA | AL133: NA | AM133: NA | AN133: 2021-01-01 | AO133: 2 | AP133: MESES | AQ133: 8400000 | AR133: 2021-01-01 | AS133: 2 | AT133: MESES | AU133: NA | AV133: NA | AW133: NA | AX133: NA
A134: CONTRATACION DIRECTA | B134: Contratos de prestación de servicios | C134: TERMINADO | D134: FDLK-CD 133-2020 | E134: CPS-133-2020 | F134: =VLOOKUP(E134,[1]Hoja1!D$3:E$393,2,0) -> 1 | G134: JOSE GOTARDO PEREZ SOTO | H134: 13216397 | I134: JOSE GOTARDO PEREZ SOTO | J134: 13216397 | L134: https://community.secop.gov.co/Public/Tendering/OpportunityDetail/Index?noticeUID=CO1.NTC.1319111&isFromPublicArea=True&isModal=False | M134: APOYAR EL (LA) ALCALDE(SA) LOCAL EN LA GESTIÓN DE LOS ASUNTOS RELACIONADOS CON SEGURIDAD CIUDADANA, CONVIVENCIA Y PREVENCIÓN DE CONFLICTIVIDADES, VIOLENCIAS Y DELITOS EN LA LOCALIDAD, DE CONFORMIDAD CON EL MARCO NORMATIVO APLICABLE EN LA MATERIA | N134: INVERSIÓN | O134: 912 | P134: 39420000 | Q134: 1376 | R134: Fortalecimiento de seguridad e iniciativa de convivencia en la localidad de Kennedy | S134: 2020-07-03 | T134: 2020-07-07 | U134: 2020-12-31 | V134: 39420000 | W134: 6 | X134: 6570000 | Y134: 1017 | Z134: 39420000 | AA134: YEIMY CAROLINA AGUDELO HERNANDEZ | AB134: DIANA MARCELA DELGADO JEREZ | AC134: Seguridad | AD134: 380-47-994000106309 | AE134: 2020-06-07 | AF134: 2021-03-07 | AG134: NA | AH134: 0 | AI134: NA | AJ134: NA | AK134: NA | AL134: NA | AM134: NA | AN134: NA | AO134: NA | AP134: NA | AQ134: NA | AR134: NA | AS134: NA | AT134: NA | AU134: NA | AV134: NA | AW134: NA | AX134: NA
A135: CONTRATACION DIRECTA | B135: Contratos de prestación de servicios | C135: TERMINADO | D135: FDLK-CD 134-2020 | E135: CPS-134-2020 | F135: =VLOOKUP(E135,[1]Hoja1!D$3:E$393,2,0) -> 1 | G135: JESSICA ROMERO POVEDA | H135: 1010217972 | I135: JESSICA ROMERO POVEDA | J135: 1010217972 | L135: https://community.secop.gov.co/Public/Tendering/OpportunityDetail/Index?noticeUID=CO1.NTC.1319115&isFromPublicArea=True&isModal=False | M135: APOYAR JURÍDICAMENTE LA EJECUCIÓN DE LAS ACCIONES REQUERIDAS PARA LA DEPURACIÓN DE LAS ACTUACIONES ADMINISTRATIVAS QUE CURSAN EN LA ALCALDÍA LOCAL | N135: INVERSIÓN | O135: 924 | P135: 24252000 | Q135: 1363 | R135: Fortalecimiento de la gestión local y de las acciones de vigilancia y control | S135: 2020-07-03 | T135: 2020-07-08 | U135: 2020-12-31 | V135: 24252000 | W135: 4 | X135: 6063000 | Y135: 1018 | Z135: 24252000 | AA135: YEIMY CAROLINA AGUDELO HERNANDEZ | AB135: NORMA LETICIA GUZMAN RIMOLLI | AC135: GESTION POLICIVA Y JURIDICA | AD135: 380 47 994000106310 | AE135: 2020-06-07 | AF135: 2021-09-05 | AG135: NA | AH135: 0 | AI135: NA | AJ135: NA | AK135: NA | AL135: NA | AM135: NA | AN135: 2020-11-08 | AO135: 53 | AP135: DIAS | AQ135: 10711300 | AR135: 2020-11-08 | AS135: 53 | AT135: DIAS | AU135: NA | AV135: NA | AW135: NA | AX135: NA
A136: CONTRATACION DIRECTA | B136: Contratos de prestación de servicios | C136: TERMINADO | D136: FDLK-CD 135-2020 | E136: CPS-135-2020 | F136: =VLOOKUP(E136,[1]Hoja1!D$3:E$393,2,0) -> 1 | G136: AMANDA PATRICIA QUESADA GOMEZ | H136: 39767797 | I136: AMANDA PATRICIA QUESADA GOMEZ | J136: 39767797 | L136: https://community.secop.gov.co/Public/Tendering/OpportunityDetail/Index?noticeUID=CO1.NTC.1318821&isFromPublicArea=True&isModal=False | M136: PRESTAR LOS SERVICIOS DE APOYO TÉCNICO Y ADMINISTRATIVO EN LA DESCONGESTIÓN DE TRÁMITES DEL ÁREA DE GESTIÓN POLICIVA JURÍDICA DE LA ALCALDÍA LOCAL DE KENNEDY | N136: INVERSIÓN | O136: 904 | P136: 57664000 | Q136: 1363 | R136: Fortalecimiento de la gestión local y de las acciones de vigilancia y control | S136: 2020-07-03 | T136: 2020-07-08 | U136: 2020-12-31 | V136: 14416000 | W136: 4 | X136: 3604000 | Y136: 1019 | Z136: 14416000 | AA136: YEIMY CAROLINA AGUDELO HERNANDEZ | AB136: NORMA LETICIA GUZMAN RIMOLLI | AC136: GESTION POLICIVA Y JURIDICA | AD136: 380-47-994000106305 | AE136: 2020-06-07 | AF136: 2021-09-05 | AG136: NA | AH136: 0 | AI136: NA | AJ136: NA | AK136: NA | AL136: NA | AM136: NA | AN136: 2020-11-08 | AO136: 53 | AP136: DIAS | AQ136: 6367067 | AR136: 2020-11-08 | AS136: 53 | AT136: DIAS | AU136: NA | AV136: NA | AW136: NA | AX136: NA
A137: CONTRATACION DIRECTA | B137: Contratos de prestación de servicios | C137: TERMINADO | D137: FDLK-CD-136-2020 | E137: CPS-136-2020 | F137: =VLOOKUP(E137,[1]Hoja1!D$3:E$393,2,0) -> 1 | G137: MARIELA JIMENEZ MARTINEZ | H137: 51813759 | I137: MARIELA JIMENEZ MARTINEZ | J137: 51813759 | L137: https://community.secop.gov.co/Public/Tendering/OpportunityDetail/Index?noticeUID=CO1.NTC.1318711&isFromPublicArea=True&isModal=False | M137: PRESTAR LOS SERVICIOS DE APOYO A LOS ARCHIVOS DE GESTIÓN DE LA ENTIDAD EN LA IMPLEMENTACIÓN DE LOS PROCESOS DE CLASIFICACIÓN, ORDENACIÓN, SELECCIÓN NATURAL, FOLIACIÓN, IDENTIFICACIÓN, LEVANTAMIENTO DE INVENTARIOS, ALMACENAMIENTO Y APLICACIÓN DE PROTOCOLOS DE ELIMINACIÓN Y TRANSFERENCIAS DOCUMENTALES | N137: INVERSIÓN | O137: 907 | P137: 39952000 | Q137: 1363 | R137: Fortalecimiento de la gestión local y de las acciones de vigilancia y control | S137: 2020-07-03 | T137: 2020-07-13 | U137: 2020-12-31 | V137: 9988000 | W137: 4 | X137: 2497000 | Y137: 998 | Z137: 9988000 | AA137: YEIMY CAROLINA AGUDELO HERNANDEZ | AB137: MARIA DEL PILAR MUÑOZ TORRES | AC137: ADMINISTRATIVO Y FINANCIERO | AD137: 380-47-994000106292 | AE137: 2020-06-07 | AF137: 2021-09-05 | AG137: NA | AH137: 0 | AI137: NA | AJ137: NA | AK137: NA | AL137: NA | AM137: NA | AN137: 2020-11-13 | AO137: 48 | AP137: DIAS | AQ137: 3995200 | AR137: 2020-11-13 | AS137: 48 | AT137: DIAS | AU137: NA | AV137: NA | AW137: NA | AX137: NA
A138: CONTRATACION DIRECTA | B138: Contratos de prestación de servicios | C138: TERMINADO | D138: FDLK-CD-137-2020 | E138: CPS-137-2020 | F138: =VLOOKUP(E138,[1]Hoja1!D$3:E$393,2,0) -> 1 | G138: CARMEN CECILIA VALBUENA CASTAÑEDA | H138: 51834988 | I138: CARMEN CECILIA VALBUENA CASTAÑEDA | J138: 51834988 | L138: https://community.secop.gov.co/Public/Tendering/OpportunityDetail/Index?noticeUID=CO1.NTC.1319015&isFromPublicArea=True&isModal=False | M138: PRESTAR LOS SERVICIOS DE APOYO AL ÁREA DE GESTIÓN DE DESARROLLO LOCAL Y AL DEFENSOR DEL CIUDADANO DE LA ALCALDÍA LOCAL DE KENNEDY | N138: INVERSIÓN | O138: 903 | P138: 9988000 | Q138: 1363 | R138: Fortalecimiento de la gestión local y de las acciones de vigilancia y control | S138: 2020-07-03 | T138: 2020-07-06 | U138: 2020-12-31 | V138: 9988000 | W138: 4 | X138: 2497000 | Y138: 991 | Z138: 9988000 | AA138: YEIMY CAROLINA AGUDELO HERNANDEZ | AB138: MARIA DEL PILAR MUÑOZ TORRES | AC138: ADMINISTRATIVO Y FINANCIERO | AD138: 21-44-101326546 | AE138: 2020-03-07 | AF138: 2021-06-05 | AG138: NA | AH138: 0 | AI138: NA | AJ138: NA | AK138: NA | AL138: NA | AM138: NA | AN138: 2020-11-06 | AO138: 55 | AP138: DIAS | AQ138: 4577833 | AR138: 2020-11-06 | AS138: 55 | AT138: DIAS | AU138: NA | AV138: NA | AW138: NA | AX138: NA
A139: CONTRATACION DIRECTA | B139: Contratos de prestación de servicios | C139: TERMINADO | D139: FDLK-CD-138-2020 | E139: CPS-138-2020 | F139: =VLOOKUP(E139,[1]Hoja1!D$3:E$393,2,0) -> 1 | G139: KAREN JOHANNA RAMÍREZ DUARTE | H139: 1022366754 | I139: KAREN JOHANNA RAMÍREZ DUARTE | J139: 1022366754 | L139: https://community.secop.gov.co/Public/Tendering/OpportunityDetail/Index?noticeUID=CO1.NTC.1318850&isFromPublicArea=True&isModal=False | M139: PRESTAR SUS SERVICIOS ASISTENCIALES Y ADMINISTRATIVOS PARA APOYAR A LA ALCALDÍA LOCAL DE KENNEDY, DE CONFORMIDAD AL CONVENIO INTERADMINISTRATIVO ESPECIFICO Nro. 1377 de 2016 Y EL DECRETO 633 DE 2017 | N139: INVERSIÓN | O139: 916 | P139: 19976000 | Q139: 1363 | R139: Fortalecimiento de la gestión local y de las acciones de vigilancia y control | S139: 2020-07-03 | T139: 2020-07-10 | U139: 2020-12-31 | V139: 9988000 | W139: 4 | X139: 2497000 | Y139: 1009 | Z139: 9988000 | AA139: YEIMY CAROLINA AGUDELO HERNANDEZ | AB139: JULIAN ADOLFO RAMIREZ BEDOYA | AC139: CASA DEL CONSUMIDOR | AD139: 380-47-994000106393 | AE139: 2020-03-07 | AF139: 2021-10-05 | AG139: NA | AH139: 0 | AI139: NA | AJ139: NA | AK139: NA | AL139: NA | AM139: NA | AN139: 2020-11-09 | AO139: 52 | AP139: DIAS | AQ139: 4244900 | AR139: 2020-11-09 | AS139: 52 | AT139: DIAS | AU139: NA | AV139: NA | AW139: NA | AX139: NA
A140: CONTRATACION DIRECTA | B140: Contratos de prestación de servicios | C140: TERMINADO | D140: FDLK-CD-139-2020 | E140: CPS-139-2020 | F140: =VLOOKUP(E140,[1]Hoja1!D$3:E$393,2,0) -> 1 | G140: JOSE WILMAN TORRES GOMEZ | H140: 1018425053 | I140: JOSE WILMAN TORRES GOMEZ | J140: 1018425053 | L140: https://community.secop.gov.co/Public/Tendering/OpportunityDetail/Index?noticeUID=CO1.NTC.1319161&isFromPublicArea=True&isModal=False | M140: PRESTACIÓN DE SERVICIOS PROFESIONALES PARA APOYAR JURÍDICAMENTE A LA ALCALDÍA LOCAL DE KENNEDY - FONDO DE DESARROLLO LOCAL DE KENNEDY EN LOS ASUNTOS CONSTITUCIONALES, LEGALES Y REGLAMENTARIOS DE SU COMPETENCIA, PARTICULARMENTE LOS RELACIONADOS CON LAS ETAPAS PRECONTRACTUAL, CONTRACTUAL Y POSCONTRACTUAL DE LOS PROCESOS DE CONTRATACIÓN | N140: INVERSIÓN | O140: 917 | P140: 22820000 | Q140: 1363 | R140: Fortalecimiento de la gestión local y de las acciones de vigilancia y control | S140: 2020-07-03 | T140: 2020-07-10 | U140: 2020-12-31 | V140: 22820000 | W140: 4 | X140: 5705000 | Y140: 1002 | Z140: 22820000 | AA140: YEIMY CAROLINA AGUDELO HERNANDEZ | AB140: MONICA JOHANNA HERNANDEZ PERAZA | AC140: CONTRATACION | AD140: 380-47-994000106393 | AE140: 17/07/2020 | AF140: 2021-12-05 | AG140: NA | AH140: 0 | AI140: NA | AJ140: NA | AK140: GLORIA STELLA ROBALLO OLMOS | AL140: JOSE WILMAN TORRES GOMEZ | AM140: 2020-07-15 | AN140: 2020-11-10 | AO140: 51 | AP140: DIAS | AQ140: 9698500 | AR140: 2020-11-10 | AS140: 51 | AT140: DIAS | AU140: NA | AV140: NA | AW140: NA | AX140: NA
A141: CONTRATACION DIRECTA | B141: Contratos de prestación de servicios | C141: TERMINADO | D141: FDLK-CD-140-2020 | E141: CPS-140-2020 | F141: =VLOOKUP(E141,[1]Hoja1!D$3:E$393,2,0) -> 1 | G141: LIDA ELIZABETH SILVA RODRIGUEZ | H141: 52120354 | I141: LIDA ELIZABETH SILVA RODRIGUEZ | J141: 52120354 | L141: https://community.secop.gov.co/Public/Tendering/OpportunityDetail/Index?noticeUID=CO1.NTC.1318863&isFromPublicArea=True&isModal=False | M141: PRESTAR LOS SERVICIOS DE APOYO A LOS ARCHIVOS DE GESTIÓN DE LA ENTIDAD EN LA IMPLEMENTACIÓN DE LOS PROCESOS DE CLASIFICACIÓN, ORDENACIÓN, SELECCIÓN NATURAL, FOLIACIÓN, IDENTIFICACIÓN, LEVANTAMIENTO DE INVENTARIOS, ALMACENAMIENTO Y APLICACIÓN DE PROTOCOLOS DE ELIMINACIÓN Y TRANSFERENCIAS DOCUMENTALES | N141: INVERSIÓN | O141: 907 | P141: 39952000 | Q141: 1363 | R141: Fortalecimiento de la gestión local y de las acciones de vigilancia y control | S141: 2020-07-03 | T141: 2020-07-08 | U141: 2020-12-31 | V141: 9988000 | W141: 4 | X141: 2497000 | Y141: 999 | Z141: 9988000 | AA141: YEIMY CAROLINA AGUDELO HERNANDEZ | AB141: MARIA DEL PILAR MUÑOZ TORRES | AC141: ADMINISTRATIVO Y FINANCIERO | AD141: 376 47 994000012860 | AE141: 2020-03-05 | AF141: 2021-03-05 | AG141: NA | AH141: 0 | AI141: NA | AJ141: NA | AK141: NA | AL141: NA | AM141: NA | AN141: 2020-11-08 | AO141: 53 | AP141: DIAS | AQ141: 4411367 | AR141: 2020-11-08 | AS141: 53 | AT141: DIAS | AU141: NA | AV141: NA | AW141: NA | AX141: NA
A142: CONTRATACION DIRECTA | B142: Contratos de prestación de servicios | C142: TERMINADO | D142: FDLK-CD-141-2020 | E142: CPS-141-2020 | F142: =VLOOKUP(E142,[1]Hoja1!D$3:E$393,2,0) -> 1 | G142: MAURICIO GUARNIZO SALAZAR | H142: 80258740 | I142: MAURICIO GUARNIZO SALAZAR | J142: 80258740 | L142: https://community.secop.gov.co/Public/Tendering/OpportunityDetail/Index?noticeUID=CO1.NTC.1319731&isFromPublicArea=True&isModal=False | M142: PRESTAR SUS SERVICIOS PROFESIONALES PARA APOYAR A LA ALCALDIA LOCAL DE KENNEDY, DE CONFORMIDAD AL CONVENIO INTERADMINISTRATIVO ESPECIFICO Nro. 1377 de 2016 Y EL DECRETO 633 DE 2017 | N142: INVERSIÓN | O142: 915 | P142: 22048000 | Q142: 1363 | R142: Fortalecimiento de la gestión local y de las acciones de vigilancia y control | S142: 2020-07-03 | T142: 2020-07-09 | U142: 2020-12-31 | V142: 22048000 | W142: 4 | X142: 5512000 | Y142: 992 | Z142: 22048000 | AA142: YEIMY CAROLINA AGUDELO HERNANDEZ | AB142: JULIAN ADOLFO RAMIREZ BEDOYA | AC142: CASA DEL CONSUMIDOR | AD142: 21-44-101326550 | AE142: 2020-03-07 | AF142: 2021-10-05 | AG142: NA | AH142: 0 | AI142: NA | AJ142: NA | AK142: NA | AL142: NA | AM142: NA | AN142: 2020-11-09 | AO142: 52 | AP142: DIAS | AQ142: 9554133 | AR142: 2020-11-09 | AS142: 52 | AT142: DIAS | AU142: NA | AV142: NA | AW142: NA | AX142: NA
A143: CONTRATACION DIRECTA | B143: Contratos de prestación de servicios | C143: EN EJECUCION | D143: FDLK-CD-142-2020 | E143: CPS-142-2020 | F143: =VLOOKUP(E143,[1]Hoja1!D$3:E$393,2,0) -> 0.9873417722 | G143: ANIBAL FERNANDO OSPINA ARDILA | H143: 79687438 | I143: ANIBAL FERNANDO OSPINA ARDILA | J143: 79687438 | L143: https://community.secop.gov.co/Public/Tendering/OpportunityDetail/Index?noticeUID=CO1.NTC.1319650&isFromPublicArea=True&isModal=False | M143: PRESTAR SUS SERVICIOS PROFESIONA-LES ESPECIALZIADOS PARA APOYAR A LA ALCALDÍA LOCAL DE KENNEDY EN LA FORMULACIÓN Y SEGUIMIENTO DE LAS OBRAS DE INFRAESTRUCTURA ADELANTADAS POR LA ALCALDÍA LO-CAL | N143: INVERSIÓN | O143: 938 | P143: 42000000 | Q143: 1369 | R143: Recreación y deporte para todos | S143: 2020-07-03 | T143: 2020-07-06 | U143: 2021-02-28 | V143: 40833334 | W143: 5.833333333 | X143: 7000000.114 | Y143: 995 | Z143: 40833334 | AA143: YEIMY CAROLINA AGUDELO HERNANDEZ | AB143: JOSÉ TARCICIO QUIROGA VELAZQUES | AC143: INFRAESTRUCTURA | AD143: 380 47 994000106306 | AE143: 2020-06-07 | AF143: 2021-06-07 | AG143: NA | AH143: 0 | AI143: NA | AJ143: NA | AK143: NA | AL143: NA | AM143: NA | AN143: 2021-01-01 | AO143: 2 | AP143: MESES | AQ143: 14000000 | AR143: 2021-01-01 | AS143: 2 | AT143: MESES | AU143: NA | AV143: NA | AW143: NA | AX143: NA
A144: CONTRATACION DIRECTA | B144: Contratos de prestación de servicios | C144: EN EJECUCION | D144: FDLK-CD-143-2020 | E144: CPS-143-2020 | F144: =VLOOKUP(E144,[1]Hoja1!D$3:E$393,2,0) -> 0.8850574713 | G144: OLGA MADIME MORA ACOSTA | H144: 1022337324 | I144: OLGA MADIME MORA ACOSTA | J144: 1022337324 | L144: https://community.secop.gov.co/Public/Tendering/OpportunityDetail/Index?noticeUID=CO1.NTC.1319537&isFromPublicArea=True&isModal=False | M144: PRESTAR LOS SERVICIOS DE APOYO A LA JUNTA ADMINISTRADORA LOCAL DE KENNEDY DE CONFORMIDAD CON EL TRÁMITE DE LOS ASUNTOS DE SU COMPETENCIA | N144: INVERSIÓN | O144: 928 | P144: 14982000 | Q144: 1363 | R144: Fortalecimiento de la gestión local y de las acciones de vigilancia y control | S144: 2020-07-03 | T144: 2020-07-09 | U144: 2021-03-27 | V144: 14565833 | W144: 5.833333333 | X144: 2496999.943 | Y144: 1003 | Z144: 14565833 | AA144: YEIMY CAROLINA AGUDELO HERNANDEZ | AB144: MARIA DEL PILAR MUÑOZ TORRES | AC144: JAL | AD144: 380-47-994000106300 | AE144: 2020-08-07 | AF144: 2021-03-07 | AG144: NA | AH144: 0 | AI144: NA | AJ144: NA | AK144: NA | AL144: NA | AM144: NA | AN144: 2021-01-01 | AO144: 86 | AP144: DIAS | AQ144: 7241300 | AR144: 2021-01-01 | AS144: 86 | AT144: DIAS | AU144: NA | AV144: NA | AW144: NA | AX144: NA
A145: CONTRATACION DIRECTA | B145: Contratos de prestación de servicios | C145: TERMINADO | D145: FDLK-CD-144-2020 | E145: CPS-144-2020 | F145: =VLOOKUP(E145,[1]Hoja1!D$3:E$393,2,0) -> 1 | G145: HENRY ALEXANDER ESLAVA PULIDO | H145: 1014230448 | I145: HENRY ALEXANDER ESLAVA PULIDO | J145: 1014230448 | L145: https://community.secop.gov.co/Public/Tendering/OpportunityDetail/Index?noticeUID=CO1.NTC.1319645&isFromPublicArea=True&isModal=False | M145: PRESTACIÓN DE SERVICIOS PROFESIONALES A LA ALCALDÍA LOCAL DE KENNEDY APOYANDO LAS ETAPAS PRECONTRACTUAL, CONTRACTUAL Y POSCONTRACTUAL DE LOS PROYECTOS DE INVERSION DEL FONDO DE DESARROLLO LOCAL DE KENNEDY | N145: INVERSIÓN | O145: 920 | P145: 22048000 | Q145: 1361 | R145: Sostenibilidad ambiental basada en la eficiencia energética | S145: 2020-07-03 | T145: 2020-07-06 | U145: 2020-12-31 | V145: 22048000 | W145: 4 | X145: 5512000 | Y145: 993 | Z145: 22048000 | AA145: YEIMY CAROLINA AGUDELO HERNANDEZ | AB145: MARIA DEL PILAR MUJICA SANDOVAL | AC145: PLANEACION | AD145: 15-44-101228873 | AE145: 2020-03-07 | AF145: 15/05/2021 | AG145: NA | AH145: 0 | AI145: NA | AJ145: NA | AK145: NA | AL145: NA | AM145: NA | AN145: 2020-11-06 | AO145: 55 | AP145: DIAS | AQ145: 10105333 | AR145: 2020-11-06 | AS145: 55 | AT145: DIAS | AU145: NA | AV145: NA | AW145: NA | AX145: NA
A146: CONTRATACION DIRECTA | B146: Contratos de prestación de servicios | C146: TERMINADO | D146: FDLK-CD-145-2020 | E146: CPS-145-2020 | F146: =VLOOKUP(E146,[1]Hoja1!D$3:E$393,2,0) -> 1 | G146: WILLIAM JAVIER ROJAS VARGAS | H146: 79597468 | I146: WILLIAM JAVIER ROJAS VARGAS | J146: 79597468 | L146: https://community.secop.gov.co/Public/Tendering/OpportunityDetail/Index?noticeUID=CO1.NTC.1319663&isFromPublicArea=True&isModal=False | M146: PRESTAR LOS SERVICIOS DE APOYO A LA OFICINA DE RADICACIÓN Y CORRESPONDENCIA DE LA ALCALDIA LOCAL DE KENNEDY EN TEMAS DE GESTIÓN DOCUMENTAL Y TRAMITES DE SU COMPETENCIA | N146: INVERSIÓN | O146: 918 | P146: 9988000 | Q146: 1363 | R146: Fortalecimiento de la gestión local y de las acciones de vigilancia y control | S146: 2020-07-03 | T146: 2020-07-09 | U146: 2020-12-31 | V146: 9988000 | W146: 4 | X146: 2497000 | Y146: 1004 | Z146: 9988000 | AA146: YEIMY CAROLINA AGUDELO HERNANDEZ | AB146: MARIA DEL PILAR MUÑOZ TORRES | AC146: ADMINISTRATIVO Y FINANCIERO | AD146: 380-47-994000106325 | AE146: 2020-03-07 | AF146: 2021-11-05 | AG146: NA | AH146: 0 | AI146: NA | AJ146: NA | AK146: NA | AL146: NA | AM146: NA | AN146: 2020-11-06 | AO146: 53 | AP146: DIAS | AQ146: 4328133 | AR146: 2020-11-06 | AS146: 53 | AT146: DIAS | AU146: NA | AV146: NA | AW146: NA | AX146: NA
A147: CONTRATACION DIRECTA | B147: Contratos de prestación de servicios | C147: TERMINADO | D147: FDLK-CD-146-2020 | E147: CPS-146-2020 | F147: =VLOOKUP(E147,[1]Hoja1!D$3:E$393,2,0) -> 1 | G147: MARIA ALICIA CORTES SILVA | H147: 20381368 | I147: MARIA ALICIA CORTES SILVA | J147: 20381368 | L147: https://community.secop.gov.co/Public/Tendering/OpportunityDetail/Index?noticeUID=CO1.NTC.1319676&isFromPublicArea=True&isModal=False | M147: PRESTAR LOS SERVICIOS DE APOYO EN LAS ACCIONES ENCAMINADAS AL RESTABLECIMIENTO DE LA ARMONÍA, PAZ, SEGURIDAD Y CONVIVENCIA CIUDADANA, EN LA LOCALIDAD DE KENNEDY | N147: INVERSIÓN | O147: 910 | P147: 285244000 | Q147: 1376 | R147: Fortalecimiento de seguridad e iniciativa de convivencia en la localidad de Kennedy | S147: 2020-07-03 | T147: 2020-07-09 | U147: 2020-12-31 | V147: 9836000 | W147: 4 | X147: 2459000 | Y147: 1005 | Z147: 9836000 | AA147: YEIMY CAROLINA AGUDELO HERNANDEZ | AB147: MARITZA RUIZ POSADA | AC147: Seguridad | AD147: 21-44-101326632 | AE147: 2020-03-07 | AF147: 2021-07-05 | AG147: NA | AH147: 0 | AI147: NA | AJ147: NA | AK147: NA | AL147: NA | AM147: NA | AN147: 2020-11-09 | AO147: 52 | AP147: DIAS | AQ147: 4262267 | AR147: 2020-11-09 | AS147: 52 | AT147: DIAS | AU147: NA | AV147: NA | AW147: NA | AX147: NA
A148: CONTRATACION DIRECTA | B148: Contratos de prestación de servicios | C148: TERMINADO | D148: FDLK-CD-147-2020 | E148: CPS-147-2020 | F148: =VLOOKUP(E148,[1]Hoja1!D$3:E$393,2,0) -> 1 | G148: YORGUIN ERNESTO BOHÓRQUEZ CANIZALES | H148: 1018406599 | I148: YORGUIN ERNESTO BOHÓRQUEZ CANIZALES | J148: 1018406599 | L148: https://community.secop.gov.co/Public/Tendering/OpportunityDetail/Index?noticeUID=CO1.NTC.1319279&isFromPublicArea=True&isModal=False | M148: PRESTAR APOYO EN LOS PROCESOS PARA LA ADMINISTRACIÓN DE BIENES DE PROPIEDAD DEL FONDO DE DESARROLLO LOCAL DE KENNEDY Y DE LOS QUE SEAN ASIGNADOS POR LA SECRETARÍA DE GOBIERNO DE ACUERDO A LOS PROCESOS Y PROCEDIMIENTOS ESTABLECIDOS | N148: INVERSIÓN | O148: 922 | P148: 13568000 | Q148: 1363 | R148: Fortalecimiento de la gestión local y de las acciones de vigilancia y control | S148: 2020-07-03 | T148: 2020-07-09 | U148: 2020-12-31 | V148: 13568000 | W148: 4 | X148: 3392000 | Y148: 1006 | Z148: 13568000 | AA148: YEIMY CAROLINA AGUDELO HERNANDEZ | AB148: NILBA ALIET AREVALO CASTELLANOS | AC148: ALMACEN | AD148: 380-47-994000106329 | AE148: 2020-03-07 | AF148: 2021-10-05 | AG148: NA | AH148: 0 | AI148: NA | AJ148: NA | AK148: NA | AL148: NA | AM148: NA | AN148: 2020-11-09 | AO148: 53 | AP148: DIAS | AQ148: 5992533 | AR148: 2020-11-09 | AS148: 53 | AT148: DIAS | AU148: NA | AV148: NA | AW148: NA | AX148: NA
A149: CONTRATACION DIRECTA | B149: Contratos de prestación de servicios | C149: TERMINADO | D149: FDLK-CD-148-2020 | E149: CPS-148-2020 | F149: =VLOOKUP(E149,[1]Hoja1!D$3:E$393,2,0) -> 1 | G149: NELLY JANNETH REY LADINO | H149: 52537998 | I149: NELLY JANNETH REY LADINO | J149: 52537998 | L149: https://community.secop.gov.co/Public/Tendering/OpportunityDetail/Index?noticeUID=CO1.NTC.1319762&isFromPublicArea=True&isModal=False | M149: PRESTAR SUS SERVICIOS PROFESIONALES A LAALCALDÍA LOCAL DE KENNEDY APOYANDO LA EJECUCIÓN DEL PROYECTO 1380 MI CASA ME PERTENECE EN ELCOMPONENTE SOCIAL TENDIENTE A LA TITULACIÓN DE PREDIOS CONFORME A GARANTIZAR ELCUMPLIMIENTO DEL PLAN DE DESARROLLO LOCAL | N149: INVERSIÓN | O149: 905 | P149: 16816000 | Q149: 1380 | R149: Mi casa me pertenece | S149: 2020-07-03 | T149: 2020-07-10 | U149: 2020-12-31 | V149: 16816000 | W149: 4 | X149: 4204000 | Y149: 1010 | Z149: 16816000 | AA149: YEIMY CAROLINA AGUDELO HERNANDEZ | AB149: YULLIET PATRICIA LLERENA AVENDAÑO | AC149: PLANEACION | AD149: 380-47-994000106321 | AE149: 2020-03-07 | AF149: 2021-10-05 | AG149: NA | AH149: 0 | AI149: NA | AJ149: NA | AK149: NA | AL149: NA | AM149: NA | AN149: 2020-11-10 | AO149: 52 | AP149: DIAS | AQ149: 7146800 | AR149: 2020-11-10 | AS149: 52 | AT149: DIAS | AU149: NA | AV149: NA | AW149: NA | AX149: NA
A150: CONTRATACION DIRECTA | B150: Contratos de prestación de servicios | C150: TERMINADO | D150: FDLK-CD-149-2020 | E150: CPS-149-2020 | F150: =VLOOKUP(E150,[1]Hoja1!D$3:E$393,2,0) -> 1 | G150: LUIS CARLOS NOVOA VARGAS | H150: 79845506 | I150: LUIS CARLOS NOVOA VARGAS | J150: 79845506 | L150: https://community.secop.gov.co/Public/Tendering/OpportunityDetail/Index?noticeUID=CO1.NTC.1319699&isFromPublicArea=True&isModal=False | M150: PRESTAR LOS SERVICIOS DE APOYO EN LAS ACCIONES ENCAMINADAS AL RESTABLECIMIENTO DE LA ARMONÍA, PAZ, SEGURIDAD Y CONVIVENCIA CIUDADANA, EN LA LOCALIDAD DE KENNEDY | N150: INVERSIÓN | O150: 910 | P150: 285244000 | Q150: 1376 | R150: Fortalecimiento de seguridad e iniciativa de convivencia en la localidad de Kennedy | S150: 2020-07-06 | T150: 2020-07-10 | U150: 2020-11-09 | V150: 9836000 | W150: 4 | X150: 2459000 | Y150: 1011 | Z150: 9836000 | AA150: YEIMY CAROLINA AGUDELO HERNANDEZ | AB150: MARITZA RUIZ POSADA | AC150: Seguridad | AD150: 380-47-994000106367 | AE150: 2020-08-07 | AF150: 2021-10-05 | AG150: NA | AH150: 0 | AI150: NA | AJ150: NA | AK150: NA | AL150: NA | AM150: NA | AN150: NA | AO150: NA | AP150: NA | AQ150: NA | AR150: NA | AS150: NA | AT150: NA | AU150: NA | AV150: NA | AW150: NA | AX150: NA
A151: CONTRATACION DIRECTA | B151: Contratos de prestación de servicios | C151: TERMINADO | D151: FDLK-CD-150-2020 | E151: CPS-150-2020 | F151: =VLOOKUP(E151,[1]Hoja1!D$3:E$393,2,0) -> 1 | G151: SANDRA MILENA SANCHEZ CASTRO | H151: 52767159 | I151: SANDRA MILENA SANCHEZ CASTRO | J151: 52767159 | L151: https://community.secop.gov.co/Public/Tendering/OpportunityDetail/Index?noticeUID=CO1.NTC.1319905&isFromPublicArea=True&isModal=False | M151: PRESTAR SUS SERVICIOS ASISTENCIALES Y ADMINISTRATIVOS PARA APOYAR A LA ALCALDÍA LOCAL DE KENNEDY, DE CONFORMIDAD AL CONVENIO INTERADMINISTRATIVO ESPECIFICO Nro. 1377 de 2016 Y EL DECRETO 633 DE 2017 | N151: INVERSIÓN | O151: 916 | P151: 19976000 | Q151: 1363 | R151: Fortalecimiento de la gestión local y de las acciones de vigilancia y control | S151: 2020-07-03 | T151: 2020-07-09 | U151: 2020-12-31 | V151: 9988000 | W151: 4 | X151: 2497000 | Y151: 1007 | Z151: 9988000 | AA151: YEIMY CAROLINA AGUDELO HERNANDEZ | AB151: JULIAN ADOLFO RAMIREZ BEDOYA | AC151: CASA DEL CONSUMIDOR | AD151: 15-46-101016546 | AE151: 2020-03-07 | AF151: 2021-10-05 | AG151: NA | AH151: 0 | AI151: NA | AJ151: NA | AK151: NA | AL151: NA | AM151: NA | AN151: 2020-11-09 | AO151: 52 | AP151: DIAS | AQ151: 4328133 | AR151: 2020-11-09 | AS151: 52 | AT151: DIAS | AU151: NA | AV151: NA | AW151: NA | AX151: NA
A152: CONTRATACION DIRECTA | B152: Contratos de prestación de servicios | C152: EN EJECUCION | D152: FDLK-CD-151-2020 | E152: CPS-151-2020 | F152: =VLOOKUP(E152,[1]Hoja1!D$3:E$393,2,0) -> 0.9872881356 | G152: YANETH ESPERANZA ECHEVERRIA BECERRA | H152: 51916237 | I152: YANETH ESPERANZA ECHEVERRIA BECERRA | J152: 51916237 | L152: https://community.secop.gov.co/Public/Tendering/OpportunityDetail/Index?noticeUID=CO1.NTC.1319931&isFromPublicArea=True&isModal=False | M152: Prestar sus servicios profesionales a la alcaldía local de Kennedy apoyando la etapa precontractual, contractual y poscontractual del proyecto de recuperación de la malla vial local tendiente a garantizar el cumplimiento del plan de desarrollo local | N152: INVERSIÓN | O152: 963 | Q152: 1367 | R152: Recuperación de la malla vial local | S152: 2020-07-03 | T152: 2020-07-07 | U152: 2021-02-28 | V152: 35000000 | W152: 6 | X152: 5833333.333 | Y152: 994 | Z152: 35000000 | AA152: YEIMY CAROLINA AGUDELO HERNANDEZ | AB152: JOSÉ TARCICIO QUIROGA VELAZQUES | AC152: INFRAESTRUCTURA | AD152: 380-47-994000106328 | AE152: 2020-03-07 | AF152: 2021-03-07 | AG152: NA | AH152: 0 | AI152: NA | AJ152: NA | AK152: NA | AL152: NA | AM152: NA | AN152: 2021-01-01 | AO152: 2 | AP152: MESES | AQ152: 12000000 | AR152: 2021-01-01 | AS152: 2 | AT152: MESES | AU152: NA | AV152: NA | AW152: NA | AX152: NA
A153: CONTRATACION DIRECTA | B153: Contratos de prestación de servicios | C153: TERMINADO | D153: FDLK-CD-152-2020 | E153: CPS-152-2020 | F153: =VLOOKUP(E153,[1]Hoja1!D$3:E$393,2,0) -> 1 | G153: MONICA TATIANA ARIZA | H153: 1026568078 | I153: MONICA TATIANA ARIZA | J153: 1026568078 | L153: https://community.secop.gov.co/Public/Tendering/OpportunityDetail/Index?noticeUID=CO1.NTC.1320074&isFromPublicArea=True&isModal=False | M153: PRESTAR LOS SERVICIOS DE APOYO EN LAS ACCIONES ENCAMINADAS AL RESTABLECIMIENTO DE LA ARMONÍA, PAZ, SEGURIDAD Y CONVIVENCIA CIUDADANA, EN LA LOCALIDAD DE KENNEDY | N153: INVERSIÓN | O153: 910 | P153: 285244000 | Q153: 1376 | R153: Fortalecimiento de seguridad e iniciativa de convivencia en la localidad de Kennedy | S153: 2020-07-03 | T153: 2020-07-08 | U153: 2020-12-31 | V153: 9836000 | W153: 4 | X153: 2459000 | Y153: 1020 | Z153: 9836000 | AA153: YEIMY CAROLINA AGUDELO HERNANDEZ | AB153: MARITZA RUIZ POSADA | AC153: Seguridad | AD153: 380- 47- 994000106326 | AE153: 2020-07-06 | AF153: 2021-09-05 | AG153: NA | AH153: 0 | AI153: NA | AJ153: NA | AK153: NA | AL153: NA | AM153: NA | AN153: 2020-11-08 | AO153: 53 | AP153: DIAS | AQ153: 4344223 | AR153: 2020-11-08 | AS153: 53 | AT153: DIAS | AU153: NA | AV153: NA | AW153: NA | AX153: NA
A154: CONTRATACION DIRECTA | B154: Contratos de prestación de servicios | C154: TERMINADO | D154: FDLK-CD-153-2020 | E154: CPS-153-2020 | F154: =VLOOKUP(E154,[1]Hoja1!D$3:E$393,2,0) -> 1 | G154: ALEJANDRA MORALES MILLAN | H154: 1030616555 | I154: ALEJANDRA MORALES MILLAN | J154: 1030616555 | L154: https://community.secop.gov.co/Public/Tendering/OpportunityDetail/Index?noticeUID=CO1.NTC.1320075&isFromPublicArea=True&isModal=False | M154: PRESTAR LOS SERVICIOS DE APOYO EN LAS ACCIONES ENCAMINADAS AL RESTABLECIMIENTO DE LA ARMONÍA, PAZ, SEGURIDAD Y CONVIVENCIA CIUDADANA, EN LA LOCALIDAD DE KENNEDY | N154: INVERSIÓN | O154: 910 | P154: 285244000 | Q154: 1376 | R154: Fortalecimiento de seguridad e iniciativa de convivencia en la localidad de Kennedy | S154: 2020-07-03 | T154: 2020-07-10 | U154: 2020-11-09 | V154: 9836000 | W154: 4 | X154: 2459000 | Y154: 1034 | Z154: 9836000 | AA154: YEIMY CAROLINA AGUDELO HERNANDEZ | AB154: FABIAN CAMILO GARCIA VILLARREAL | AC154: Seguridad | AD154: 21-44-101326643 | AE154: 2020-07-06 | AF154: 2021-06-05 | AG154: NA | AH154: 0 | AI154: NA | AJ154: NA | AK154: NA | AL154: NA | AM154: NA | AN154: NA | AO154: NA | AP154: NA | AQ154: NA | AR154: NA | AS154: NA | AT154: NA | AU154: NA | AV154: NA | AW154: NA | AX154: NA
A155: CONTRATACION DIRECTA | B155: Contratos de prestación de servicios | C155: TERMINADO | D155: FDLK-CD-154-2020 | E155: CPS-154-2020 | F155: =VLOOKUP(E155,[1]Hoja1!D$3:E$393,2,0) -> 1 | G155: EMERSON DAMIAN MONTAÑEZ DIAZ | H155: 1098637591 | I155: EMERSON DAMIAN MONTAÑEZ DIAZ | J155: 1098637591 | L155: https://community.secop.gov.co/Public/Tendering/OpportunityDetail/Index?noticeUID=CO1.NTC.1320252&isFromPublicArea=True&isModal=False | M155: PRESTAR SUS SERVICIOS PROFESIONALES A LA ALCALDIA LOCAL DE KENNEDY APOYANDO LAS ETAPAS PRECONTRACTUAL, CONTRACTUAL Y POSTCONTRACTUAL DEL PROYECTO DE INFRAESTRUCTURA Y ESPACIO PÚBLICO TENDIENTE A GARANTIZAR EL CUMPLIMIENTO DEL PLAN DE DESARROLLO LOCAL | N155: INVERSIÓN | O155: 866 | P155: 44095542 | Q155: 1369 | R155: Recreación y deporte para todos | S155: 2020-07-03 | T155: 2020-07-07 | U155: 2020-12-31 | V155: 22047771 | W155: 4 | X155: 5511942.75 | Y155: 1021 | Z155: 22047771 | AA155: YEIMY CAROLINA AGUDELO HERNANDEZ | AB155: JOSÉ TARCICIO QUIROGA VELAZQUES | AC155: INFRAESTRUCTURA | AD155: 15-44-101228988 | AE155: 2020-07-06 | AF155: 2021-06-05 | AG155: NA | AH155: 0 | AI155: NA | AJ155: NA | AK155: NA | AL155: NA | AM155: NA | AN155: 2020-11-06 | AO155: 55 | AP155: DIAS | AQ155: 10105229 | AR155: 2020-11-06 | AS155: 55 | AT155: DIAS | AU155: NA | AV155: NA | AW155: NA | AX155: NA
A156: CONTRATACION DIRECTA | B156: Contratos de prestación de servicios | C156: EN EJECUCION | D156: FDLK-CD-155-2020 | E156: CPS-155-2020 | F156: =VLOOKUP(E156,[1]Hoja1!D$3:E$393,2,0) -> 0.9871244635 | G156: JUAN CARLOS MORENO GONZALEZ | H156: 79733707 | I156: JUAN CARLOS MORENO GONZALEZ | J156: 79733707 | L156: https://community.secop.gov.co/Public/Tendering/OpportunityDetail/Index?noticeUID=CO1.NTC.1322424&isFromPublicArea=True&isModal=False | M156: PRESTAR SUS SERVICIOS PROFESIONALES A LA ALCALDÍA LOCAL DE KENNEDY APOYANDO LA FORMULACIÓN Y SEGUIMIENTO DEL PROYECTO DE RECUPERACION DE LA MALLA VIAL LOCAL TENDIENTE A GARANTIZAR EL CUMPLIMIENTO DEL PLAN DE DESARROLLO LOCAL | N156: INVERSIÓN | O156: 963 | P156: 72000000 | Q156: 1367 | R156: Recuperación de la malla vial local | S156: 2020-07-06 | T156: 2020-07-10 | U156: 2021-02-28 | V156: 34800000 | W156: 5.8 | X156: 6000000 | Y156: 1028 | Z156: 34800000 | AA156: YEIMY CAROLINA AGUDELO HERNANDEZ | AB156: JOSÉ TARCICIO QUIROGA VELAZQUES | AC156: INFRAESTRUCTURA | AD156: 380-47-994000106354 | AE156: 2020-07-06 | AF156: 2021-07-03 | AG156: NA | AH156: 0 | AI156: NA | AJ156: NA | AK156: NA | AL156: NA | AM156: NA | AN156: 2021-01-01 | AO156: 2 | AP156: MESES | AQ156: 12000000 | AR156: 2021-01-01 | AS156: 2 | AT156: MESES | AU156: NA | AV156: NA | AW156: NA | AX156: NA
A157: CONTRATACION DIRECTA | B157: Contratos de prestación de servicios | C157: TERMINADO | D157: FDLK-CD-156-2020 | E157: CPS-156-2020 | F157: =VLOOKUP(E157,[1]Hoja1!D$3:E$393,2,0) -> 1 | G157: WILLIAM JAVIER INDABURO CENDALES | H157: 80830997 | I157: WILLIAM JAVIER INDABURO CENDALES | J157: 80830997 | L157: https://community.secop.gov.co/Public/Tendering/OpportunityDetail/Index?noticeUID=CO1.NTC.1322558&isFromPublicArea=True&isModal=False | M157: PRESTAR LOS SERVICIOS DE APOYO EN LAS ACCIONES ENCAMINADAS AL RESTABLECIMIENTO DE LA ARMONÍA, PAZ, SEGURIDAD Y CONVIVENCIA CIUDADANA, EN LA LOCALIDAD DE KENNEDY | N157: INVERSIÓN | O157: 910 | P157: 285244000 | Q157: 1376 | R157: Fortalecimiento de seguridad e iniciativa de convivencia en la localidad de Kennedy | S157: 2020-07-06 | T157: 2020-07-10 | U157: 2020-12-31 | V157: 9836000 | W157: 4 | X157: 2459000 | Y157: 1029 | Z157: 9836000 | AA157: YEIMY CAROLINA AGUDELO HERNANDEZ | AB157: FABIAN CAMILO GARCIA VILLARREAL | AC157: Seguridad | AD157: 21-44-101326740 | AE157: 2020-07-06 | AF157: 2021-10-05 | AG157: NA | AH157: 0 | AI157: NA | AJ157: NA | AK157: NA | AL157: NA | AM157: NA | AN157: 2020-11-10 | AO157: 51 | AP157: DIAS | AQ157: 4180300 | AR157: 2020-11-10 | AS157: 51 | AT157: DIAS | AU157: NA | AV157: NA | AW157: NA | AX157: NA
A158: CONTRATACION DIRECTA | B158: Contratos de prestación de servicios | C158: TERMINADO | D158: FDLK-CD-157-2020 | E158: CPS-157-2020 | F158: =VLOOKUP(E158,[1]Hoja1!D$3:E$393,2,0) -> 1 | G158: BRANDON ANDRES BOHORQUEZ MONCALEANO | H158: 1031168188 | I158: BRANDON ANDRES BOHORQUEZ MONCALEANO | J158: 1031168188 | L158: https://community.secop.gov.co/Public/Tendering/OpportunityDetail/Index?noticeUID=CO1.NTC.1322352&isFromPublicArea=True&isModal=False | M158: PRESTAR LOS SERVICIOS DE APOYO EN LAS ACCIONES ENCAMINADAS AL RESTABLECIMIENTO DE LA ARMONÍA, PAZ, SEGURIDAD Y CONVIVENCIA CIUDADANA, EN LA LOCALIDAD DE KENNEDY | N158: INVERSIÓN | O158: 910 | P158: 285244000 | Q158: 1376 | R158: Fortalecimiento de seguridad e iniciativa de convivencia en la localidad de Kennedy | S158: 2020-07-06 | T158: 2020-07-13 | U158: 2020-12-31 | V158: 9836000 | W158: 4 | X158: 2459000 | Y158: 1046 | Z158: 9836000 | AA158: YEIMY CAROLINA AGUDELO HERNANDEZ | AB158: MARITZA RUIZ POSADA | AC158: Seguridad | AD158: 380-47-994000106334 | AE158: 2020-07-06 | AF158: 2021-12-05 | AG158: NA | AH158: 0 | AI158: NA | AJ158: NA | AK158: NA | AL158: NA | AM158: NA | AN158: 2020-11-13 | AO158: 48 | AP158: DIAS | AQ158: 3934400 | AR158: 2020-11-13 | AS158: 48 | AT158: DIAS | AU158: NA | AV158: NA | AW158: NA | AX158: NA
A159: CONTRATACION DIRECTA | B159: Contratos de prestación de servicios | C159: TERMINADO | D159: FDLK-CD-158-2020 | E159: CPS-158-2020 | F159: =VLOOKUP(E159,[1]Hoja1!D$3:E$393,2,0) -> 1 | G159: JORGE ANDRES SOLANO CASTRO | H159: 1022351642 | I159: JORGE ANDRES SOLANO CASTRO | J159: 1022351642 | L159: https://community.secop.gov.co/Public/Tendering/OpportunityDetail/Index?noticeUID=CO1.NTC.1322649&isFromPublicArea=True&isModal=False | M159: PRESTAR LOS SERVICIOS DE APOYO EN LAS ACCIONES ENCAMINADAS AL RESTABLECIMIENTO DE LA ARMONÍA, PAZ, SEGURIDAD Y CONVIVENCIA CIUDADANA, EN LA LOCALIDAD DE KENNEDY | N159: INVERSIÓN | O159: 910 | P159: 285244000 | Q159: 1376 | R159: Fortalecimiento de seguridad e iniciativa de convivencia en la localidad de Kennedy | S159: 2020-07-06 | T159: 2020-07-17 | U159: 2020-12-31 | V159: 9836000 | W159: 4 | X159: 2459000 | Y159: 1040 | Z159: 9836000 | AA159: YEIMY CAROLINA AGUDELO HERNANDEZ | AB159: MARITZA RUIZ POSADA | AC159: Seguridad | AD159: 380 47 994000106370 | AE159: 2020-07-06 | AF159: 2021-09-05 | AG159: NA | AH159: 0 | AI159: NA | AJ159: NA | AK159: NA | AL159: NA | AM159: NA | AN159: 2020-11-17 | AO159: 44 | AP159: DIAS | AQ159: 3606533 | AR159: 2020-11-17 | AS159: 44 | AT159: DIAS | AU159: NA | AV159: NA | AW159: NA | AX159: NA
A160: CONTRATACION DIRECTA | B160: Contratos de prestación de servicios | C160: TERMINADO | D160: FDLK-CD-159-2020 | E160: CPS-159-2020 | F160: =VLOOKUP(E160,[1]Hoja1!D$3:E$393,2,0) -> 1 | G160: JOSE SALATIEL GONZALEZ CALDERON | H160: 3216280 | I160: JOSE SALATIEL GONZALEZ CALDERON | J160: 3216280 | L160: https://community.secop.gov.co/Public/Tendering/OpportunityDetail/Index?noticeUID=CO1.NTC.1322772&isFromPublicArea=True&isModal=False | M160: PRESTAR LOS SERVICIOS DE APOYO EN LAS ACCIONES ENCAMINADAS AL RESTABLECIMIENTO DE LA ARMONÍA, PAZ, SEGURIDAD Y CONVIVENCIA CIUDADANA, EN LA LOCALIDAD DE KENNEDY | N160: INVERSIÓN | O160: 910 | P160: 285244000 | Q160: 1376 | R160: Fortalecimiento de seguridad e iniciativa de convivencia en la localidad de Kennedy | S160: 2020-07-06 | T160: 2020-07-13 | U160: 2020-12-31 | V160: 9836000 | W160: 4 | X160: 2459000 | Y160: 1041 | Z160: 9836000 | AA160: YEIMY CAROLINA AGUDELO HERNANDEZ | AB160: MARITZA RUIZ POSADA | AC160: Seguridad | AD160: 380-47-994000106331 | AE160: 2020-07-06 | AF160: 2021-12-05 | AG160: NA | AH160: 0 | AI160: NA | AJ160: NA | AK160: NA | AL160: NA | AM160: NA | AN160: 2020-11-12 | AO160: 49 | AP160: DIAS | AQ160: 3934400 | AR160: 2020-11-12 | AS160: 49 | AT160: DIAS | AU160: NA | AV160: NA | AW160: NA | AX160: NA
A161: CONTRATACION DIRECTA | B161: Contratos de prestación de servicios | C161: EN EJECUCION | D161: FDLK-CD-160-2020 | E161: CPS-160-2020 | F161: =VLOOKUP(E161,[1]Hoja1!D$3:E$393,2,0) -> 1 | G161: LEIDY STEFFANY RIVEROS SERNA | H161: 1024547307 | I161: LEIDY STEFFANY RIVEROS SERNA | J161: 1024547307 | L161: https://community.secop.gov.co/Public/Tendering/OpportunityDetail/Index?noticeUID=CO1.NTC.1322849&isFromPublicArea=True&isModal=False | M161: PRESTAR SUS SERVICIOS AL ÁREA DE GESTIÓN AL DESARROLLO LOCAL BRINDANDO APOYO EN LAS LABORES CONTABLES DEL FONDO DE DESARROLLO LOCAL DE KENNEDY | N161: INVERSIÓN | O161: 973 | P161: 23100000 | Q161: 1363 | R161: Fortalecimiento de la gestión local y de las acciones de vigilancia y control | S161: 2020-07-06 | T161: 2020-07-09 | U161: 2021-02-15 | V161: 22330000 | W161: 5.8 | X161: 3850000 | Y161: 1031 | Z161: 22330000 | AA161: YEIMY CAROLINA AGUDELO HERNANDEZ | AB161: LUZ MYRIAM ORTEGA WALTEROS | AC161: ADMINISTRATIVO Y FINANCIERO | AD161: 380-47-994000106300 | AE161: 2020-07-06 | AF161: 2021-03-07 | AG161: NA | AH161: 0 | AI161: NA | AJ161: NA | AK161: NA | AL161: NA | AM161: NA | AN161: 2021-01-01 | AO161: 46 | AP161: DIAS | AQ161: 5775000 | AR161: 2021-01-01 | AS161: 46 | AT161: DIAS | AU161: NA | AV161: NA | AW161: NA | AX161: NA
A162: CONTRATACION DIRECTA | B162: Contratos de prestación de servicios | C162: TERMINADO | D162: FDLK-CD-161-2020 | E162: CPS-161-2020 | F162: =VLOOKUP(E162,[1]Hoja1!D$3:E$393,2,0) -> 1 | G162: MARCO FIDEL PEDROZA HUERTAS | H162: 1073671140 | I162: MARCO FIDEL PEDROZA HUERTAS | J162: 1073671140 | L162: https://community.secop.gov.co/Public/Tendering/OpportunityDetail/Index?noticeUID=CO1.NTC.1323244&isFromPublicArea=True&isModal=False | M162: PRESTAR LOS SERVICIOS DE APOYO EN LAS ACCIONES ENCAMINADAS AL RESTABLECIMIENTO DE LA ARMONÍA, PAZ, SEGURIDAD Y CONVIVENCIA CIUDADANA, EN LA LOCALIDAD DE KENNEDY | N162: INVERSIÓN | O162: 910 | P162: 285244000 | Q162: 1376 | R162: Fortalecimiento de seguridad e iniciativa de convivencia en la localidad de Kennedy | S162: 2020-07-06 | T162: 2020-07-13 | U162: 2020-12-31 | V162: 9836000 | W162: 4 | X162: 2459000 | Y162: 1030 | Z162: 9836000 | AA162: YEIMY CAROLINA AGUDELO HERNANDEZ | AB162: FABIAN CAMILO GARCIA VILLARREAL | AC162: Seguridad | AD162: 21-44-101326602 | AE162: 2020-07-06 | AF162: 2021-12-05 | AG162: NA | AH162: 0 | AI162: NA | AJ162: NA | AK162: NA | AL162: NA | AM162: NA | AN162: 2020-11-13 | AO162: 48 | AP162: DIAS | AQ162: 3934400 | AR162: 2020-11-13 | AS162: 48 | AT162: DIAS | AU162: NA | AV162: NA | AW162: NA | AX162: NA
A163: CONTRATACION DIRECTA | B163: Contratos de prestación de servicios | C163: TERMINADO | D163: FDLK-CD-162-2020 | E163: CPS-162-2020 | F163: =VLOOKUP(E163,[1]Hoja1!D$3:E$393,2,0) -> 1 | G163: CAROL YASMINE LÓPEZ MARTÍNEZ | H163: 52812114 | I163: CAROL YASMINE LÓPEZ MARTÍNEZ | J163: 52812114 | L163: https://community.secop.gov.co/Public/Tendering/OpportunityDetail/Index?noticeUID=CO1.NTC.1323284&isFromPublicArea=True&isModal=False | M163: PRESTAR LOS SERVICIOS DE APOYO TÉCNICO Y ADMINISTRATIVO EN LA DESCONGESTIÓN DE TRÁMITES DEL ÁREA DE GESTIÓN POLICIVA JURÍDICA DE LA ALCALDÍA LOCAL DE KENNEDY | N163: INVERSIÓN | O163: 904 | P163: 57664000 | Q163: 1363 | R163: Fortalecimiento de la gestión local y de las acciones de vigilancia y control | S163: 2020-07-07 | T163: 2020-07-09 | U163: 2020-12-31 | V163: 14416000 | W163: 4 | X163: 3604000 | Y163: 1032 | Z163: 14416000 | AA163: YEIMY CAROLINA AGUDELO HERNANDEZ | AB163: NORMA LETICIA GUZMAN RIMOLLI | AC163: GESTION POLICIVA Y JURIDICA | AD163: 33-46-101024213 | AE163: 2020-07-07 | AF163: 2021-07-05 | AG163: NA | AH163: 0 | AI163: NA | AJ163: NA | AK163: NA | AL163: NA | AM163: NA | AN163: 2020-11-09 | AO163: 52 | AP163: DIAS | AQ163: 6246933 | AR163: 2020-11-09 | AS163: 52 | AT163: DIAS | AU163: NA | AV163: NA | AW163: NA | AX163: NA
A164: CONTRATACION DIRECTA | B164: Contratos de prestación de servicios | C164: EN EJECUCION | D164: FDLK-CD-163-2020 | E164: CPS-163-2020 | F164: =VLOOKUP(E164,[1]Hoja1!D$3:E$393,2,0) -> 1 | G164: CAMILA ANDREA VALDERRAMA RIVERA | H164: 1018458119 | I164: CAMILA ANDREA VALDERRAMA RIVERA | J164: 1018458119 | L164: https://community.secop.gov.co/Public/Tendering/OpportunityDetail/Index?noticeUID=CO1.NTC.1323656&isFromPublicArea=True&isModal=False | M164: PRESTAR SUS SERVICIOS PROFESIONALES PARA APOYAR LOS PROCESOS DE MANEJO DEL PRESUPUESTO DISTRITAL LOCAL QUE SE ENCUENTRAN A CARGO DE LA OFICINA DE PRESUPUESTO DEL FONDO DE DESARROLLO LOCAL DE KENNEDY. | N164: INVERSIÓN | O164: 929 | P164: 25200000 | Q164: 1363 | R164: Fortalecimiento de la gestión local y de las acciones de vigilancia y control | S164: 2020-07-07 | T164: 2020-07-08 | U164: 2021-02-15 | V164: 25200000 | W164: 6 | X164: 4200000 | Y164: 1025 | Z164: 25200000 | AA164: YEIMY CAROLINA AGUDELO HERNANDEZ | AB164: ANDREA CASAS DURAN | AC164: Presupuesto | AD164: 380-47-994000106300 | AE164: 2020-08-07 | AF164: 2021-03-07 | AG164: NA | AH164: 0 | AI164: NA | AJ164: NA | AK164: NA | AL164: NA | AM164: NA | AN164: 2021-01-01 | AO164: 46 | AP164: DIAS | AQ164: 6300000 | AR164: 2021-01-01 | AS164: 46 | AT164: DIAS | AU164: NA | AV164: NA | AW164: NA | AX164: NA
A165: CONTRATACION DIRECTA | B165: Contratos de prestación de servicios | C165: TERMINADO | D165: FDLK-CD-164-2020 | E165: CPS-164-2020 | F165: =VLOOKUP(E165,[1]Hoja1!D$3:E$393,2,0) -> 1 | G165: JENNIFER ALEJANDRA CARDOSO TIBOCHA | H165: 1023942028 | I165: JENNIFER ALEJANDRA CARDOSO TIBOCHA | J165: 1023942028 | L165: https://community.secop.gov.co/Public/Tendering/OpportunityDetail/Index?noticeUID=CO1.NTC.1324046&isFromPublicArea=True&isModal=False | M165: PRESTAR LOS SERVICIOS DE APOYO EN LAS ACCIONES ENCAMINADAS AL RESTABLECIMIENTO DE LA ARMONÍA, PAZ, SEGURIDAD Y CONVIVENCIA CIUDADANA, EN LA LOCALIDAD DE KENNEDY | N165: INVERSIÓN | O165: 910 | P165: 285244000 | Q165: 1376 | R165: Fortalecimiento de seguridad e iniciativa de convivencia en la localidad de Kennedy | S165: 2020-07-07 | T165: 2020-07-10 | U165: 2020-12-31 | V165: 9836000 | W165: 4 | X165: 2459000 | Y165: 1039 | Z165: 9836000 | AA165: YEIMY CAROLINA AGUDELO HERNANDEZ | AB165: FABIAN CAMILO GARCIA VILLARREAL | AC165: Seguridad | AD165: 11-44-101154004 | AE165: 2020-09-07 | AF165: 2021-10-05 | AG165: NA | AH165: 0 | AI165: NA | AJ165: NA | AK165: NA | AL165: NA | AM165: NA | AN165: 2020-11-10 | AO165: 51 | AP165: DIAS | AQ165: 4180300 | AR165: 2020-11-10 | AS165: 51 | AT165: DIAS | AU165: NA | AV165: NA | AW165: NA | AX165: NA
A166: CONTRATACION DIRECTA | B166: Contratos de prestación de servicios | C166: TERMINADO | D166: FDLK-CD-165-2020 | E166: CPS-165-2020 | F166: =VLOOKUP(E166,[1]Hoja1!D$3:E$393,2,0) -> 1 | G166: ANGIE PAOLA PINTO GARCIA | H166: 1030568255 | I166: ANGIE PAOLA PINTO GARCIA | J166: 1030568255 | L166: https://community.secop.gov.co/Public/Tendering/OpportunityDetail/Index?noticeUID=CO1.NTC.1324047&isFromPublicArea=True&isModal=False | M166: PRESTAR LOS SERVICIOS DE APOYO EN LAS ACCIONES ENCAMINADAS AL RESTABLECIMIENTO DE LA ARMONÍA, PAZ, SEGURIDAD Y CONVIVENCIA CIUDADANA, EN LA LOCALIDAD DE KENNEDY | N166: INVERSIÓN | O166: 910 | P166: 285244000 | Q166: 1376 | R166: Fortalecimiento de seguridad e iniciativa de convivencia en la localidad de Kennedy | S166: 2020-07-07 | T166: 2020-07-10 | U166: 2020-12-31 | V166: 9836000 | W166: 4 | X166: 2459000 | Y166: 1047 | Z166: 9836000 | AA166: YEIMY CAROLINA AGUDELO HERNANDEZ | AB166: FABIAN CAMILO GARCIA VILLARREAL | AC166: Seguridad | AD166: 21-44-101326796 | AE166: 2020-07-07 | AF166: 2021-10-05 | AG166: NA | AH166: 0 | AI166: NA | AJ166: NA | AK166: NA | AL166: NA | AM166: NA | AN166: 2020-11-10 | AO166: 51 | AP166: DIAS | AQ166: 4180300 | AR166: 2020-11-10 | AS166: 51 | AT166: DIAS | AU166: NA | AV166: NA | AW166: NA | AX166: NA
A167: CONTRATACION DIRECTA | B167: Contratos de prestación de servicios | C167: TERMINADO | D167: FDLK-CD-166-2020 | E167: CPS-166-2020 | F167: =VLOOKUP(E167,[1]Hoja1!D$3:E$393,2,0) -> 1 | G167: MIGUEL HERRERA HERNANDEZ | H167: 1023881876 | I167: MIGUEL HERRERA HERNANDEZ | J167: 1023881876 | L167: https://community.secop.gov.co/Public/Tendering/OpportunityDetail/Index?noticeUID=CO1.NTC.1324128&isFromPublicArea=True&isModal=False | M167: APOYAR LA FORMULACIÓN, EJECUCIÓN, SEGUIMIENTO Y MEJORA CONTINUA DE LAS HERRAMIENTAS QUE CONFORMAN LA GESTIÓN AMBIENTAL INSTITUCIONAL DE LA ALCALDÍA LOCAL | N167: INVERSIÓN | O167: 932 | P167: 25200000 | Q167: 1363 | R167: Fortalecimiento de la gestión local y de las acciones de vigilancia y control | S167: 2020-07-07 | T167: 2020-07-10 | U167: 2020-12-31 | V167: 24080000 | W167: 5.733333333 | X167: 4200000 | Y167: 1038 | Z167: 24080000 | AA167: YEIMY CAROLINA AGUDELO HERNANDEZ | AB167: MARIA DEL PILAR MUÑOZ TORRES | AC167: ADMINISTRATIVO Y FINANCIERO | AD167: 376-47-994000012897 | AE167: 2020-08-07 | AF167: 30/6/2021 | AG167: NA | AH167: 0 | AI167: NA | AJ167: NA | AK167: NA | AL167: NA | AM167: NA | AN167: NA | AO167: NA | AP167: NA | AQ167: NA | AR167: NA | AS167: NA | AT167: NA | AU167: NA | AV167: NA | AW167: NA | AX167: NA
A168: CONTRATACION DIRECTA | B168: Contratos de prestación de servicios | C168: TERMINADO | D168: FDLK-CD-167-2020 | E168: CPS-167-2020 | F168: =VLOOKUP(E168,[1]Hoja1!D$3:E$393,2,0) -> 1 | G168: PEDRO HERNANDEZ DE ALBA PAVIA | H168: 1136884489 | I168: PEDRO HERNANDEZ DE ALBA PAVIA | J168: 1136884489 | L168: https://community.secop.gov.co/Public/Tendering/OpportunityDetail/Index?noticeUID=CO1.NTC.1324705&isFromPublicArea=True&isModal=False | M168: PRESTAR LOS SERVICIOS DE APOYO EN LAS ACCIONES ENCAMINADAS AL RESTABLECIMIENTO DE LA ARMONÍA, PAZ, SEGURIDAD Y CONVIVENCIA CIUDADANA, EN LA LOCALIDAD DE KENNEDY | N168: INVERSIÓN | O168: 910 | P168: 285244000 | Q168: 1376 | R168: Fortalecimiento de seguridad e iniciativa de convivencia en la localidad de Kennedy | S168: 2020-07-07 | T168: 2020-07-14 | U168: 2020-12-31 | V168: 9836000 | W168: 4 | X168: 2459000 | Y168: 1048 | Z168: 9836000 | AA168: YEIMY CAROLINA AGUDELO HERNANDEZ | AB168: MARITZA RUIZ POSADA | AC168: Seguridad | AD168: 380-47-994000106369 | AE168: 2020-07-07 | AF168: 2021-10-05 | AG168: NA | AH168: 0 | AI168: NA | AJ168: NA | AK168: NA | AL168: NA | AM168: NA | AN168: 2020-11-14 | AO168: 47 | AP168: DIAS | AQ168: 3852433 | AR168: 2020-11-14 | AS168: 47 | AT168: DIAS | AU168: NA | AV168: NA | AW168: NA | AX168: NA
A169: CONTRATACION DIRECTA | B169: Contratos de prestación de servicios | C169: TERMINADO | D169: FDLK-CD-168-2020 | E169: CPS-168-2020 | F169: =VLOOKUP(E169,[1]Hoja1!D$3:E$393,2,0) -> 1 | G169: MELBA LIGIA ZABALA OYUELA | H169: 51654846 | I169: MELBA LIGIA ZABALA OYUELA | J169: 51654846 | L169: https://community.secop.gov.co/Public/Tendering/OpportunityDetail/Index?noticeUID=CO1.NTC.1324706&isFromPublicArea=True&isModal=False | M169: PRESTAR LOS SERVICIOS DE APOYO EN LAS ACCIONES ENCAMINADAS AL RESTABLECIMIENTO DE LA ARMONÍA, PAZ, SEGURIDAD Y CONVIVENCIA CIUDADANA, EN LA LOCALIDAD DE KENNEDY | N169: INVERSIÓN | O169: 910 | P169: 285244000 | Q169: 1376 | R169: Fortalecimiento de seguridad e iniciativa de convivencia en la localidad de Kennedy | S169: 2020-07-07 | T169: 2020-07-13 | U169: 2020-12-31 | V169: 9836000 | W169: 4 | X169: 2459000 | Y169: 1042 | Z169: 9836000 | AA169: YEIMY CAROLINA AGUDELO HERNANDEZ | AB169: MARITZA RUIZ POSADA | AC169: Seguridad | AD169: 380-47-994000106375 | AE169: 2020-07-07 | AF169: 13/5/2021 | AG169: NA | AH169: 0 | AI169: NA | AJ169: NA | AK169: NA | AL169: NA | AM169: NA | AN169: 2020-11-13 | AO169: 48 | AP169: DIAS | AQ169: 3934400 | AR169: 2020-11-13 | AS169: 48 | AT169: DIAS | AU169: NA | AV169: NA | AW169: NA | AX169: NA
A170: CONTRATACION DIRECTA | B170: Contratos de prestación de servicios | C170: TERMINADO | D170: FDLK-CD-169-2020 | E170: CPS-169-2020 | F170: =VLOOKUP(E170,[1]Hoja1!D$3:E$393,2,0) -> 1 | G170: HERNAN EDUARDO RODRIGUEZ BEDOYA | H170: 1121855155 | I170: HERNAN EDUARDO RODRIGUEZ BEDOYA | J170: 1121855155 | L170: https://community.secop.gov.co/Public/Tendering/OpportunityDetail/Index?noticeUID=CO1.NTC.1324708&isFromPublicArea=True&isModal=False | M170: PRESTAR LOS SERVICIOS DE APOYO EN LAS ACCIONES ENCAMINADAS AL RESTABLECIMIENTO DE LA ARMONÍA, PAZ, SEGURIDAD Y CONVIVENCIA CIUDADANA, EN LA LOCALIDAD DE KENNEDY | N170: INVERSIÓN | O170: 910 | P170: 285244000 | Q170: 1376 | R170: Fortalecimiento de seguridad e iniciativa de convivencia en la localidad de Kennedy | S170: 2020-07-07 | T170: 2020-07-13 | U170: 2020-12-31 | V170: 9836000 | W170: 4 | X170: 2459000 | Y170: 1043 | Z170: 9836000 | AA170: YEIMY CAROLINA AGUDELO HERNANDEZ | AB170: FABIAN CAMILO GARCIA VILLARREAL | AC170: Seguridad | AD170: 380-47-994000106300 | AE170: 2020-07-07 | AF170: 13/5/2021 | AG170: NA | AH170: 0 | AI170: NA | AJ170: NA | AK170: NA | AL170: NA | AM170: NA | AN170: 2020-11-13 | AO170: 48 | AP170: DIAS | AQ170: 3934400 | AR170: 2020-11-13 | AS170: 48 | AT170: DIAS | AU170: NA | AV170: NA | AW170: NA | AX170: NA
A171: CONTRATACION DIRECTA | B171: Contratos de prestación de servicios | C171: TERMINADO | D171: FDLK-CD 170-2020 | E171: CPS-170-2020 | F171: =VLOOKUP(E171,[1]Hoja1!D$3:E$393,2,0) -> 1 | G171: KAREN JOHANNA GUARNIZO GARCIA | H171: 1030642401 | I171: KAREN JOHANNA GUARNIZO GARCIA | J171: 1030642401 | L171: https://community.secop.gov.co/Public/Tendering/OpportunityDetail/Index?noticeUID=CO1.NTC.1325035&isFromPublicArea=True&isModal=False | M171: PRESTAR LOS SERVICIOS DE APOYO EN LAS ACCIONES ENCAMINADAS AL RESTABLECIMIENTO DE LA ARMONÍA, PAZ, SEGURIDAD Y CONVIVENCIA CIUDADANA, EN LA LOCALIDAD DE KENNEDY | N171: INVERSIÓN | O171: 910 | P171: 285244000 | Q171: 1376 | R171: Fortalecimiento de seguridad e iniciativa de convivencia en la localidad de Kennedy | S171: 2020-07-07 | T171: 2020-07-09 | U171: 2020-12-31 | V171: 9836000 | W171: 4 | X171: 2459000 | Y171: 1045 | Z171: 9836000 | AA171: YEIMY CAROLINA AGUDELO HERNANDEZ | AB171: FABIAN CAMILO GARCIA VILLARREAL | AC171: Seguridad | AD171: 21-46-101016399 | AE171: 2020-09-07 | AF171: 2021-09-05 | AG171: NA | AH171: 0 | AI171: NA | AJ171: NA | AK171: NA | AL171: NA | AM171: NA | AN171: 2020-11-09 | AO171: 52 | AP171: DIAS | AQ171: 4262267 | AR171: 2020-11-09 | AS171: 52 | AT171: DIAS | AU171: NA | AV171: NA | AW171: NA | AX171: NA
A172: CONTRATACION DIRECTA | B172: Contratos de prestación de servicios | C172: TERMINADO | D172: FDLK-CD-171-2020 | E172: CPS-171-2020 | F172: =VLOOKUP(E172,[1]Hoja1!D$3:E$393,2,0) -> 1 | G172: FREDDY ARMANDO ESPINOSA MEDINA | H172: 1016027426 | I172: FREDDY ARMANDO ESPINOSA MEDINA | J172: 1016027426 | L172: https://community.secop.gov.co/Public/Tendering/OpportunityDetail/Index?noticeUID=CO1.NTC.1325464&isFromPublicArea=True&isModal=False | M172: PRESTAR LOS SERVICIOS DE APOYO EN LAS ACCIONES ENCAMINADAS AL RESTABLECIMIENTO DE LA ARMONÍA, PAZ, SEGURIDAD Y CONVIVENCIA CIUDADANA, EN LA LOCALIDAD DE KENNEDY” | N172: INVERSIÓN | O172: 910 | P172: 285244000 | Q172: 1376 | R172: Fortalecimiento de seguridad e iniciativa de convivencia en la localidad de Kennedy | S172: 2020-07-07 | T172: 2020-07-13 | U172: 2020-12-31 | V172: 9836000 | W172: 4 | X172: 2459000 | Y172: 1044 | Z172: 9836000 | AA172: YEIMY CAROLINA AGUDELO HERNANDEZ | AB172: FABIAN CAMILO GARCIA VILLARREAL | AC172: Seguridad | AD172: 15-46-101016559 | AE172: 2020-08-07 | AF172: 2021-08-09 | AG172: NA | AH172: 0 | AI172: NA | AJ172: NA | AK172: NA | AL172: NA | AM172: NA | AN172: 2020-11-13 | AO172: 48 | AP172: DIAS | AQ172: 3934400 | AR172: 2020-11-13 | AS172: 48 | AT172: DIAS | AU172: NA | AV172: NA | AW172: NA | AX172: NA
A173: CONTRATACION DIRECTA | B173: Contratos de prestación de servicios | C173: EN EJECUCION | D173: FDLK-CD-173-2020 | E173: CPS-173-2020 | F173: =VLOOKUP(E173,[1]Hoja1!D$3:E$393,2,0) -> 0.9871794872 | G173: PAOLA GISELLA CHACON HERNANDEZ | H173: 1110446844 | I173: PAOLA GISELLA CHACON HERNANDEZ | J173: 1110446844 | L173: https://community.secop.gov.co/Public/Tendering/OpportunityDetail/Index?noticeUID=CO1.NTC.1325969&isFromPublicArea=True&isModal=False | M173: PRESTACIÓN DE SERVICIOS PROFESIONALES PARA APOYAR JURÍDICAMENTE A LA ALCALDÍA LOCAL DE KENNEDY - FONDO DE DESARROLLO LOCAL DE KENNEDY EN LOS ASUNTOS CONSTITUCIONALES, LEGALES Y REGLAMENTARIOS DE SU COMPETENCIA, PARTICULARMENTE LOS RELACIONADOS CON LAS ETAPAS PRECONTRACTUAL, CONTRACTUAL Y POSCONTRACTUAL DE LOS PROCESOS DE CONTRATACIÓN | N173: INVERSIÓN | O173: 914 | P173: 102600000 | Q173: 1363 | R173: Fortalecimiento de la gestión local y de las acciones de vigilancia y control | S173: 2020-07-08 | T173: 2020-07-09 | U173: 2021-02-28 | V173: 32680000 | W173: 5.733333333 | X173: 5700000 | Y173: 1037 | Z173: 32680000 | AA173: YEIMY CAROLINA AGUDELO HERNANDEZ | AB173: MONICA JOHANNA HERNANDEZ PERAZA | AC173: CONTRATACION | AD173: 380-47-994000106400 | AE173: 2020-07-08 | AF173: 2021-06-30 | AG173: NA | AH173: 0 | AI173: NA | AJ173: NA | AK173: NA | AL173: NA | AM173: NA | AN173: 2021-01-01 | AO173: 2 | AP173: MESES | AQ173: 11400000 | AR173: 2021-01-01 | AS173: 2 | AT173: MESES | AU173: NA | AV173: NA | AW173: NA | AX173: NA
A174: CONTRATACION DIRECTA | B174: Contratos de prestación de servicios | C174: TERMINADO | D174: FDLK-CD-175-2020 | E174: CPS-175-2020 | F174: =VLOOKUP(E174,[1]Hoja1!D$3:E$393,2,0) -> 1 | G174: WILLIAM ANDRES CARDENAS CASTAÑEDA | H174: 1010174379 | I174: WILLIAM ANDRES CARDENAS CASTAÑEDA | J174: 1010174379 | L174: https://community.secop.gov.co/Public/Tendering/OpportunityDetail/Index?noticeUID=CO1.NTC.1328764&isFromPublicArea=True&isModal=False | M174: APOYAR AL EQUIPO DE PRENSA Y COMUNICACIONES DE LA ALCALDÍA LOCAL EN LA REALIZACIÓN DE PRODUCTOS Y PIEZAS DIGITALES, IMPRESAS Y PUBLICITARIAS DE GRAN FORMATO Y DE ANIMACIÓN GRÁFICA, ASÍ COMO APOYAR LA PRODUCCIÓN Y MONTAJE DE EVENTOS | N174: INVERSIÓN | O174: 925 | P174: 32340000 | Q174: 1363 | R174: Fortalecimiento de la gestión local y de las acciones de vigilancia y control | S174: 2020-07-09 | T174: 2020-07-13 | U174: 2020-12-31 | V174: 30902666 | W174: 5.733333333 | X174: 5389999.884 | Y174: 1061 | Z174: 30902666 | AA174: YEIMY CAROLINA AGUDELO HERNANDEZ | AB174: ERIKA ANDREA RISCANEVO VIRACACHA | AC174: COMUNICACION Y PRENSA | AD174: 15-44-101229147 | AE174: 2020-07-09 | AF174: 2021-06-30 | AG174: NA | AH174: 0 | AI174: NA | AJ174: NA | AK174: NA | AL174: NA | AM174: NA | AN174: NA | AO174: NA | AP174: NA | AQ174: NA | AR174: NA | AS174: NA | AT174: NA | AU174: NA | AV174: NA | AW174: NA | AX174: NA
A175: CONTRATACION DIRECTA | B175: Contratos de prestación de servicios | C175: TERMINADO | D175: FDLK-CD-176-2020 | E175: CPS-176-2020 | F175: =VLOOKUP(E175,[1]Hoja1!D$3:E$393,2,0) -> 1 | G175: CRISTIAM ALFREDO CUBILLOS ALBARRACIN | H175: 1030582571 | I175: CRISTIAM ALFREDO CUBILLOS ALBARRACIN | J175: 1030582571 | L175: https://community.secop.gov.co/Public/Tendering/OpportunityDetail/Index?noticeUID=CO1.NTC.1328774&isFromPublicArea=True&isModal=Fals | M175: APOYAR AL EQUIPO DE PRENSA Y COMUNICACIONES DE LA ALCALDÍA LOCAL EN LA CREACIÓN, REALIZACIÓN, PRODUCCIÓN Y EDICIÓN DE VÍDEOS, ASÍ COMO EL REGISTRO, EDICIÓN Y LA PRESENTACIÓN DE FOTOGRAFÍAS DE LOS ACONTECIMIENTOS, HECHOS Y EVENTOS EXTERNOS E INTERNOS DE LA ALCALDÍA LOCAL, PARA SER UTILIZADOS COMO INSUMOS DE COMUNICACIÓN EN LOS MEDIOS, ESPECIALMENTE ESCRITOS, DIGITALES Y AUDIOVISUALES | N175: INVERSIÓN | O175: 913 | P175: 32340000 | Q175: 1363 | R175: Fortalecimiento de la gestión local y de las acciones de vigilancia y control | S175: 2020-07-09 | T175: 2020-07-13 | U175: 2020-12-31 | V175: 30902666 | W175: 5.733333333 | X175: 5389999.884 | Y175: 1062 | Z175: 30902666 | AA175: YEIMY CAROLINA AGUDELO HERNANDEZ | AB175: ERIKA ANDREA RISCANEVO VIRACACHA | AC175: COMUNICACION Y PRENSA | AD175: 33-46-101024273 | AE175: 2020-07-09 | AF175: 2021-07-10 | AG175: NA | AH175: 0 | AI175: NA | AJ175: NA | AK175: HEIMAIN TORRES ECHEVERRY // 79891787 | AL175: CRISTIANALFREDO CUBILLOS ALBARRACIN | AM175: 2020-10-27 | AN175: NA | AO175: NA | AP175: NA | AQ175: NA | AR175: NA | AS175: NA | AT175: NA | AU175: NA | AV175: NA | AW175: NA | AX175: NA
A176: CONTRATACION DIRECTA | B176: Contratos de prestación de servicios | C176: EN EJECUCION | D176: FDLK-CD-177-2020 | E176: CPS-177-2020 | F176: =VLOOKUP(E176,[1]Hoja1!D$3:E$393,2,0) -> 0.9868995633 | G176: WOLFRANG LIZANDRO PULIDO AVENDAÑO | H176: 80125822 | I176: WOLFRANG LIZANDRO PULIDO AVENDAÑO | J176: 80125822 | L176: https://community.secop.gov.co/Public/Tendering/OpportunityDetail/Index?noticeUID=CO1.NTC.1329218&isFromPublicArea=True&isModal=False | M176: PRESTAR SUS SERVICIOS PROFESIONALES COMO APOYO AL ADMINISTRADOR DE VOZ Y DATOS Y DEMÁS INFRAESTRUCTURA TECNOLÓGICA EN LA ALCADÍA LOCAL DE KENNEDY | N176: INVERSIÓN | O176: 966 | P176: 36000000 | Q176: 1363 | R176: Fortalecimiento de la gestión local y de las acciones de vigilancia y control | S176: 2020-07-10 | T176: 2020-07-14 | U176: 2021-02-28 | V176: 33600000 | W176: 5.6 | X176: 6000000 | Y176: 1078 | Z176: 33600000 | AA176: YEIMY CAROLINA AGUDELO HERNANDEZ | AB176: MARIA DEL PILAR MUÑOZ TORRES | AC176: ADMINISTRATIVO Y FINANCIERO | AD176: 17-44-101186019 | AE176: 2020-07-09 | AF176: 2021-06-30 | AG176: NA | AH176: 0 | AI176: NA | AJ176: NA | AK176: NA | AL176: NA | AM176: NA | AN176: 2021-01-01 | AO176: 2 | AP176: MESES | AQ176: 12000000 | AR176: 2021-01-01 | AS176: 2 | AT176: MESES | AU176: NA | AV176: NA | AW176: NA | AX176: NA
A177: CONTRATACION DIRECTA | B177: Contratos de prestación de servicios | C177: TERMINADO | D177: FDLK-CD-178-2020 | E177: CPS-178-2020 | F177: =VLOOKUP(E177,[1]Hoja1!D$3:E$393,2,0) -> 1 | G177: ANGELA SOFIA CASTAÑO CARDENAS | H177: 1026276255 | I177: ANGELA SOFIA CASTAÑO CARDENAS | J177: 1026276255 | L177: https://community.secop.gov.co/Public/Tendering/OpportunityDetail/Index?noticeUID=CO1.NTC.1334364&isFromPublicArea=True&isModal=False | M177: APOYAR LA GESTION ADMINISTRATIVA DE LA ALCALDIA LOCAL PARA LA IMPLEMENTACION DE PROCESOS DE VERIFICACION, SOPORTE Y ACOMPAÑAMIENTO EN EL DESARROLLO DE LAS ACTIVIDADES PROPIAS DEL FONDO DE DESARROLLO LOCAL. | N177: INVERSIÓN | O177: 953 | P177: 23.100.000 | Q177: 1363 | R177: Fortalecimiento de la gestión local y de las acciones de vigilancia y control | S177: 2020-07-13 | T177: 2020-07-16 | U177: 2020-12-31 | V177: 23100000 | W177: 6 | X177: 3850000 | Y177: 1110 | Z177: 23100000 | AA177: YEIMY CAROLINA AGUDELO HERNANDEZ | AB177: MARIA DEL PILAR MUÑOZ TORRES | AC177: ADMINISTRATIVO Y FINANCIERO | AD177: 38-47-994000106458 | AE177: 2020-07-13 | AF177: 2021-07-04 | AG177: NA | AH177: 0 | AI177: NA | AJ177: NA | AK177: NA | AL177: NA | AM177: NA | AN177: NA | AO177: NA | AP177: NA | AQ177: NA | AR177: NA | AS177: NA | AT177: NA | AU177: NA | AV177: NA | AW177: NA | AX177: NA
A178: CONTRATACION DIRECTA | B178: Contratos de prestación de servicios | C178: EN EJECUCION | D178: FDLK-CD-179-2020 | E178: CPS-179-2020 | F178: =VLOOKUP(E178,[1]Hoja1!D$3:E$393,2,0) -> 0.986784141 | G178: LUIS FELIPE PEÑA VARGAS | H178: 1030645990 | I178: LUIS FELIPE PEÑA VARGAS | J178: 1030645990 | L178: https://community.secop.gov.co/Public/Tendering/OpportunityDetail/Index?noticeUID=CO1.NTC.1334533&isFromPublicArea=True&isModal=False | M178: Prestar sus servicios profesionales a la alcaldía local de Kennedy apoyando la etapa precontractual, contractual y poscontractual del proyecto de infraestructura y espacio público tendiente a garantizar el cumplimiento del plan de desarrollo local | N178: INVERSIÓN | O178: 985 | P178: 25.200.000 | Q178: 1369 | R178: Recreación y deporte para todos | S178: 2020-07-13 | T178: 2020-07-16 | U178: 2021-02-28 | V178: 25200000 | W178: 6 | X178: 4200000 | Y178: 1091 | Z178: 25200000 | AA178: YEIMY CAROLINA AGUDELO HERNANDEZ | AB178: JOSÉ TARCICIO QUIROGA VELAZQUES | AC178: INFRAESTRUCTURA | AD178: 380-47-994000106465 | AE178: 2020-07-15 | AF178: 2021-07-13 | AG178: NA | AH178: 0 | AI178: NA | AJ178: NA | AK178: NA | AL178: NA | AM178: NA | AN178: 2021-01-01 | AO178: 2 | AP178: MESES | AQ178: 8400000 | AR178: 2021-01-01 | AS178: 2 | AT178: MESES | AU178: NA | AV178: NA | AW178: NA | AX178: NA
A179: CONTRATACION DIRECTA | B179: Contratos de prestación de servicios | C179: TERMINADO | D179: FDLK-CD-180-20202 | E179: CPS-180-2020 | F179: =VLOOKUP(E179,[1]Hoja1!D$3:E$393,2,0) -> 1 | G179: MAYRA ALEJANDRA LINDARTE PERILLA | H179: 52992039 | I179: MAYRA ALEJANDRA LINDARTE PERILLA | J179: 52992039 | L179: https://community.secop.gov.co/Public/Tendering/OpportunityDetail/Index?noticeUID=CO1.NTC.1336705&isFromPublicArea=True&isModal=False | M179: APOYAR AL (LA) ALCALDE(SA) LOCAL EN LA PROMOCIÓN, ARTICULACIÓN, ACOMPAÑAMIENTO Y SEGUIMIENTO PARA LA ATENCIÓN Y PROTECCIÓN DE LOS ANIMALES DOMÉSTICOS Y SILVESTRES DE LA LOCALIDAD. | N179: INVERSIÓN | O179: 954 | P179: 30.000.000 | Q179: 1376 | R179: Fortalecimiento de seguridad e iniciativa de convivencia en la localidad de Kennedy | S179: 2020-07-14 | T179: 2020-07-17 | U179: 2020-12-31 | V179: 30000000 | W179: 6 | X179: 5000000 | Y179: 1112 | Z179: 30000000 | AA179: YEIMY CAROLINA AGUDELO HERNANDEZ | AB179: MARIA DEL PILAR MUÑOZ TORRES | AC179: PARTICIPACION | AD179: 380-47-994000106486 | AE179: 2020-07-17 | AF179: 2021-07-03 | AG179: NA | AH179: 0 | AI179: NA | AJ179: NA | AK179: NA | AL179: NA | AM179: NA | AN179: NA | AO179: NA | AP179: NA | AQ179: NA | AR179: NA | AS179: NA | AT179: NA | AU179: NA | AV179: NA | AW179: NA | AX179: NA
A180: CONTRATACION DIRECTA | B180: Contratos de prestación de servicios | C180: EN EJECUCION | D180: FDLK-CD-181-2020 | E180: CPS-181-2020 | F180: =VLOOKUP(E180,[1]Hoja1!D$3:E$393,2,0) -> 0.9867256637 | G180: JOSE FERNANDO ROCA HOYOS | H180: 8644982 | I180: JOSE FERNANDO ROCA HOYOS | J180: 8644982 | L180: https://community.secop.gov.co/Public/Tendering/OpportunityDetail/Index?noticeUID=CO1.NTC.1337814&isFromPublicArea=True&isModal=False | M180: APOYAR LAS LABORES DE VERIFICACIÓN, SOPORTE Y SEGUIMIENTO DE ACCIONES ADMINISTRATIVAS Y PROCESOS NECESARIOS PARA LA OPORTUNA Y ADECUADA ATENCIÓN DE LAS NECESIDADES DE LA ENTIDAD, PROPIAS DEL ÁREA DE GESTIÓN DEL DESARROLLO ADMINISTRATIVO Y FINANCIERO | N180: INVERSIÓN | O180: 965 | P180: 25.200.000 | Q180: 1363 | R180: Fortalecimiento de la gestión local y de las acciones de vigilancia y control | S180: 2020-07-15 | T180: 2020-07-17 | U180: 2021-02-28 | V180: 23380000 | W180: 5.566666667 | X180: 4200000 | Y180: 1098 | Z180: 23380000 | AA180: YEIMY CAROLINA AGUDELO HERNANDEZ | AB180: MARIA DEL PILAR MUÑOZ TORRES | AC180: ADMINISTRATIVO Y FINANCIERO | AD180: 380 47 994000106496 | AE180: 2020-07-15 | AF180: 2021-07-03 | AG180: NA | AH180: 0 | AI180: NA | AJ180: NA | AK180: NA | AL180: NA | AM180: NA | AN180: 2021-01-01 | AO180: 2 | AP180: MESES | AQ180: 8400000 | AR180: 2021-01-01 | AS180: 2 | AT180: MESES | AU180: NA | AV180: NA | AW180: NA | AX180: NA
A181: CONTRATACION DIRECTA | B181: Contratos de prestación de servicios | C181: TERMINADO | D181: FDLK-CD-182-2020 | E181: CPS-182-2020 | F181: =VLOOKUP(E181,[1]Hoja1!D$3:E$393,2,0) -> 1 | G181: GLORIA STELLA ROBALLO OLMOS | H181: 46665854 | I181: GLORIA STELLA ROBALLO OLMOS | J181: 46665854 | L181: https://community.secop.gov.co/Public/Tendering/OpportunityDetail/Index?noticeUID=CO1.NTC.1340035&isFromPublicArea=True&isModal=False | M181: PRESTACIÓN DE SERVICIOS PROFESIONALES PARA APOYAR JURÍDICAMENTE A LA ALCALDÍA LOCAL DE KENNEDY-FONDO DE DESARROLLO LOCAL DE KENNEDY EN LOS ASUNTOS CONSTITUCIONALES, LEGALES Y REGLAMENTARIOS DE SU COMPETENCIA, PARTICULARMENTE LOS RELACIONADOS CON EL APOYO A LA COORDINACIÓN DE LAS ETAPAS PRECONTRACTUAL, CONTRACTUAL Y POSCONTRACTUAL DE LOS PROCESOS DE CONTRATACIÓN | N181: INVERSIÓN | O181: 952 | P181: 78000000 | Q181: 1363 | R181: Fortalecimiento de la gestión local y de las acciones de vigilancia y control | S181: 2020-07-16 | T181: 2020-07-17 | U181: 2020-12-31 | V181: 35966666 | W181: 5.533333333 | X181: 6499999.88 | Y181: 1118 | Z181: 35966666 | AA181: YEIMY CAROLINA AGUDELO HERNANDEZ | AB181: MONICA JOHANNA HERNANDEZ PERAZA | AC181: CONTRATACION | AD181: 21-44-101327441 | AE181: 2020-07-16 | AF181: 2021-06-30 | AG181: NA | AH181: 0 | AI181: NA | AJ181: NA | AK181: NA | AL181: NA | AM181: NA | AN181: NA | AO181: NA | AP181: NA | AQ181: NA | AR181: NA | AS181: NA | AT181: NA | AU181: NA | AV181: NA | AW181: NA | AX181: NA
A182: CONTRATACION DIRECTA | B182: Contratos de prestación de servicios | C182: TERMINADO | D182: FDLK-CD-183-2020 | E182: CPS-183-2020 | F182: =VLOOKUP(E182,[1]Hoja1!D$3:E$393,2,0) -> 1 | G182: WILSON MARTIN CASTELLANOS | H182: 80217520 | I182: WILSON MARTIN CASTELLANOS | J182: 80217520 | L182: https://community.secop.gov.co/Public/Tendering/OpportunityDetail/Index?noticeUID=CO1.NTC.1341291&isFromPublicArea=True&isModal=False | M182: APOYAR AL REFERENTE DE SEGURIDAD EN LA GESTION DE LOS ASUNTOS RELACIONADOS CON SEGURIDAD CIUDADANA, CONVIVENCIA Y PREVENCION DE CONFLICTIVIDADES, VIOLENCIAS Y DELITOS EN LA LOCALIDAD DE KENNEDY | N182: INVERSIÓN | O182: 948 | P182: 132288000 | Q182: 1376 | R182: Fortalecimiento de seguridad e iniciativa de convivencia en la localidad de Kennedy | S182: 2020-07-22 | T182: 2020-07-28 | U182: 2021-01-27 | V182: 22048000 | W182: 4 | X182: 5512000 | Y182: 1155 | Z182: 22048000 | AA182: YEIMY CAROLINA AGUDELO HERNANDEZ | AB182: NORMA LETICIA GUZMAN RIMOLLI | AC182: GESTION POLICIVA Y JURIDICA | AD182: 380-47-994000106570 | AE182: 2020-07-22 | AF182: 2021-05-25 | AG182: NA | AH182: 0 | AI182: NA | AJ182: NA | AK182: NA | AL182: NA | AM182: NA | AN182: 2021-01-01 | AO182: 27 | AP182: DIAS | AQ182: 4960800 | AR182: 2021-01-01 | AS182: 27 | AT182: DIAS | AU182: 2020-11-26 | AV182: 33 | AW182: DIAS | AX182: 6063200
A183: CONTRATACION DIRECTA | B183: Contratos de prestación de servicios | C183: TERMINADO | D183: FDLK-CD-184-2020 | E183: CPS-184-2020 | F183: =VLOOKUP(E183,[1]Hoja1!D$3:E$393,2,0) -> 1 | G183: JUAN CARLOS LEON | H183: 79671289 | I183: JUAN CARLOS LEON | J183: 79671289 | L183: https://community.secop.gov.co/Public/Tendering/OpportunityDetail/Index?noticeUID=CO1.NTC.1341479&isFromPublicArea=True&isModal=False | M183: PRESTAR SUS SERVICIOS PROFESIONALES ESPECIALIZADOS PARA APOYAR LA FORMULACION, GESTION Y SEGUIMIENTO DE ACTIVIDADES ENFOCADAS A LA GESTION AMBIENTAL EXTERNA, ENCAMINADA A LA MITIGACION DE LOS DIFERENTES IMPACTOS AMBIENTALES Y LA CONSERVACION DE LOS RECURSOS NATURALES EN LA LOCALIDAD DE KENNEDY | N183: INVERSIÓN | O183: 958 | P183: 33364000 | Q183: 1363 | R183: Fortalecimiento de la gestión local y de las acciones de vigilancia y control | S183: 2020-07-21 | T183: 2020-07-23 | U183: 2020-12-31 | V183: 33364000 | W183: 4 | X183: 8341000 | Y183: 1143 | Z183: 33364000 | AA183: YEIMY CAROLINA AGUDELO HERNANDEZ | AB183: NORMA LETICIA GUZMAN RIMOLLI | AC183: GESTION POLICIVA Y JURIDICA | AD183: 380-47-994000106551 | AE183: 2020-07-22 | AF183: 2021-05-25 | AG183: NA | AH183: 0 | AI183: NA | AJ183: NA | AK183: NA | AL183: NA | AM183: NA | AN183: 2020-11-22 | AO183: 39 | AP183: DIAS | AQ183: 10565267 | AR183: 2020-11-22 | AS183: 39 | AT183: DIAS | AU183: NA | AV183: NA | AW183: NA | AX183: NA
A184: CONTRATACION DIRECTA | B184: Contratos de prestación de servicios | C184: TERMINADO | D184: FDLK-CD-185-2020 | E184: CPS-185-2020 | F184: =VLOOKUP(E184,[1]Hoja1!D$3:E$393,2,0) -> 1 | G184: LAURA JOHANA CAICEDO BRIÑEZ | H184: 1012358272 | I184: LAURA JOHANA CAICEDO BRIÑEZ | J184: 1012358272 | L184: https://community.secop.gov.co/Public/Tendering/OpportunityDetail/Index?noticeUID=CO1.NTC.1342721&isFromPublicArea=True&isModal=False | M184: PRESTAR LOS SERVICIOS PROFESIONALES PARA LA OPERACIÓN, PRESTACIÓN, SEGUIMIENTO Y CUMPLIMIENTO DE LOS PROCEDIMIENTOS ADMINISTRATIVOS. OPERATIVOS Y PROGRAMÁTICOS DEL SERVICIO APOYO ECONÓMICO TIPO C, QUE CONTRIBUYAN A LA GARANTÍA DE LOS DERECHOS DE LA POBLACIÓN MAYOR EN EL MARCO DE LA POLÍTICA PÚBLICA SOCIAL PARA EL ENVEJECIMIENTO Y LA VEJEZ EN EL DISTRITO CAPITAL A CARGO DE LA ALCALDÍA LOCAL DE KENNEDY | N184: INVERSIÓN | O184: 851 | P184: 33632000 | Q184: 1378 | R184: Igualdad y autonomía para una Kennedy incluyente | S184: 2020-07-17 | T184: 2020-07-27 | U184: 2020-12-31 | V184: 33632000 | W184: 8 | X184: 4204000 | Y184: 1140 | Z184: 33632000 | AA184: YEIMY CAROLINA AGUDELO HERNANDEZ | AB184: RICARDO RODRIGUEZ GARCIA | AC184: PLANEACION | AD184: 15-46-101016685 | AE184: 2020-07-17 | AF184: 2021-07-01 | AG184: NA | AH184: 0 | AI184: NA | AJ184: NA | AK184: NORMA CONSTANZA GRANADA SABOGAL // 51.808.165 | AL184: LAURA JOHANA CAICEDO BRIÑEZ // 1012358272 | AM184: 2020-12-01 | AN184: NA | AO184: NA | AP184: NA | AQ184: NA | AR184: NA | AS184: NA | AT184: NA | AU184: NA | AV184: NA | AW184: NA | AX184: NA
A185: CONTRATACION DIRECTA | B185: Contratos de prestación de servicios | C185: EN EJECUCION | D185: FDLK-CD-186-2020 | E185: CPS-186-2020 | F185: =VLOOKUP(E185,[1]Hoja1!D$3:E$393,2,0) -> 0.9863013699 | G185: YULY ANDREA GORDILLO LOMBANA | H185: 1032392924 | I185: YULY ANDREA GORDILLO LOMBANA | J185: 1032392924 | L185: https://community.secop.gov.co/Public/Tendering/OpportunityDetail/Index?noticeUID=CO1.NTC.1342678&isFromPublicArea=True&isModal=False | M185: PRESTAR SERVICIOS PROFESIONALES ESPECIALIZADOS A LA ALCALDÍA LOCAL DE KENNEDY, EN LOS ASUNTOS RELACIONADOS CON LA ATENCIÓN, ELABORACIÓN Y REVISIÓN DE LOS DIFERENTES DOCUMENTOS QUE SE REQUIERAN DENTRO DE LA GESTIÓN ADMINISTRATIVA Y PRESUPUESTAL, ASOCIADOS CON EL DESARROLLO DE LOS PROCESOS DE APOYO Y ESTRATÉGICOS ESTANDARIZADOS DENTRO DEL MAPA DE PROCESOS | N185: INVERSIÓN | O185: 842 | P185: 68000000 | Q185: 1363 | R185: Fortalecimiento de la gestión local y de las acciones de vigilancia y control | S185: 2020-07-17 | T185: 2020-07-24 | U185: 2021-02-28 | V185: 46750000 | W185: 5.5 | X185: 8500000 | Y185: 1135 | Z185: 46750000 | AA185: YEIMY CAROLINA AGUDELO HERNANDEZ | AB185: DIANA MARCELA DELGADO JEREZ | AC185: DESPACHO | AD185: 21-44-101327754 | AE185: 2020-07-17 | AF185: 2021-05-05 | AG185: NA | AH185: 0 | AI185: NA | AJ185: NA | AK185: NA | AL185: NA | AM185: NA | AN185: 2021-01-01 | AO185: 2 | AP185: MESES | AQ185: 17000000 | AR185: 2021-01-01 | AS185: 2 | AT185: MESES | AU185: NA | AV185: NA | AW185: NA | AX185: NA
A186: CONTRATACION DIRECTA | B186: Contratos de prestación de servicios | C186: TERMINADO | D186: FDLK-CD-187-2020 | E186: CPS-187-2020 | F186: =VLOOKUP(E186,[1]Hoja1!D$3:E$393,2,0) -> 1 | G186: LUZBY DAHIANNA ROMERO MANCERA | H186: 53155411 | I186: LUZBY DAHIANNA ROMERO MANCERA | J186: 53155411 | L186: https://community.secop.gov.co/Public/Tendering/OpportunityDetail/Index?noticeUID=CO1.NTC.1343026&isFromPublicArea=True&isModal=False | M186: APOYAR JURI´DICAMENTE LA EJECUCIO´N DE LAS ACCIONES REQUERIDAS PARA LA DEPURACIO´N DE LAS ACTUACIONES ADMINISTRATIVAS QUE CURSAN EN LA ALCALDI´A LOCAL | N186: INVERSIÓN | O186: 941 | P186: 88192000 | Q186: 1363 | R186: Fortalecimiento de la gestión local y de las acciones de vigilancia y control | S186: 2020-07-17 | T186: 2020-07-22 | U186: 2021-01-21 | V186: 22048000 | W186: 4 | X186: 5512000 | Y186: 1137 | Z186: 22048000 | AA186: YEIMY CAROLINA AGUDELO HERNANDEZ | AB186: NORMA LETICIA GUZMAN RIMOLLI | AC186: GESTION POLICIVA Y JURIDICA | AD186: 3.8047994e+16 | AE186: 2020-07-17 | AF186: 2021-05-23 | AG186: NA | AH186: 0 | AI186: NA | AJ186: NA | AK186: NA | AL186: NA | AM186: NA | AN186: 2021-01-01 | AO186: 21 | AP186: DIAS | AQ186: 3858400 | AR186: 2021-01-01 | AS186: 21 | AT186: DIAS | AU186: 2020-11-19 | AV186: 40 | AW186: DIAS | AX186: 7165600
A187: CONTRATACION DIRECTA | B187: Contratos de prestación de servicios | C187: TERMINADO | D187: FDLK-CD-188-2020 | E187: CPS-188-2020 | F187: =VLOOKUP(E187,[1]Hoja1!D$3:E$393,2,0) -> 1 | G187: ANA MARIA PACHECO | H187: 30337197 | I187: ANA MARIA PACHECO | J187: 30337197 | L187: https://community.secop.gov.co/Public/Tendering/OpportunityDetail/Index?noticeUID=CO1.NTC.1343231&isFromPublicArea=True&isModal=False | M187: APOYAR JURI´DICAMENTE LA EJECUCIO´N DE LAS ACCIONES REQUERIDAS PARA LA DEPURACIO´N DE LAS ACTUACIONES ADMINISTRATIVAS QUE CURSAN EN LA ALCALDI´A LOCAL | N187: INVERSIÓN | O187: 941 | P187: 88192000 | Q187: 1363 | R187: Fortalecimiento de la gestión local y de las acciones de vigilancia y control | S187: 2020-07-17 | T187: 2020-07-22 | U187: 2021-01-21 | V187: 22048000 | W187: 4 | X187: 5512000 | Y187: 1138 | Z187: 22048000 | AA187: YEIMY CAROLINA AGUDELO HERNANDEZ | AB187: NORMA LETICIA GUZMAN RIMOLLI | AC187: GESTION POLICIVA Y JURIDICA | AD187: 380-47-994000106539 | AE187: 2020-07-17 | AF187: 2021-05-23 | AG187: NA | AH187: 0 | AI187: NA | AJ187: NA | AK187: NA | AL187: NA | AM187: NA | AN187: 2021-01-01 | AO187: 21 | AP187: DIAS | AQ187: 3858400 | AR187: 2021-01-01 | AS187: 21 | AT187: DIAS | AU187: 2020-11-19 | AV187: 39 | AW187: DIAS | AX187: 7165600
A188: CONTRATACION DIRECTA | B188: Contratos de prestación de servicios | C188: TERMINADO | D188: FDLK-CD-189-2020 | E188: CPS-189-2020 | F188: =VLOOKUP(E188,[1]Hoja1!D$3:E$393,2,0) -> 1 | G188: LILIANA CEPEDA PIRAGAUTA | H188: 52076367 | I188: LILIANA CEPEDA PIRAGAUTA | J188: 52076367 | L188: https://community.secop.gov.co/Public/Tendering/OpportunityDetail/Index?noticeUID=CO1.NTC.1343516&isFromPublicArea=True&isModal=False | M188: APOYAR JURI´DICAMENTE LA EJECUCIO´N DE LAS ACCIONES REQUERIDAS PARA LA DEPURACIO´N DE LAS ACTUACIONES ADMINISTRATIVAS QUE CURSAN EN LA ALCALDI´A LOCAL | N188: INVERSIÓN | O188: 941 | P188: 88192000 | Q188: 1363 | R188: Fortalecimiento de la gestión local y de las acciones de vigilancia y control | S188: 2020-07-17 | T188: 2020-07-22 | U188: 2020-11-21 | V188: 22048000 | W188: 4 | X188: 5512000 | Y188: 1139 | Z188: 22048000 | AA188: YEIMY CAROLINA AGUDELO HERNANDEZ | AB188: NORMA LETICIA GUZMAN RIMOLLI | AC188: GESTION POLICIVA Y JURIDICA | AD188: 380-47-994000106537 | AE188: 2020-07-17 | AF188: 2021-05-23 | AG188: NA | AH188: 0 | AI188: NA | AJ188: NA | AK188: NA | AL188: NA | AM188: NA | AN188: NA | AO188: NA | AP188: NA | AQ188: NA | AR188: NA | AS188: NA | AT188: NA | AU188: NA | AV188: NA | AW188: NA | AX188: NA
A189: CONTRATACION DIRECTA | B189: Contratos de prestación de servicios | C189: TERMINADO | D189: FDLK-CD-190-2020 | E189: CPS-190-2020 | F189: =VLOOKUP(E189,[1]Hoja1!D$3:E$393,2,0) -> 1 | G189: JULIO MARIO MARTINEZ OSORIO | H189: 79778835 | I189: JULIO MARIO MARTINEZ OSORIO | J189: 79778835 | L189: https://community.secop.gov.co/Public/Tendering/OpportunityDetail/Index?noticeUID=CO1.NTC.1347594&isFromPublicArea=True&isModal=False | M189: PRESTACIÓN DE SERVICIOS PROFESIONALES ESPECIALIZADOS A LA ALCALDÍA LOCAL DE KENNEDY, PARA COORDINAR LA FORMULACIÓN Y EJECUCIÓN DE LOS PROCESOS RECREODEPORTIVOS, ARTÍSTICOS Y CULTURALES, TENDIENTE A GARANTIZAR EL CUMPLIMIENTO DEL PLAN DE DESARROLLO LOCAL | N189: INVERSIÓN | O189: 955 | P189: 51000000 | Q189: 1362 | R189: Promoción y desarrollo local de la cultura, la recreación y el deporte | S189: 2020-07-22 | T189: 2020-07-24 | U189: 2020-12-31 | V189: 51000000 | W189: 6 | X189: 8500000 | Y189: 1141 | Z189: 51000000 | AA189: YEIMY CAROLINA AGUDELO HERNANDEZ | AB189: MARIA DEL PILAR MUJICA SANDOVAL | AC189: PLANEACION | AD189: 11-44-101154568 | AE189: 2020-07-22 | AF189: 2021-07-05 | AG189: NA | AH189: 0 | AI189: NA | AJ189: NA | AK189: NA | AL189: NA | AM189: NA | AN189: NA | AO189: NA | AP189: NA | AQ189: NA | AR189: NA | AS189: NA | AT189: NA | AU189: NA | AV189: NA | AW189: NA | AX189: NA
A190: CONTRATACION DIRECTA | B190: Contratos de prestación de servicios | C190: TERMINADO | D190: FDLK-CD-191-2020 | E190: CPS-191-2020 | F190: =VLOOKUP(E190,[1]Hoja1!D$3:E$393,2,0) -> 1 | G190: JOHN PAULINO CAMPOS MOLINA | H190: 80137836 | I190: JOHN PAULINO CAMPOS MOLINA | J190: 80137836 | L190: https://community.secop.gov.co/Public/Tendering/OpportunityDetail/Index?noticeUID=CO1.NTC.1347896&isFromPublicArea=True&isModal=False | M190: PRESTACIÓN DE SERVICIOS DE APOYO TÉCNICO Y ADMINISTRATIVO EN LA DESCON-GESTIÓN DE TRÁMITES TENDIENTE A GARANTIZAR EL CUMPLIMIENTO DEL PLAN DE DESARROLLO LOCAL. | N190: INVERSIÓN | O190: 957 | P190: 22800000 | Q190: 1380 | R190: Mi casa me pertenece | S190: 2020-07-21 | T190: 2020-07-23 | U190: 2020-12-31 | V190: 22800000 | W190: 6 | X190: 3800000 | Y190: 1144 | Z190: 22800000 | AA190: YEIMY CAROLINA AGUDELO HERNANDEZ | AB190: YULLIET PATRICIA LLERENA AVENDAÑO | AC190: PLANEACION | AD190: 38047994000106560 | AE190: 2020-07-22 | AF190: 2021-07-03 | AG190: NA | AH190: 0 | AI190: NA | AJ190: NA | AK190: NA | AL190: NA | AM190: NA | AN190: NA | AO190: NA | AP190: NA | AQ190: NA | AR190: NA | AS190: NA | AT190: NA | AU190: NA | AV190: NA | AW190: NA | AX190: NA
A191: CONTRATACION DIRECTA | B191: Contratos de prestación de servicios | C191: EN EJECUCION | D191: FDLK-CD-193-2020 | E191: CPS-193-2020 | F191: =VLOOKUP(E191,[1]Hoja1!D$3:E$393,2,0) -> 0.9861111111 | G191: GLORIA ESPERANZA PIRAJON TEJEDOR | H191: 52211430 | I191: GLORIA ESPERANZA PIRAJON TEJEDOR | J191: 52211430 | L191: https://community.secop.gov.co/Public/Tendering/OpportunityDetail/Index?noticeUID=CO1.NTC.1348587&isFromPublicArea=True&isModal=False | M191: PRESTAR SUS SERVICIOS PROFESIONALES PARA APOYAR TECNICAMENTE A LOS RESPONSABLES E INTEGRANTES DE LOS PROCESOS EN LA IMPLEMENTACION DE HERRAMIENTAS DE GESTIÓN SIGUIENDO LOS LINEAMIENTOS METODOLOGICOS ESTABLECIDOS POR LA OFICINA ASESORA DE PLANEACION DE LA SECRETARIA DISTRITAL DE GOBIERNO | N191: INVERSIÓN | O191: 964 | P191: 31200000 | Q191: 1363 | R191: Fortalecimiento de la gestión local y de las acciones de vigilancia y control | S191: 2020-07-22 | T191: 2020-07-27 | U191: 2021-02-28 | V191: 31200000 | W191: 6 | X191: 5200000 | Y191: 1145 | Z191: 31200000 | AA191: YEIMY CAROLINA AGUDELO HERNANDEZ | AB191: MARIA DEL PILAR MUÑOZ TORRES | AC191: ADMINISTRATIVO Y FINANCIERO | AD191: 17-44-101186176 | AE191: 2020-07-23 | AF191: 2021-06-30 | AG191: NA | AH191: 0 | AI191: NA | AJ191: NA | AK191: NA | AL191: NA | AM191: NA | AN191: 2021-01-01 | AO191: 2 | AP191: MESES | AQ191: 10400000 | AR191: 2021-01-01 | AS191: 2 | AT191: MESES | AU191: NA | AV191: NA | AW191: NA | AX191: NA
A192: CONTRATACION DIRECTA | B192: Contratos de prestación de servicios | C192: TERMINADO | D192: FDLK-CD-194-2020 | E192: CPS-194-2020 | F192: =VLOOKUP(E192,[1]Hoja1!D$3:E$393,2,0) -> 1 | G192: RICHARD EDUARDO VITERI AMADOR | H192: 79318337 | I192: RICHARD EDUARDO VITERI AMADOR | J192: 79318337 | L192: https://community.secop.gov.co/Public/Tendering/OpportunityDetail/Index?noticeUID=CO1.NTC.1349036&isFromPublicArea=True&isModal=False | M192: APOYAR TÉCNICAMENTE LAS DISTINTAS ETAPAS DE LOS PROCESOS DE COMPETENCIA DE LA ALCALDÍA LOCAL PARA LA DEPURACIÓN DE ACTUACIONES ADMINISTRATIVAS | N192: INVERSIÓN | O192: 946 | P192: 52560000 | Q192: 1363 | R192: Fortalecimiento de la gestión local y de las acciones de vigilancia y control | S192: 2020-07-22 | T192: 2020-07-27 | U192: 2020-12-31 | V192: 26280000 | W192: 4 | X192: 6570000 | Y192: 1147 | Z192: 26280000 | AA192: YEIMY CAROLINA AGUDELO HERNANDEZ | AB192: NORMA LETICIA GUZMAN RIMOLLI | AC192: GESTION POLICIVA Y JURIDICA | AD192: 2662067-0 | AE192: 2020-07-23 | AF192: 2021-07-23 | AG192: NA | AH192: 0 | AI192: NA | AJ192: NA | AK192: NA | AL192: NA | AM192: NA | AN192: 2020-11-25 | AO192: 35 | AP192: DIAS | AQ192: 7446000 | AR192: 2020-11-25 | AS192: 35 | AT192: DIAS | AU192: NA | AV192: NA | AW192: NA | AX192: NA
A193: CONTRATACION DIRECTA | B193: Contratos de prestación de servicios | C193: TERMINADO | D193: FDLK-CD-195-2020 | E193: CPS-195-2020 | F193: =VLOOKUP(E193,[1]Hoja1!D$3:E$393,2,0) -> 1 | G193: NANCY ACOSTA TORRES | H193: 52035562 | I193: NANCY ACOSTA TORRES | J193: 52035562 | L193: https://community.secop.gov.co/Public/Tendering/OpportunityDetail/Index?noticeUID=CO1.NTC.1354067&isFromPublicArea=True&isModal=False | M193: PRESTAR SERVICIO DE APOYO A LA GESTION A TRAVES DE LA ATENCION AL PUBLICO DESDE LA RECEPCION DE LAS INSPECCIONES DE POLICIA DE LA ALCALDIA LOCAL DE KENNEDY | N193: INVERSIÓN | O193: 971 | P193: 9988000 | Q193: 1363 | R193: Fortalecimiento de la gestión local y de las acciones de vigilancia y control | S193: 2020-07-24 | T193: 2020-07-28 | U193: 2020-12-31 | V193: 9988000 | W193: 4 | X193: 2497000 | Y193: 1163 | Z193: 9988000 | AA193: YEIMY CAROLINA AGUDELO HERNANDEZ | AB193: GUSTAVO VANEGAS RUIZ | AC193: Inspecciones | AD193: 380 47 994000106647 | AE193: 2020-07-22 | AF193: 2021-05-30 | AG193: NA | AH193: 0 | AI193: NA | AJ193: NA | AK193: NA | AL193: NA | AM193: NA | AN193: 2020-11-28 | AO193: 33 | AP193: DIAS | AQ193: 2746700 | AR193: 2020-11-28 | AS193: 33 | AT193: DIAS | AU193: NA | AV193: NA | AW193: NA | AX193: NA
A194: CONTRATACION DIRECTA | B194: Contratos de prestación de servicios | C194: TERMINADO | D194: FDLK-CD-196-2020 | E194: CPS-196-2020 | F194: =VLOOKUP(E194,[1]Hoja1!D$3:E$393,2,0) -> 1 | G194: INGRID PAOLA CASTILLO MEJIA | H194: 53159729 | I194: INGRID PAOLA CASTILLO MEJIA | J194: 53159729 | L194: https://community.secop.gov.co/Public/Tendering/OpportunityDetail/Index?noticeUID=CO1.NTC.1350338&isFromPublicArea=True&isModal=False | M194: PRESTAR LOS SERVICIOS PROFESIONALES DE ABOGADO, PARA APOYAR EL TRÁMITE DE LOS ASUNTOS DEL ÁREA DE GESTIÓN POLICIVA JURÍDICA Y MANEJO DE SI ACTÚA, SISTEMA DE GESTIÓN DOCUMENTAL, VUC, MAPAS BOGOTÁ. | N194: INVERSIÓN | O194: 960 | P194: 44096000 | Q194: 1363 | R194: Fortalecimiento de la gestión local y de las acciones de vigilancia y control | S194: 2020-07-22 | T194: 2020-07-27 | U194: 2021-01-26 | V194: 22048000 | W194: 4 | X194: 5512000 | Y194: 1157 | Z194: 22048000 | AA194: YEIMY CAROLINA AGUDELO HERNANDEZ | AB194: NORMA LETICIA GUZMAN RIMOLLI | AC194: GESTION POLICIVA Y JURIDICA | AD194: 380- 47- 994000106582 | AE194: 2020-07-22 | AF194: 2021-05-26 | AG194: NA | AH194: 0 | AI194: NA | AJ194: NA | AK194: NA | AL194: NA | AM194: NA | AN194: 2020-11-27 | AO194: 26 | AP194: DIAS | AQ194: 4777067 | AR194: 2020-11-27 | AS194: 26 | AT194: DIAS | AU194: 2020-11-26 | AV194: 35 | AW194: DIAS | AX194: 6246933
A195: CONTRATACION DIRECTA | B195: Contratos de prestación de servicios | C195: TERMINADO | D195: FDLK-CD-197-2020 | E195: CPS-197-2020 | F195: =VLOOKUP(E195,[1]Hoja1!D$3:E$393,2,0) -> 1 | G195: LEYDY YOHANNA AMORTEGUI PEDRAZA | H195: 20384661 | I195: LEYDY YOHANNA AMORTEGUI PEDRAZA | J195: 20384661 | L195: https://community.secop.gov.co/Public/Tendering/OpportunityDetail/Index?noticeUID=CO1.NTC.1350160&isFromPublicArea=True&isModal=False | M195: PRESTAR LOS SERVICIOS PROFESIONALES DE ABOGADO, PARA APOYAR EL TRÁMITE DE LOS ASUNTOS DEL ÁREA DE GESTIÓN POLICIVA JURÍDICA Y MANEJO DE SI ACTÚA, SISTEMA DE GESTIÓN DOCUMENTAL, VUC, MAPAS BOGOTÁ. | N195: INVERSIÓN | O195: 960 | P195: 44096000 | Q195: 1363 | R195: Fortalecimiento de la gestión local y de las acciones de vigilancia y control | S195: 2020-07-22 | T195: 2020-07-27 | U195: 2021-01-26 | V195: 22048000 | W195: 4 | X195: 5512000 | Y195: 1158 | Z195: 22048000 | AA195: YEIMY CAROLINA AGUDELO HERNANDEZ | AB195: NORMA LETICIA GUZMAN RIMOLLI | AC195: GESTION POLICIVA Y JURIDICA | AD195: 380 - 47 - 99000106574 | AE195: 2020-07-22 | AF195: 2021-05-26 | AG195: NA | AH195: 0 | AI195: NA | AJ195: NA | AK195: NA | AL195: NA | AM195: NA | AN195: 2020-11-27 | AO195: 34 | AP195: DIAS | AQ195: 6246933 | AR195: 2020-11-27 | AS195: 34 | AT195: DIAS | AU195: 2020-11-26 | AV195: 34 | AW195: DIAS | AX195: 6246933
A196: CONTRATACION DIRECTA | B196: Contratos de prestación de servicios | C196: EN EJECUCION | D196: FDLK-CD-198-2020 | E196: CPS-198-2020 | F196: =VLOOKUP(E196,[1]Hoja1!D$3:E$393,2,0) -> 0.9863636364 | G196: KATERIN LIZETH LARA ROJAS | H196: 1018460586 | I196: KATERIN LIZETH LARA ROJAS | J196: 1018460586 | L196: https://community.secop.gov.co/Public/Tendering/OpportunityDetail/Index?noticeUID=CO1.NTC.1350703&isFromPublicArea=True&isModal=False | M196: APOYAR EL CUBRIMIENTO DE LAS ACTIVIDADES, CRONOGRAMAS Y AGENDA DE LA ALCALDÍA LOCAL A NIVEL INTERNO Y EXTERNO, ASÍ COMO LA GENERACIÓN DE CONTENIDOS PERIODÍSTICOS | N196: INVERSIÓN | O196: 968 | P196: 32400000 | Q196: 1363 | R196: Fortalecimiento de la gestión local y de las acciones de vigilancia y control | S196: 2020-07-22 | T196: 2020-07-23 | U196: 2021-02-28 | V196: 28746666 | W196: 5.333333333 | X196: 5389999.875 | Y196: 1148 | Z196: 28746666 | AA196: YEIMY CAROLINA AGUDELO HERNANDEZ | AB196: ERIKA ANDREA RISCANEVO VIRACACHA | AC196: COMUNICACION Y PRENSA | AD196: 15-44-101229631 | AE196: 2020-07-22 | AF196: 2021-12-31 | AG196: NA | AH196: 0 | AI196: NA | AJ196: NA | AK196: NA | AL196: NA | AM196: NA | AN196: 2021-01-01 | AO196: 2 | AP196: MESES | AQ196: 10780000 | AR196: 2021-01-01 | AS196: 2 | AT196: MESES | AU196: NA | AV196: NA | AW196: NA | AX196: NA
A197: CONTRATACION DIRECTA | B197: Contratos de prestación de servicios | C197: EN EJECUCION | D197: FDLK-CD-199-2020 | E197: CPS-199-2020 | F197: =VLOOKUP(E197,[1]Hoja1!D$3:E$393,2,0) -> 0.9863013699 | G197: MIGUEL ANGEL GARCÍA MURILLO | H197: 1026284755 | I197: MIGUEL ANGEL GARCÍA MURILLO | J197: 1026284755 | L197: https://community.secop.gov.co/Public/Tendering/OpportunityDetail/Index?noticeUID=CO1.NTC.1350451&isFromPublicArea=True&isModal=False | M197: PRESTAR SUS SERVICIOS PROFESIONALES PARA APOYAR A LOS PROYECTOS RELACIONADOS CON TEMAS TECNOLÓGICOS QUE SE DESARROLLEN LA ALCALDÍA LOCAL DE KENNEDY | N197: INVERSIÓN | O197: 970 | P197: 32400000 | Q197: 1363 | R197: Fortalecimiento de la gestión local y de las acciones de vigilancia y control | S197: 2020-07-23 | T197: 2020-07-24 | U197: 2021-02-28 | V197: 28620000 | W197: 5.3 | X197: 5400000 | Y197: 1149 | Z197: 28620000 | AA197: YEIMY CAROLINA AGUDELO HERNANDEZ | AB197: WOLFRANG LIZANDRO PULIDO AVENDAÑO | AC197: ADMINISTRATIVO Y FINANCIERO | AD197: 21-44-101327899 | AE197: 2020-07-22 | AF197: 2021-07-05 | AG197: NA | AH197: 0 | AI197: NA | AJ197: NA | AK197: NA | AL197: NA | AM197: NA | AN197: 2021-01-01 | AO197: 2 | AP197: MESES | AQ197: 10800000 | AR197: 2021-01-01 | AS197: 2 | AT197: MESES | AU197: NA | AV197: NA | AW197: NA | AX197: NA
A198: CONTRATACION DIRECTA | B198: Contratos de prestación de servicios | C198: EN EJECUCION | D198: FDLK-CD-200-2020 | E198: CPS-200-2020 | F198: =VLOOKUP(E198,[1]Hoja1!D$3:E$393,2,0) -> 0.9860465116 | G198: RICARDO RODRÍGUEZ GARCÍA | H198: 79508103 | I198: RICARDO RODRÍGUEZ GARCÍA | J198: 79508103 | L198: https://community.secop.gov.co/Public/Tendering/OpportunityDetail/Index?noticeUID=CO1.NTC.1350400&isFromPublicArea=True&isModal=False | M198: PRESTACIÓN DE SERVICIOS PROFESIONALES PARA LIDERAR Y GARANTIZAR LA IMPLEMENTACIÓN Y SEGUIMIENTO DE LOS PROCESOS Y PROCEDIMIENTOS DEL SERVICIO SOCIAL | N198: INVERSIÓN | O198: 951 | P198: 39000000 | Q198: 1378 | R198: Igualdad y autonomía para una Kennedy incluyente | S198: 2020-07-22 | T198: 2020-07-28 | U198: 2021-02-28 | V198: 34233333 | W198: 5.266666667 | X198: 6499999.937 | Y198: 1150 | Z198: 34233333 | AA198: YEIMY CAROLINA AGUDELO HERNANDEZ | AB198: MARIA DEL PILAR MUJICA SANDOVAL | AC198: PLANEACION | AD198: 36-44-101047695 | AE198: 2020-07-22 | AF198: 2021-06-30 | AG198: NA | AH198: 0 | AI198: NA | AJ198: NA | AK198: NA | AL198: NA | AM198: NA | AN198: 2021-01-01 | AO198: 2 | AP198: MESES | AQ198: 13000000 | AR198: 2021-01-01 | AS198: 2 | AT198: MESES | AU198: NA | AV198: NA | AW198: NA | AX198: NA
A199: CONTRATACION DIRECTA | B199: Contratos de prestación de servicios | C199: TERMINADO | D199: FDLK-CD-201-2020 | E199: CPS-201-2020 | F199: =VLOOKUP(E199,[1]Hoja1!D$3:E$393,2,0) -> 1 | G199: JORGE ANDRES BOHORQUEZ CANIZALES | H199: 80.773.423 | I199: JORGE ANDRES BOHORQUEZ CANIZALES | J199: 80.773.423 | L199: https://community.secop.gov.co/Public/Tendering/OpportunityDetail/Index?noticeUID=CO1.NTC.1351419&isFromPublicArea=True&isModal=False | M199: PRESTAR SUS SERVICIOS PROFESIONALES ESPECIALIZADOS PARA APOYAR LA COORDINACIÓN DE LA CASA DEL CONSUMIDOR DE LA ALCALDÍA LOCAL DE KENNEDY | N199: INVERSIÓN | O199: 936 | P199: 42000000 | Q199: 1363 | R199: Fortalecimiento de la gestión local y de las acciones de vigilancia y control | S199: 2020-07-22 | T199: 2020-07-29 | U199: 2020-12-31 | V199: 36866667 | W199: 5.233333333 | X199: 7044586.051 | Y199: 1146 | Z199: 36866667 | AA199: YEIMY CAROLINA AGUDELO HERNANDEZ | AB199: JULIAN ADOLFO RAMIREZ BEDOYA | AC199: CASA DEL CONSUMIDOR | AD199: 63-46-101001747 | AE199: 2020-07-23 | AF199: 2022-01-31 | AG199: NA | AH199: 0 | AI199: NA | AJ199: NA | AK199: NA | AL199: NA | AM199: NA | AN199: NA | AO199: NA | AP199: NA | AQ199: NA | AR199: NA | AS199: NA | AT199: NA | AU199: NA | AV199: NA | AW199: NA | AX199: NA
A200: CONTRATACION DIRECTA | B200: Contratos de prestación de servicios | C200: TERMINADO | D200: FDLK-CD-202-2020 | E200: CPS-202-2020 | F200: =VLOOKUP(E200,[1]Hoja1!D$3:E$393,2,0) -> 1 | G200: DIANA CAROLINA MARTINEZ JIMENEZ | H200: 53167271 | I200: DIANA CAROLINA MARTINEZ JIMENEZ | J200: 53167271 | L200: https://community.secop.gov.co/Public/Tendering/OpportunityDetail/Index?noticeUID=CO1.NTC.1352131&isFromPublicArea=True&isModal=False | M200: APOYAR JURÍDICAMENTE LA EJECUCIÓN DE LAS ACCIONES REQUERIDAS PARA LA DEPURACIÓN DE LAS ACTUACIONES ADMINISTRATIVAS QUE CURSAN EN LA ALCALDÍA LOCAL | N200: INVERSIÓN | O200: 941 | P200: 88192000 | Q200: 1363 | R200: Fortalecimiento de la gestión local y de las acciones de vigilancia y control | S200: 2020-07-23 | T200: 2020-07-28 | U200: 2020-12-31 | V200: 22048000 | W200: 4 | X200: 5512000 | Y200: 1154 | Z200: 22048000 | AA200: YEIMY CAROLINA AGUDELO HERNANDEZ | AB200: NORMA LETICIA GUZMAN RIMOLLI | AC200: GESTION POLICIVA Y JURIDICA | AD200: NB-100134125 | AE200: 2020-07-23 | AF200: 2021-05-31 | AG200: NA | AH200: 0 | AI200: NA | AJ200: NA | AK200: NA | AL200: NA | AM200: NA | AN200: 2020-11-26 | AO200: 34 | AP200: DIAS | AQ200: 6063200 | AR200: 2020-11-26 | AS200: 34 | AT200: DIAS | AU200: NA | AV200: NA | AW200: NA | AX200: NA
A201: CONTRATACION DIRECTA | B201: Contratos de prestación de servicios | C201: TERMINADO | D201: FDLK-CD-203-2020 | E201: CPS-203-2020 | F201: =VLOOKUP(E201,[1]Hoja1!D$3:E$393,2,0) -> 1 | G201: NESTOR FABIAN BAUTISTA VEGA | H201: 79837594 | I201: NESTOR FABIAN BAUTISTA VEGA | J201: 79837594 | L201: https://community.secop.gov.co/Public/Tendering/OpportunityDetail/Index?noticeUID=CO1.NTC.1352348&isFromPublicArea=True&isModal=False | M201: PRESTAR LOS SERVICIOS PROFESIONALES ESPECIALIZADOS PARA APOYAR TÉCNICAMENTE LAS DISTINTAS ETAPAS DE LOS PROCESOS QUE SE DERIVEN DEL PROYECTO BOSA-TINTAL-ALSACIA-CONSTITUCIÓN (AVENIDA GUAYACANES) Y AV.68. | N201: INVERSIÓN | O201: 959 | P201: 62400000 | Q201: 1363 | R201: Fortalecimiento de la gestión local y de las acciones de vigilancia y control | S201: 2020-07-23 | T201: 2020-07-27 | U201: 2020-12-31 | V201: 31200000 | W201: 4 | X201: 7800000 | Y201: 1159 | Z201: 31200000 | AA201: YEIMY CAROLINA AGUDELO HERNANDEZ | AB201: NORMA LETICIA GUZMAN RIMOLLI | AC201: GESTION POLICIVA Y JURIDICA | AD201: 3.8047994e+16 | AE201: 2020-07-23 | AF201: 2021-05-30 | AG201: NA | AH201: 0 | AI201: NA | AJ201: NA | AK201: NA | AL201: NA | AM201: NA | AN201: 2020-11-26 | AO201: 35 | AP201: DIAS | AQ201: 8840000 | AR201: 2020-11-26 | AS201: 35 | AT201: DIAS | AU201: NA | AV201: NA | AW201: NA | AX201: NA
A202: CONTRATACION DIRECTA | B202: Contratos de prestación de servicios | C202: TERMINADO | D202: FDLK-CD-204-2020 | E202: CPS-204-2020 | F202: =VLOOKUP(E202,[1]Hoja1!D$3:E$393,2,0) -> 1 | G202: EIMY SOLANGY CASTRO CASALLAS | H202: 52872670 | I202: EIMY SOLANGY CASTRO CASALLAS | J202: 52872670 | L202: https://community.secop.gov.co/Public/Tendering/OpportunityDetail/Index?noticeUID=CO1.NTC.1352349&isFromPublicArea=True&isModal=False | M202: PRESTAR LOS SERVICIOS PROFESIONALES EN EL ÁREA DE GESTIÓN POLICIVA JURÍDICA EN LOS ASUNTOS RELACIONADOS CON LOS PRINCIPIOS INTEGRALES DE LA SALUD INDIVIDUAL Y COLECTIVA DE LA POBLACIÓN QUE OCUPA INDEBIDAMENTE EL ESPACIO PÚBLICO EN LA LOCALIDAD DE KENNEDY | N202: INVERSIÓN | O202: 947 | P202: 22048000 | Q202: 1363 | R202: Fortalecimiento de la gestión local y de las acciones de vigilancia y control | S202: 2020-07-23 | T202: 2020-07-29 | U202: 2020-12-31 | V202: 22048000 | W202: 4 | X202: 5512000 | Y202: 1151 | Z202: 22048000 | AA202: YEIMY CAROLINA AGUDELO HERNANDEZ | AB202: NORMA LETICIA GUZMAN RIMOLLI | AC202: GESTION POLICIVA Y JURIDICA | AD202: 6446101009123 | AE202: 2020-07-27 | AF202: 2021-07-27 | AG202: NA | AH202: 0 | AI202: NA | AJ202: NA | AK202: NA | AL202: NA | AM202: NA | AN202: 2020-11-26 | AO202: 32 | AP202: DIAS | AQ202: 5879467 | AR202: 2020-11-26 | AS202: 32 | AT202: DIAS | AU202: NA | AV202: NA | AW202: NA | AX202: NA
A203: CONTRATACION DIRECTA | B203: Contratos de prestación de servicios | C203: EN EJECUCION | D203: FDLK-CD-205-2020 | E203: CPS-205-2020 | F203: =VLOOKUP(E203,[1]Hoja1!D$3:E$393,2,0) -> 0.9134199134 | G203: JENNY ANDREA GUTIÉRREZ ROJAS | H203: 52504802 | I203: JENNY ANDREA GUTIÉRREZ ROJAS | J203: 52504802 | L203: https://community.secop.gov.co/Public/Tendering/OpportunityDetail/Index?noticeUID=CO1.NTC.1352715&isFromPublicArea=True&isModal=False | M203: PRESTAR LOS SERVICIOS DE APOYO A LA RECEPCIÓN Y AL ÁREA DE GESTIÓN DEL DESARROLLO LOCAL DE LA ALCALDÍA LOCAL DE KENNEDY EN TEMAS DE ATENCIÓN AL CIUDADANO | N203: INVERSIÓN | O203: 1062 | P203: 14400000 | Q203: 1363 | R203: Fortalecimiento de la gestión local y de las acciones de vigilancia y control | S203: 2020-07-23 | T203: 2020-07-29 | U203: 2021-03-17 | V203: 12400000 | W203: 5.166666667 | X203: 2400000 | Y203: 1152 | Z203: 12400000 | AA203: YEIMY CAROLINA AGUDELO HERNANDEZ | AB203: MARIA DEL PILAR MUÑOZ TORRES | AC203: ADMINISTRATIVO Y FINANCIERO | AD203: 380 47 994000106645 | AE203: 2020-07-23 | AF203: 2021-07-03 | AG203: NA | AH203: 0 | AI203: NA | AJ203: NA | AK203: NA | AL203: NA | AM203: NA | AN203: 2021-01-01 | AO203: 76 | AP203: DIAS | AQ203: 6160000 | AR203: 2021-01-01 | AS203: 76 | AT203: DIAS | AU203: NA | AV203: NA | AW203: NA | AX203: NA
A204: CONTRATACION DIRECTA | B204: Contratos de prestación de servicios | C204: TERMINADO | D204: FDLK-CD-206-2020 | E204: CPS-206-2020 | F204: =VLOOKUP(E204,[1]Hoja1!D$3:E$393,2,0) -> 1 | G204: DUVER JOSUE AREVALO MELO | H204: 80055476 | I204: DUVER JOSUE AREVALO MELO | J204: 80055476 | L204: https://community.secop.gov.co/Public/Tendering/OpportunityDetail/Index?noticeUID=CO1.NTC.1352400&isFromPublicArea=True&isModal=False | M204: APOYAR TÉCNICAMENTE LAS DISTINTAS ETAPAS DE LOS PROCESOS DE COMPETENCIA DE LA ALCALDÍA LOCAL PARA LA DEPURACIÓN DE ACTUACIONES ADMINISTRATIVAS | N204: INVERSIÓN | O204: 946 | P204: 52560000 | Q204: 1363 | R204: Fortalecimiento de la gestión local y de las acciones de vigilancia y control | S204: 2020-07-24 | T204: 2020-07-30 | U204: 2020-12-31 | V204: 26280000 | W204: 4 | X204: 6570000 | Y204: 1153 | Z204: 26280000 | AA204: YEIMY CAROLINA AGUDELO HERNANDEZ | AB204: NORMA LETICIA GUZMAN RIMOLLI | AC204: GESTION POLICIVA Y JURIDICA | AD204: 33-46-101024689 | AE204: 2020-07-23 | AF204: 2021-05-26 | AG204: NA | AH204: 0 | AI204: NA | AJ204: NA | AK204: NA | AL204: NA | AM204: NA | AN204: 2020-11-29 | AO204: 31 | AP204: DIAS | AQ204: 6789000 | AR204: 2020-11-29 | AS204: 31 | AT204: DIAS | AU204: NA | AV204: NA | AW204: NA | AX204: NA
... 178 more rows
